Body Name,Body,Service Area Catergorisation,Service Division Catergorisation,Responsible Unit,Expenses Type,Detailed Expenses Type,Expenses Code,Date,Transaction Number,Amount,Capital / Revenue,Supplier Name,Supplier ID
North East Lincolnshire Council,http://statistics.data.gov.uk/id/local-authority/00FC,Cap People And Communities,Cap Vulnerable Young People,Aiming High For Disabled Child,Cap Land/Build-Purchase,Cap Land/Build-Purchase,YA101,12/12/2012,163408,"1,127.73",Capital,MOVEMENT2 PRISM MEDICAL UK,108486
North East Lincolnshire Council,http://statistics.data.gov.uk/id/local-authority/00FC,Cap People And Communities,Cap Schools Capital,Devolved Formula Cap Grant,Cap Land/Build-Build Enh Wrk,Cap Land/Build-Build Enh Wrk,YA102,12/18/2012,165446,"4,598.45",Capital,E S RUDKIN LTD,100632
North East Lincolnshire Council,http://statistics.data.gov.uk/id/local-authority/00FC,Cap People And Communities,Cap Schools Capital,Devolved Formula Cap Grant,Cap Land/Build-Build Enh Wrk,Cap Land/Build-Build Enh Wrk,YA102,12/20/2012,165430,400.00,Capital,UNIBUILD BUILDING CONT LTD,101469
North East Lincolnshire Council,http://statistics.data.gov.uk/id/local-authority/00FC,Cap People And Communities,Cap Schools Capital,Devolved Formula Cap Grant,Cap Land/Build-Build Enh Wrk,Cap Land/Build-Build Enh Wrk,YA102,12/20/2012,165431,866.00,Capital,UNIBUILD BUILDING CONT LTD,101469
North East Lincolnshire Council,http://statistics.data.gov.uk/id/local-authority/00FC,Cap People And Communities,Cap Schools Capital,Devolved Formula Cap Grant,Cap Land/Build-Build Enh Wrk,Cap Land/Build-Build Enh Wrk,YA102,12/20/2012,165432,"4,004.97",Capital,UNIBUILD BUILDING CONT LTD,101469
North East Lincolnshire Council,http://statistics.data.gov.uk/id/local-authority/00FC,Cap People And Communities,Cap Schools Capital,Devolved Formula Cap Grant,Cap Land/Build-Build Enh Wrk,Cap Land/Build-Build Enh Wrk,YA102,12/4/2012,161907,"2,389.00",Capital,LUDAFLORS,100547
North East Lincolnshire Council,http://statistics.data.gov.uk/id/local-authority/00FC,Cap People And Communities,Cap Schools Capital,Schools - Capital Allocation,Cap Land/Build-Build Enh Wrk,Cap Land/Build-Build Enh Wrk,YA102,12/7/2012,162907,"26,139.96",Capital,ETON-LINCS LIMITED,101510
North East Lincolnshire Council,http://statistics.data.gov.uk/id/local-authority/00FC,Cap People And Communities,Cap Schools Capital,Schools - Capital Allocation,Cap Land/Build-Build Enh Wrk,Cap Land/Build-Build Enh Wrk,YA102,12/17/2012,165218,"73,240.34",Capital,NRA ROOFING & FLOORING SERVICES,101810
North East Lincolnshire Council,http://statistics.data.gov.uk/id/local-authority/00FC,Cap People And Communities,Cap Schools Capital,Schools - Capital Allocation,Cap Comm Asset-Build Enh Wrk,Cap Comm Asset-Build Enh Wrk,YD102,12/17/2012,165216,"2,578.40",Capital,S VOASE BUILDERS LTD,103594
North East Lincolnshire Council,http://statistics.data.gov.uk/id/local-authority/00FC,Cap People And Communities,Cap Schools Capital,Schools - Basic Needs,Cap Land/Build-Build Enh Wrk,Cap Land/Build-Build Enh Wrk,YA102,12/17/2012,165214,"52,186.62",Capital,MANTA SHOPFITTERS LTD,102230
North East Lincolnshire Council,http://statistics.data.gov.uk/id/local-authority/00FC,Cap People And Communities,Cap Schools Capital,Schools - Basic Needs,Cap Land/Build-Build Enh Wrk,Cap Land/Build-Build Enh Wrk,YA102,12/4/2012,161891,"18,682.50",Capital,GAIA TECHNOLOGIES PLC,102572
North East Lincolnshire Council,http://statistics.data.gov.uk/id/local-authority/00FC,Cap People And Communities,Cap Schools Capital,Schools - Basic Needs,Cap Land/Build-Build Enh Wrk,Cap Land/Build-Build Enh Wrk,YA102,12/17/2012,165217,"21,646.45",Capital,TOPCON CONSTRUCTION LTD,108462
North East Lincolnshire Council,http://statistics.data.gov.uk/id/local-authority/00FC,Cap People And Communities,Cap Schools Capital,Surplus Place Removal,Cap Land/Build-Build Enh Wrk,Cap Land/Build-Build Enh Wrk,YA102,12/4/2012,161844,818.00,Capital,ARK JOINERY AND BUILDING MAINTENANCE LTD,101126
North East Lincolnshire Council,http://statistics.data.gov.uk/id/local-authority/00FC,Cap People And Communities,Cap Schools Capital,Surplus Place Removal,Cap Land/Build-Build Enh Wrk,Cap Land/Build-Build Enh Wrk,YA102,12/7/2012,161857,968.53,Capital,ARK JOINERY AND BUILDING MAINTENANCE LTD,101126
North East Lincolnshire Council,http://statistics.data.gov.uk/id/local-authority/00FC,Cap People And Communities,Cap Schools Capital,Primary Capital Programme,Cap Land/Build-Build Enh Wrk,Cap Land/Build-Build Enh Wrk,YA102,12/4/2012,161890,"8,075.45",Capital,GAIA TECHNOLOGIES PLC,102572
North East Lincolnshire Council,http://statistics.data.gov.uk/id/local-authority/00FC,Cap Resources,Cap Commission & Inform System,Ict Strategy,Cap Veh Plt Eqp-Purchase,Cap Veh Plt Eqp-Purchase,YB101,12/18/2012,155208,402.92,Capital,COMPUTACENTER UK LTD,101303
North East Lincolnshire Council,http://statistics.data.gov.uk/id/local-authority/00FC,Cap Resources,Cap Commission & Inform System,Ict Strategy,Cap Veh Plt Eqp-Purchase,Cap Veh Plt Eqp-Purchase,YB101,12/20/2012,158682,"7,275.36",Capital,SPECIALIST COMPUTER CENTRES PLC,110715
North East Lincolnshire Council,http://statistics.data.gov.uk/id/local-authority/00FC,Cap Resources,Cap Finance And Assets,Victoria St -Pedestrianisation,Cap Land/Build-Build Enh Wrk,Cap Land/Build-Build Enh Wrk,YA102,12/10/2012,162978,902.66,Capital,FOSSE WATER TREATMENT LTD,101778
North East Lincolnshire Council,http://statistics.data.gov.uk/id/local-authority/00FC,Cap Economy Env And Housing,Cap Development,Hps-Disabled Fac. Grants,Cap Land/Build-Build Enh Wrk,Cap Land/Build-Build Enh Wrk,YA102,12/7/2012,159162,"2,095.00",Capital,HANDICARE ACCESSIIBILITY LTD,102647
North East Lincolnshire Council,http://statistics.data.gov.uk/id/local-authority/00FC,Cap Economy Env And Housing,Cap Development,Hps-Disabled Fac. Grants,Cap Grants To O/Side Sources,Cap Grants To O/Side Sources,YJ101,12/7/2012,162146,640.00,Capital,STEVE BENNETT ARCHITECTURAL DESIGN,103819
North East Lincolnshire Council,http://statistics.data.gov.uk/id/local-authority/00FC,Cap Economy Env And Housing,Cap Development,Hps-Disabled Fac. Grants,Cap Grants To O/Side Sources,Cap Grants To O/Side Sources,YJ101,12/7/2012,162684,"1,633.33",Capital,COLIN MACKENZIE REMOVALS AND STORAGE,111785
North East Lincolnshire Council,http://statistics.data.gov.uk/id/local-authority/00FC,Cap Economy Env And Housing,Cap Development,Hps-Disabled Fac. Grants,Cap Grants To O/Side Sources,Cap Grants To O/Side Sources,YJ101,12/5/2012,162147,"2,095.00",Capital,HANDICARE ACCESSIIBILITY LTD,102647
North East Lincolnshire Council,http://statistics.data.gov.uk/id/local-authority/00FC,Cap Economy Env And Housing,Cap Development,Hps-Disabled Fac. Grants,Cap Grants To O/Side Sources,Cap Grants To O/Side Sources,YJ101,12/5/2012,162145,"2,510.00",Capital,E J PARMENTER,100924
North East Lincolnshire Council,http://statistics.data.gov.uk/id/local-authority/00FC,Cap Economy Env And Housing,Cap Development,Hps-Disabled Fac. Grants,Cap Grants To O/Side Sources,Cap Grants To O/Side Sources,YJ101,12/3/2012,158459,"4,154.00",Capital,THM CONSTRUCTION,109687
North East Lincolnshire Council,http://statistics.data.gov.uk/id/local-authority/00FC,Cap Economy Env And Housing,Cap Development,Hps-Disabled Fac. Grants,Cap Grants To O/Side Sources,Cap Grants To O/Side Sources,YJ101,12/20/2012,164781,"4,166.00",Capital,M D BUILDING,103356
North East Lincolnshire Council,http://statistics.data.gov.uk/id/local-authority/00FC,Cap Economy Env And Housing,Cap Development,Hps-Disabled Fac. Grants,Cap Grants To O/Side Sources,Cap Grants To O/Side Sources,YJ101,12/5/2012,162141,"4,195.00",Capital,LINCS PLUMBING & HEATING CO,102584
North East Lincolnshire Council,http://statistics.data.gov.uk/id/local-authority/00FC,Cap Economy Env And Housing,Cap Development,Hps-Disabled Fac. Grants,Cap Grants To O/Side Sources,Cap Grants To O/Side Sources,YJ101,12/20/2012,164782,"4,215.00",Capital,DOLPHIN MOBILITY EAST MIDLANDS LTD,101317
North East Lincolnshire Council,http://statistics.data.gov.uk/id/local-authority/00FC,Cap Economy Env And Housing,Cap Development,Hps-Disabled Fac. Grants,Cap Grants To O/Side Sources,Cap Grants To O/Side Sources,YJ101,12/31/2012,165227,"4,424.44",Capital,MEARS LTD,102433
North East Lincolnshire Council,http://statistics.data.gov.uk/id/local-authority/00FC,Cap Economy Env And Housing,Cap Development,Hps-Disabled Fac. Grants,Cap Grants To O/Side Sources,Cap Grants To O/Side Sources,YJ101,12/7/2012,162144,"4,435.00",Capital,CLEVELAND JOINERY,102580
North East Lincolnshire Council,http://statistics.data.gov.uk/id/local-authority/00FC,Cap Economy Env And Housing,Cap Development,Hps-Disabled Fac. Grants,Cap Grants To O/Side Sources,Cap Grants To O/Side Sources,YJ101,12/31/2012,165230,"4,496.21",Capital,MEARS LTD,102433
North East Lincolnshire Council,http://statistics.data.gov.uk/id/local-authority/00FC,Cap Economy Env And Housing,Cap Development,Hps-Disabled Fac. Grants,Cap Grants To O/Side Sources,Cap Grants To O/Side Sources,YJ101,12/31/2012,165226,"4,610.75",Capital,MEARS LTD,102433
North East Lincolnshire Council,http://statistics.data.gov.uk/id/local-authority/00FC,Cap Economy Env And Housing,Cap Development,Hps-Disabled Fac. Grants,Cap Grants To O/Side Sources,Cap Grants To O/Side Sources,YJ101,12/31/2012,164774,"4,854.00",Capital,HANDICARE ACCESSIIBILITY LTD,102647
North East Lincolnshire Council,http://statistics.data.gov.uk/id/local-authority/00FC,Cap Economy Env And Housing,Cap Development,Hps-Disabled Fac. Grants,Cap Grants To O/Side Sources,Cap Grants To O/Side Sources,YJ101,12/7/2012,159908,"4,926.00",Capital,STEVE KEIGHTLEY WINDOW COMPANY LTD,112138
North East Lincolnshire Council,http://statistics.data.gov.uk/id/local-authority/00FC,Cap Economy Env And Housing,Cap Development,Hps-Disabled Fac. Grants,Cap Grants To O/Side Sources,Cap Grants To O/Side Sources,YJ101,12/31/2012,165228,"5,049.46",Capital,MEARS LTD,102433
North East Lincolnshire Council,http://statistics.data.gov.uk/id/local-authority/00FC,Cap Economy Env And Housing,Cap Development,Hps-Disabled Fac. Grants,Cap Grants To O/Side Sources,Cap Grants To O/Side Sources,YJ101,12/5/2012,162143,"5,995.00",Capital,LINCS PLUMBING & HEATING CO,102584
North East Lincolnshire Council,http://statistics.data.gov.uk/id/local-authority/00FC,Cap Economy Env And Housing,Cap Development,Hps-Disabled Fac. Grants,Cap Grants To O/Side Sources,Cap Grants To O/Side Sources,YJ101,12/18/2012,165574,"7,380.00",Capital,E J PARMENTER,100924
North East Lincolnshire Council,http://statistics.data.gov.uk/id/local-authority/00FC,Cap Economy Env And Housing,Cap Development,Hps-Disabled Fac. Grants,Cap Grants To O/Side Sources,Cap Grants To O/Side Sources,YJ101,12/5/2012,162150,"18,305.00",Capital,VIC HANSEN BUILDING & JOINERY LTD,103981
North East Lincolnshire Council,http://statistics.data.gov.uk/id/local-authority/00FC,Cap Economy Env And Housing,Cap Development,Local Transport Plan,Cap Infrastr-Build Enh Wrk,Cap Infrastr-Build Enh Wrk,YC102,12/12/2012,161519,"3,030.00",Capital,ADVANTAGE TSC & D LTD,109136
North East Lincolnshire Council,http://statistics.data.gov.uk/id/local-authority/00FC,Cap Economy Env And Housing,Cap Development,Local Transport Plan,Cap Infrastr-Build Enh Wrk,Cap Infrastr-Build Enh Wrk,YC102,12/17/2012,164365,390.00,Capital,J MCCANN & CO LTD,100841
North East Lincolnshire Council,http://statistics.data.gov.uk/id/local-authority/00FC,Cap Economy Env And Housing,Cap Development,Local Transport Plan,Cap Infrastr-Build Enh Wrk,Cap Infrastr-Build Enh Wrk,YC102,12/12/2012,163411,"2,520.00",Capital,LINDSEY TREE SERVICES LTD,100981
North East Lincolnshire Council,http://statistics.data.gov.uk/id/local-authority/00FC,Cap Economy Env And Housing,Cap Development,Local Transport Plan,Cap Infrastr-Build Enh Wrk,Cap Infrastr-Build Enh Wrk,YC102,12/17/2012,164362,"4,400.00",Capital,J MCCANN & CO LTD,100841
North East Lincolnshire Council,http://statistics.data.gov.uk/id/local-authority/00FC,Cap Economy Env And Housing,Cap Development,Local Transport Plan,Cap Infrastr-Build Enh Wrk,Cap Infrastr-Build Enh Wrk,YC102,12/3/2012,161027,"31,543.34",Capital,P H CONSTRUCTION SERVICES LTD,102107
North East Lincolnshire Council,http://statistics.data.gov.uk/id/local-authority/00FC,Cap Economy Env And Housing,Cap Development,Local Transport Plan,Cap Infrastr-Build Enh Wrk,Cap Infrastr-Build Enh Wrk,YC102,12/20/2012,165410,"4,000.00",Capital,TINY GIANTS PRODUCTIONS LTD,111873
North East Lincolnshire Council,http://statistics.data.gov.uk/id/local-authority/00FC,Cap Economy Env And Housing,Cap Development,Local Transport Plan,Cap Infrastr-Build Enh Wrk,Cap Infrastr-Build Enh Wrk,YC102,12/17/2012,164366,847.00,Capital,J MCCANN & CO LTD,100841
North East Lincolnshire Council,http://statistics.data.gov.uk/id/local-authority/00FC,Cap Economy Env And Housing,Cap Development,Local Transport Plan,Cap Infrastr-Build Enh Wrk,Cap Infrastr-Build Enh Wrk,YC102,12/7/2012,161436,357.28,Capital,GRIMSBY & SCUNTHORPE MEDIA GROUP LTD,101827
North East Lincolnshire Council,http://statistics.data.gov.uk/id/local-authority/00FC,Cap Economy Env And Housing,Cap Development,Local Transport Plan,Cap Infrastr-Build Enh Wrk,Cap Infrastr-Build Enh Wrk,YC102,12/7/2012,161437,255.20,Capital,GRIMSBY & SCUNTHORPE MEDIA GROUP LTD,101827
North East Lincolnshire Council,http://statistics.data.gov.uk/id/local-authority/00FC,Cap Economy Env And Housing,Cap Development,Local Transport Plan,Cap Infrastr-Build Enh Wrk,Cap Infrastr-Build Enh Wrk,YC102,12/7/2012,161435,395.56,Capital,GRIMSBY & SCUNTHORPE MEDIA GROUP LTD,101827
North East Lincolnshire Council,http://statistics.data.gov.uk/id/local-authority/00FC,Cap Economy Env And Housing,Cap Development,Local Transport Plan,Cap Infrastr-Build Enh Wrk,Cap Infrastr-Build Enh Wrk,YC102,12/5/2012,161353,"2,145.00",Capital,J MCCANN & CO LTD,100841
North East Lincolnshire Council,http://statistics.data.gov.uk/id/local-authority/00FC,Cap Economy Env And Housing,Cap Development,East Marsh Renewal,Cap Land/Build-Build Enh Wrk,Cap Land/Build-Build Enh Wrk,YA102,12/17/2012,165212,"18,423.07",Capital,THOMAS BOW LTD,102567
North East Lincolnshire Council,http://statistics.data.gov.uk/id/local-authority/00FC,Cap Economy Env And Housing,Cap Development,Housing Assistance,Cap Land/Build-Build Enh Wrk,Cap Land/Build-Build Enh Wrk,YA102,12/5/2012,160261,"5,000.00",Capital,SAFER HOMES SERVICE,111706
North East Lincolnshire Council,http://statistics.data.gov.uk/id/local-authority/00FC,Cap Economy Env And Housing,Cap Development,Housing Assistance,Cap Grants To O/Side Sources,Cap Grants To O/Side Sources,YJ101,12/14/2012,164766,"4,527.00",Capital,M J QUICKFALL,102499
North East Lincolnshire Council,http://statistics.data.gov.uk/id/local-authority/00FC,Cap Economy Env And Housing,Cap Development,Housing Assistance,Cap Grants To O/Side Sources,Cap Grants To O/Side Sources,YJ101,12/3/2012,160667,"8,746.67",Capital,M J QUICKFALL,102499
North East Lincolnshire Council,http://statistics.data.gov.uk/id/local-authority/00FC,Cap Economy Env And Housing,Cap Development,Housing Assistance,Cap Grants To O/Side Sources,Cap Grants To O/Side Sources,YJ101,12/14/2012,164864,"9,111.11",Capital,DMS LTD,112008
North East Lincolnshire Council,http://statistics.data.gov.uk/id/local-authority/00FC,Cap Economy Env And Housing,Cap Development,Housing Assistance,Cap Grants To O/Side Sources,Cap Grants To O/Side Sources,YJ101,12/18/2012,165407,"9,111.11",Capital,FWRM LTD,112531
North East Lincolnshire Council,http://statistics.data.gov.uk/id/local-authority/00FC,Cap Economy Env And Housing,Cap Development,Housing Assistance,Cap Grants To O/Side Sources,Cap Grants To O/Side Sources,YJ101,12/14/2012,164963,"8,475.00",Capital,DUDLEY BUILDING SOCIETY,101431
North East Lincolnshire Council,http://statistics.data.gov.uk/id/local-authority/00FC,Cap Economy Env And Housing,Cap Development,Housing Assistance,Cap Grants To O/Side Sources,Cap Grants To O/Side Sources,YJ101,12/7/2012,162864,"8,963.00",Capital,DUDLEY BUILDING SOCIETY,101431
North East Lincolnshire Council,http://statistics.data.gov.uk/id/local-authority/00FC,Cap Economy Env And Housing,Cap Development,Housing Assistance,Cap Grants To O/Side Sources,Cap Grants To O/Side Sources,YJ101,12/7/2012,162863,"13,551.00",Capital,DUDLEY BUILDING SOCIETY,101431
North East Lincolnshire Council,http://statistics.data.gov.uk/id/local-authority/00FC,Cap Economy Env And Housing,Cap Development,Housing Assistance,Cap Grants To O/Side Sources,Cap Grants To O/Side Sources,YJ101,12/14/2012,164966,"14,000.00",Capital,DUDLEY BUILDING SOCIETY,101431
North East Lincolnshire Council,http://statistics.data.gov.uk/id/local-authority/00FC,Cap Economy Env And Housing,Cap Development,Housing Assistance,Cap Grants To O/Side Sources,Cap Grants To O/Side Sources,YJ101,12/14/2012,164967,"23,025.00",Capital,DUDLEY BUILDING SOCIETY,101431
North East Lincolnshire Council,http://statistics.data.gov.uk/id/local-authority/00FC,Cap Economy Env And Housing,Cap Development,Housing Assistance,Cap Grants To O/Side Sources,Cap Grants To O/Side Sources,YJ101,12/7/2012,162107,"1,200.00",Capital,MAYNE GAS HEATING LTD,101861
North East Lincolnshire Council,http://statistics.data.gov.uk/id/local-authority/00FC,Cap Economy Env And Housing,Cap Development,Housing Assistance,Cap Grants To O/Side Sources,Cap Grants To O/Side Sources,YJ101,12/18/2012,165558,"2,388.10",Capital,M J QUICKFALL,102499
North East Lincolnshire Council,http://statistics.data.gov.uk/id/local-authority/00FC,Cap Economy Env And Housing,Cap Development,Local Sustainable Trans Fund,Cap Infrastr-Build Enh Wrk,Cap Infrastr-Build Enh Wrk,YC102,12/17/2012,164361,"5,241.60",Capital,J MCCANN & CO LTD,100841
North East Lincolnshire Council,http://statistics.data.gov.uk/id/local-authority/00FC,Cap Economy Env And Housing,Cap Development,Local Sustainable Trans Fund,Cap Infrastr-Prof Fees,Cap Infrastr-Prof Fees,YC103,12/12/2012,164252,REDACTED COMMERCIALLY SENSITIVE,Capital,BALFOUR BEATTY,102595
North East Lincolnshire Council,http://statistics.data.gov.uk/id/local-authority/00FC,Cap Economy Env And Housing,Cap Culture Leisure And Sport,Leisure/Library - Library,Cap Land/Build-Build Enh Wrk,Cap Land/Build-Build Enh Wrk,YA102,12/17/2012,165215,"18,167.37",Capital,WIL-LEC ELECTRICAL CONTRACTORS LTD,101370
North East Lincolnshire Council,http://statistics.data.gov.uk/id/local-authority/00FC,Cap Economy Env And Housing,Cap Culture Leisure And Sport,Leisure/Library - Library,Cap Land/Build-Build Enh Wrk,Cap Land/Build-Build Enh Wrk,YA102,12/3/2012,161419,"92,865.31",Capital,LINDUM GROUP LIMITED,101185
North East Lincolnshire Council,http://statistics.data.gov.uk/id/local-authority/00FC,Cap Governance And Trans,Cap Transformation Project,Change Programme,Cap Intangible Assets,Cap Intangible Assets,YH101,12/5/2012,162158,"2,250.00",Capital,TIMOTHY JAMES CONSULTING LTD,111085
North East Lincolnshire Council,http://statistics.data.gov.uk/id/local-authority/00FC,Cap Governance And Trans,Cap Transformation Project,Change Programme,Cap Intangible Assets,Cap Intangible Assets,YH101,12/7/2012,162715,"2,250.00",Capital,TIMOTHY JAMES CONSULTING LTD,111085
North East Lincolnshire Council,http://statistics.data.gov.uk/id/local-authority/00FC,Cap Governance And Trans,Cap Transformation Project,Change Programme,Cap Intangible Assets,Cap Intangible Assets,YH101,12/3/2012,161420,REDACTED COMMERCIALLY SENSITIVE,Capital,MIDLAND SOFTWARE LTD,102633
North East Lincolnshire Council,http://statistics.data.gov.uk/id/local-authority/00FC,Cap Governance And Trans,Cap Transformation Project,Change Programme,Cap Intangible Assets,Cap Intangible Assets,YH101,12/3/2012,161421,REDACTED COMMERCIALLY SENSITIVE,Capital,MIDLAND SOFTWARE LTD,102633
North East Lincolnshire Council,http://statistics.data.gov.uk/id/local-authority/00FC,Chief Executive,Chief Executive,Chief Exec & Support,Contributions To Provisions,Contributions - Third Sector,LK102,12/10/2012,163468,-240.00,Revenue,SPACE PROJECT,101462
North East Lincolnshire Council,http://statistics.data.gov.uk/id/local-authority/00FC,Chief Executive,Chief Executive,Chief Exec & Support,Contributions To Provisions,Contributions - Third Sector,LK102,12/11/2012,163633,250.00,Revenue,IMMINGHANM COMMUNITY PROJECT,112452
North East Lincolnshire Council,http://statistics.data.gov.uk/id/local-authority/00FC,Chief Executive,Chief Executive,Chief Exec & Support,Contributions To Provisions,Contributions - Third Sector,LK102,12/12/2012,163861,300.00,Revenue,CROWHILL NEIGHBOURHOOD WATCH,107253
North East Lincolnshire Council,http://statistics.data.gov.uk/id/local-authority/00FC,Chief Executive,Chief Executive,Chief Exec & Support,Contributions To Provisions,Contributions - Third Sector,LK102,12/12/2012,164037,500.00,Revenue,ST ANDREWS HOSPICE,103069
North East Lincolnshire Council,http://statistics.data.gov.uk/id/local-authority/00FC,Chief Executive,Chief Executive,Chief Exec & Support,Contributions To Provisions,Contributions - Third Sector,LK102,12/11/2012,163692,500.00,Revenue,CLEETHORPES & DISTRICT SWIMMING CLUB,103404
North East Lincolnshire Council,http://statistics.data.gov.uk/id/local-authority/00FC,Chief Executive,Chief Executive,Chief Exec & Support,Contributions To Provisions,Contributions - Third Sector,LK102,12/12/2012,164137,500.00,Revenue,6TH CLEETHORPES CHRIST CHURCH SCOUT GROUP,104495
North East Lincolnshire Council,http://statistics.data.gov.uk/id/local-authority/00FC,Chief Executive,Chief Executive,Chief Exec & Support,Contributions To Provisions,Contributions - Third Sector,LK102,12/12/2012,163862,500.00,Revenue,CLEELINCS NEIGHBOURHOOD FORUM,109043
North East Lincolnshire Council,http://statistics.data.gov.uk/id/local-authority/00FC,Chief Executive,Chief Executive,Chief Exec & Support,Contributions To Provisions,Contributions - Third Sector,LK102,12/14/2012,164866,560.00,Revenue,BANGLADESH CULTURAL SOCIETY,106641
North East Lincolnshire Council,http://statistics.data.gov.uk/id/local-authority/00FC,Chief Executive,Chief Executive,Chief Exec & Support,Contributions To Provisions,Contributions - Third Sector,LK102,12/12/2012,164043,798.00,Revenue,ANGLO-POLISH SOCIETY (NORTH EAST LINCOLNSHIRE,112524
North East Lincolnshire Council,http://statistics.data.gov.uk/id/local-authority/00FC,Chief Executive,Chief Executive,Chief Exec & Support,Contributions To Provisions,Contributions - Third Sector,LK102,12/12/2012,163966,"1,000.00",Revenue,ROYAL AIR FORCES ASSOCIATION,105508
North East Lincolnshire Council,http://statistics.data.gov.uk/id/local-authority/00FC,Chief Executive,Chief Executive,Chief Exec & Support,Contributions To Provisions,Contributions - Third Sector,LK102,12/12/2012,163969,"1,000.00",Revenue,GRIMSBY IN BLOOM,109366
North East Lincolnshire Council,http://statistics.data.gov.uk/id/local-authority/00FC,Chief Executive,Chief Executive,Chief Exec & Support,Contributions To Provisions,Contributions - Third Sector,LK102,12/11/2012,163632,"1,000.00",Revenue,RAF ASSOCIATION,109232
North East Lincolnshire Council,http://statistics.data.gov.uk/id/local-authority/00FC,Other Corporate Budgets,Other Corporate Budgets,Appropriations,Indirect Employee Expenses,Pension P/Ment Pension Inc Act,EB105,12/18/2012,165590,944.50,Revenue,LINCOLNSHIRE COUNTY COUNCIL,100389
North East Lincolnshire Council,http://statistics.data.gov.uk/id/local-authority/00FC,Other Corporate Budgets,Other Corporate Budgets,Appropriations,Miscellaneous Expenses,Other Expenses General,LL119,12/7/2012,162683,"2,850.00",Revenue,HYMANS ROBERTSON LLP,107021
North East Lincolnshire Council,http://statistics.data.gov.uk/id/local-authority/00FC,People And Communities,Childrens Hlth & Family Supp,Integrated Youth Services,Car Allowances,Travel - Employees,JF101,12/7/2012,161894,257.44,Revenue,NYS CORPORATE,102444
North East Lincolnshire Council,http://statistics.data.gov.uk/id/local-authority/00FC,People And Communities,Childrens Hlth & Family Supp,Integrated Youth Services,Contributions To Provisions,Contributions - Other,LK103,12/14/2012,164222,356.70,Revenue,EXCELL ELECTRICAL CONTRACTORS,100601
North East Lincolnshire Council,http://statistics.data.gov.uk/id/local-authority/00FC,People And Communities,Childrens Hlth & Family Supp,Integrated Youth Services,Contributions To Provisions,Contributions - Other,LK103,12/12/2012,163387,950.00,Revenue,ANDY RYAN GROUNDWORKS,101558
North East Lincolnshire Council,http://statistics.data.gov.uk/id/local-authority/00FC,People And Communities,Childrens Hlth & Family Supp,Childrens Health Provision,Rents,Rent,GC101,12/17/2012,164426,715.00,Revenue,GRIMSBY CENTRAL HALL TRUST,100882
North East Lincolnshire Council,http://statistics.data.gov.uk/id/local-authority/00FC,People And Communities,Childrens Hlth & Family Supp,Childrens Health Provision,Equip / Furniture / Materials,Equipment - Purchase,LA101,12/10/2012,158677,582.12,Revenue,HARLOW PRINTING LTD,104753
North East Lincolnshire Council,http://statistics.data.gov.uk/id/local-authority/00FC,People And Communities,Childrens Hlth & Family Supp,Childrens Health Provision,Private Contractors,Third Party Prov - Private,PH101,12/18/2012,165580,"1,025.00",Revenue,N LINCS & GOOLE HOSPITALS NHS,111074
North East Lincolnshire Council,http://statistics.data.gov.uk/id/local-authority/00FC,People And Communities,Childrens Hlth & Family Supp,Childrens Health Provision,Rep Alterations Maint Building,Buildings - Repairs And Maint,GA102,12/17/2012,165219,"9,170.00",Revenue,MANTA SHOPFITTERS LTD,102230
North East Lincolnshire Council,http://statistics.data.gov.uk/id/local-authority/00FC,People And Communities,Childrens Hlth & Family Supp,Childrens Health Provision,Communications And Computing,Computer S/Ware - Maintenance,LF102,12/14/2012,164724,"8,000.00",Revenue,NORTH EAST LINCOLNSHIRE PRIMARY CARE TRUST,100337
North East Lincolnshire Council,http://statistics.data.gov.uk/id/local-authority/00FC,People And Communities,Childrens Hlth & Family Supp,Childrens Health Provision,Miscellaneous Expenses,Other Expenses General,LL119,12/10/2012,163299,392.34,Revenue,E-ON (GAS),101983
North East Lincolnshire Council,http://statistics.data.gov.uk/id/local-authority/00FC,People And Communities,Childrens Hlth & Family Supp,Childrens Health Provision,Miscellaneous Expenses,Other Expenses General,LL119,12/10/2012,163284,393.69,Revenue,NPOWER LIMITED,101414
North East Lincolnshire Council,http://statistics.data.gov.uk/id/local-authority/00FC,People And Communities,Childrens Hlth & Family Supp,Childrens Health Provision,Miscellaneous Expenses,Other Expenses General,LL119,12/14/2012,164725,"2,517.61",Revenue,WEELSBY VIEW HEALTH CENTRE,101761
North East Lincolnshire Council,http://statistics.data.gov.uk/id/local-authority/00FC,People And Communities,Childrens Hlth & Family Supp,Childrens Health Provision,Equip / Furniture / Materials,Equipment - Purchase,LA101,12/10/2012,158677,564.62,Revenue,HARLOW PRINTING LTD,104753
North East Lincolnshire Council,http://statistics.data.gov.uk/id/local-authority/00FC,People And Communities,Childrens Hlth & Family Supp,Childrens Health Provision,Equip / Furniture / Materials,Equipment - Purchase,LA101,12/20/2012,165528,"1,160.00",Revenue,WILLIAMS MEDICAL SUPPLIES,106409
North East Lincolnshire Council,http://statistics.data.gov.uk/id/local-authority/00FC,People And Communities,Childrens Hlth & Family Supp,Childrens Centre Development,Cleaning And Domestic Supplies,Cleaning - Consumables,GH103,12/7/2012,161545,-6.65,Revenue,PETTY CASH,REDACTED
North East Lincolnshire Council,http://statistics.data.gov.uk/id/local-authority/00FC,People And Communities,Childrens Hlth & Family Supp,Childrens Centre Development,Cleaning And Domestic Supplies,Cleaning - Consumables,GH103,12/3/2012,161431,-6.65,Revenue,PETTY CASH,REDACTED
North East Lincolnshire Council,http://statistics.data.gov.uk/id/local-authority/00FC,People And Communities,Childrens Hlth & Family Supp,Childrens Centre Development,Equip / Furniture / Materials,Non-Teaching Resources,LA118,12/7/2012,161545,-6.50,Revenue,PETTY CASH,REDACTED
North East Lincolnshire Council,http://statistics.data.gov.uk/id/local-authority/00FC,People And Communities,Childrens Hlth & Family Supp,Childrens Centre Development,Equip / Furniture / Materials,Non-Teaching Resources,LA118,12/3/2012,161431,-6.50,Revenue,PETTY CASH,REDACTED
North East Lincolnshire Council,http://statistics.data.gov.uk/id/local-authority/00FC,People And Communities,Childrens Hlth & Family Supp,Childrens Centre Development,Other Agencies,Child Care Payments,PJ104,12/7/2012,162129,273.84,Revenue,REDACTED PERSONAL INFORMATION,REDACTED PERSONAL INFORMATION
North East Lincolnshire Council,http://statistics.data.gov.uk/id/local-authority/00FC,People And Communities,Childrens Hlth & Family Supp,Childrens Centre Development,Other Agencies,Child Care Payments,PJ104,12/10/2012,163395,309.60,Revenue,FOR UNDER FIVES LTD,101795
North East Lincolnshire Council,http://statistics.data.gov.uk/id/local-authority/00FC,People And Communities,Childrens Hlth & Family Supp,Childrens Centre Development,Other Agencies,Child Care Payments,PJ104,12/17/2012,163394,309.60,Revenue,FOR UNDER FIVES LTD,101795
North East Lincolnshire Council,http://statistics.data.gov.uk/id/local-authority/00FC,People And Communities,Childrens Hlth & Family Supp,Childrens Centre Development,Other Agencies,Child Care Payments,PJ104,12/5/2012,162071,619.20,Revenue,FOR UNDER FIVES LTD,101795
North East Lincolnshire Council,http://statistics.data.gov.uk/id/local-authority/00FC,People And Communities,Childrens Hlth & Family Supp,Childrens Centre Development,Other Agencies,Child Care Payments,PJ104,12/5/2012,162074,645.00,Revenue,FOR UNDER FIVES LTD,100647
North East Lincolnshire Council,http://statistics.data.gov.uk/id/local-authority/00FC,People And Communities,Childrens Hlth & Family Supp,Childrens Centre Development,Other Agencies,Child Care Payments,PJ104,12/17/2012,163392,670.80,Revenue,FOR UNDER FIVES LTD,101795
North East Lincolnshire Council,http://statistics.data.gov.uk/id/local-authority/00FC,People And Communities,Childrens Hlth & Family Supp,Childrens Centre Development,Other Agencies,Child Care Payments,PJ104,12/10/2012,163396,825.60,Revenue,FOR UNDER FIVES LTD,101795
North East Lincolnshire Council,http://statistics.data.gov.uk/id/local-authority/00FC,People And Communities,Childrens Hlth & Family Supp,Childrens Centre Development,Other Agencies,Child Care Payments,PJ104,12/17/2012,163390,838.50,Revenue,FOR UNDER FIVES LTD,101795
North East Lincolnshire Council,http://statistics.data.gov.uk/id/local-authority/00FC,People And Communities,Childrens Hlth & Family Supp,Childrens Centre Development,Other Agencies,Child Care Payments,PJ104,12/17/2012,163406,838.50,Revenue,FOR UNDER FIVES LTD,101795
North East Lincolnshire Council,http://statistics.data.gov.uk/id/local-authority/00FC,People And Communities,Childrens Hlth & Family Supp,Childrens Centre Development,Other Agencies,Child Care Payments,PJ104,12/17/2012,163421,967.50,Revenue,FOR UNDER FIVES LTD,101795
North East Lincolnshire Council,http://statistics.data.gov.uk/id/local-authority/00FC,People And Communities,Childrens Hlth & Family Supp,Childrens Centre Development,Energy Costs,Gas,GB101,12/5/2012,162156,284.61,Revenue,BRITISH GAS TRADING LTD,101507
North East Lincolnshire Council,http://statistics.data.gov.uk/id/local-authority/00FC,People And Communities,Childrens Hlth & Family Supp,Childrens Centre Development,Energy Costs,Electricity,GB102,12/7/2012,162718,329.32,Revenue,EDWARD HENEAGE PRIMARY SCHOOL,103917
North East Lincolnshire Council,http://statistics.data.gov.uk/id/local-authority/00FC,People And Communities,Childrens Hlth & Family Supp,Childrens Centre Development,Water Services,Water,GE101,12/14/2012,164848,485.69,Revenue,EDWARD HENEAGE PRIMARY SCHOOL,103917
North East Lincolnshire Council,http://statistics.data.gov.uk/id/local-authority/00FC,People And Communities,Childrens Hlth & Family Supp,Childrens Centre Development,Direct Employee Expenses,Agency Staff,EA105,12/5/2012,162255,337.20,Revenue,MATRIX SCM LTD,108117
North East Lincolnshire Council,http://statistics.data.gov.uk/id/local-authority/00FC,People And Communities,Childrens Hlth & Family Supp,Childrens Centre Development,Equip / Furniture / Materials,Non-Teaching Resources,LA118,12/5/2012,161485,281.16,Revenue,YORKSHIRE PURCHASING,100573
North East Lincolnshire Council,http://statistics.data.gov.uk/id/local-authority/00FC,People And Communities,Childrens Hlth & Family Supp,Childrens Centre Development,Equip / Furniture / Materials,Non-Teaching Resources,LA118,12/5/2012,162152,292.00,Revenue,YORKSHIRE PURCHASING,100573
North East Lincolnshire Council,http://statistics.data.gov.uk/id/local-authority/00FC,People And Communities,Childrens Hlth & Family Supp,Childrens Centre Development,Equip / Furniture / Materials,Equipment - Purchase,LA101,12/7/2012,162680,501.71,Revenue,MOISERS (GRIMSBY) LTD,100746
North East Lincolnshire Council,http://statistics.data.gov.uk/id/local-authority/00FC,People And Communities,Childrens Hlth & Family Supp,Childrens Centre Development,Print Stationery / Gen Off Exp,Printing And Stationery,LD103,12/14/2012,163624,-71.36,Revenue,LYRECO UK LIMITED,101120
North East Lincolnshire Council,http://statistics.data.gov.uk/id/local-authority/00FC,People And Communities,Childrens Hlth & Family Supp,Childrens Centre Development,Other Agencies,Educational Visits,PJ152,12/14/2012,164977,315.00,Revenue,J NEJRUP,112747
North East Lincolnshire Council,http://statistics.data.gov.uk/id/local-authority/00FC,People And Communities,Childrens Hlth & Family Supp,Childrens Centre Development,Other Agencies,Child Care Payments,PJ104,12/20/2012,165664,400.00,Revenue,FOR UNDER FIVES LTD,100647
North East Lincolnshire Council,http://statistics.data.gov.uk/id/local-authority/00FC,People And Communities,Childrens Hlth & Family Supp,Childrens Centre Development,Other Agencies,Educational Visits,PJ152,12/20/2012,165685,550.00,Revenue,MILLMAN COACHES,100700
North East Lincolnshire Council,http://statistics.data.gov.uk/id/local-authority/00FC,People And Communities,Childrens Hlth & Family Supp,Childrens Centre Development,Other Agencies,Child Care Payments,PJ104,12/7/2012,162681,624.88,Revenue,FOR UNDER FIVES,101931
North East Lincolnshire Council,http://statistics.data.gov.uk/id/local-authority/00FC,People And Communities,Childrens Hlth & Family Supp,Childrens Centre Development,Other Agencies,Child Care Payments,PJ104,12/20/2012,165663,750.56,Revenue,FOR UNDER FIVES,101931
North East Lincolnshire Council,http://statistics.data.gov.uk/id/local-authority/00FC,People And Communities,Childrens Hlth & Family Supp,Childrens Centre Development,Other Agencies,Child Care Payments,PJ104,12/20/2012,165665,806.86,Revenue,FOR UNDER FIVES,101931
North East Lincolnshire Council,http://statistics.data.gov.uk/id/local-authority/00FC,People And Communities,Childrens Hlth & Family Supp,Childrens Centre Development,Other Agencies,Child Care Payments,PJ104,12/5/2012,162153,864.50,Revenue,FOR UNDER FIVES,101931
North East Lincolnshire Council,http://statistics.data.gov.uk/id/local-authority/00FC,People And Communities,Childrens Hlth & Family Supp,Childrens Centre Development,Other Agencies,Child Care Payments,PJ104,12/5/2012,161951,877.60,Revenue,FOR UNDER FIVES,101931
North East Lincolnshire Council,http://statistics.data.gov.uk/id/local-authority/00FC,People And Communities,Childrens Hlth & Family Supp,Childrens Centre Development,Other Agencies,Child Care Payments,PJ104,12/20/2012,165661,975.70,Revenue,FOR UNDER FIVES,101931
North East Lincolnshire Council,http://statistics.data.gov.uk/id/local-authority/00FC,People And Communities,Childrens Hlth & Family Supp,Childrens Centre Development,Direct Employee Expenses,Agency Staff,EA105,12/5/2012,162255,"1,108.47",Revenue,MATRIX SCM LTD,108117
North East Lincolnshire Council,http://statistics.data.gov.uk/id/local-authority/00FC,People And Communities,Childrens Hlth & Family Supp,Childrens Centre Development,Private Contractors,Third Party Prov - Private,PH101,12/10/2012,163412,340.00,Revenue,HARPER CREATIVE,110959
North East Lincolnshire Council,http://statistics.data.gov.uk/id/local-authority/00FC,People And Communities,Childrens Hlth & Family Supp,Childrens Centre Development,Private Contractors,Third Party Prov - Private,PH101,12/5/2012,162068,"3,000.00",Revenue,HARPER CREATIVE,110959
North East Lincolnshire Council,http://statistics.data.gov.uk/id/local-authority/00FC,People And Communities,Childrens Hlth & Family Supp,Childrens Centre Development,Private Contractors,Third Party Prov - Private,PH101,12/5/2012,161121,"3,850.00",Revenue,GUTHERSON RESEARCH LTD,108410
North East Lincolnshire Council,http://statistics.data.gov.uk/id/local-authority/00FC,People And Communities,Childrens Hlth & Family Supp,Childrens Centre Development,Private Contractors,Third Party Prov - Private,PH101,12/5/2012,162047,"7,000.00",Revenue,HARPER CREATIVE,110959
North East Lincolnshire Council,http://statistics.data.gov.uk/id/local-authority/00FC,People And Communities,Childrens Hlth & Family Supp,Childrens Centre Development,Contributions To Provisions,Contributions - Other,LK103,12/10/2012,162067,"24,000.00",Revenue,OASIS ACADEMY WINTRINGHAM,101939
North East Lincolnshire Council,http://statistics.data.gov.uk/id/local-authority/00FC,People And Communities,Childrens Hlth & Family Supp,Childrens Centre Development,Other Agencies,Child Care Payments,PJ104,12/14/2012,164765,"2,862.00",Revenue,FIRST STEPS GRIMSBY LIMITED,101411
North East Lincolnshire Council,http://statistics.data.gov.uk/id/local-authority/00FC,People And Communities,Childrens Hlth & Family Supp,Childrens Centre Development,Rep Alterations Maint Building,Buildings - Repairs And Maint,GA102,12/10/2012,162976,422.50,Revenue,STANNAH LIFT SERVICES LTD,100622
North East Lincolnshire Council,http://statistics.data.gov.uk/id/local-authority/00FC,People And Communities,Childrens Hlth & Family Supp,Childrens Centre Development,Rep Alterations Maint Building,Internal Decoration,GA119,12/20/2012,149254,-189.05,Revenue,FINDEL EDUCATION LIMITED,101237
North East Lincolnshire Council,http://statistics.data.gov.uk/id/local-authority/00FC,People And Communities,Childrens Hlth & Family Supp,Childrens Centre Development,Catering,Provisions,LB101,12/5/2012,162367,316.62,Revenue,K BROUGHTON NEWS LTD,103827
North East Lincolnshire Council,http://statistics.data.gov.uk/id/local-authority/00FC,People And Communities,Childrens Hlth & Family Supp,Childrens Centre Development,Other Agencies,Child Care Payments,PJ104,12/20/2012,164347,"1,106.00",Revenue,CHAPPILLS DAY NURSERY,100998
North East Lincolnshire Council,http://statistics.data.gov.uk/id/local-authority/00FC,People And Communities,Childrens Hlth & Family Supp,Childrens Centre Development,Cleaning And Domestic Supplies,Cleaning - Services,GH102,12/5/2012,161532,250.69,Revenue,OCS LIMITED,101291
North East Lincolnshire Council,http://statistics.data.gov.uk/id/local-authority/00FC,People And Communities,Childrens Hlth & Family Supp,Childrens Centre Development,Other Agencies,Educational Visits,PJ152,12/12/2012,164236,347.60,Revenue,ANDERSONS WHOLESALE,112326
North East Lincolnshire Council,http://statistics.data.gov.uk/id/local-authority/00FC,People And Communities,Childrens Hlth & Family Supp,Childrens Centre Development,Direct Employee Expenses,Agency Staff,EA105,12/31/2012,166826,529.00,Revenue,FUTURE CLEANING SERVICES LTD,102557
North East Lincolnshire Council,http://statistics.data.gov.uk/id/local-authority/00FC,People And Communities,Childrens Hlth & Family Supp,Childrens Centre Development,Cleaning And Domestic Supplies,Refuse Collection,GH104,12/31/2012,166827,318.24,Revenue,BELL WASTE CONTROL,101433
North East Lincolnshire Council,http://statistics.data.gov.uk/id/local-authority/00FC,People And Communities,Childrens Hlth & Family Supp,Childrens Centre Development,Equip / Furniture / Materials,Furniture - Purchase,LA105,12/10/2012,163356,497.96,Revenue,EXCELL ELECTRICAL CONTRACTORS,100601
North East Lincolnshire Council,http://statistics.data.gov.uk/id/local-authority/00FC,People And Communities,Childrens Hlth & Family Supp,Childrens Centre Development,Communications And Computing,Postage,LF111,12/12/2012,164243,500.00,Revenue,LYRECO UK LIMITED,101120
North East Lincolnshire Council,http://statistics.data.gov.uk/id/local-authority/00FC,People And Communities,Childrens Hlth & Family Supp,Childrens Centre Development,Rep Alterations Maint Building,Buildings - Repairs And Maint,GA102,12/5/2012,161678,525.00,Revenue,ETON-LINCS LIMITED,101510
North East Lincolnshire Council,http://statistics.data.gov.uk/id/local-authority/00FC,People And Communities,Childrens Hlth & Family Supp,Childrens Centre Development,Energy Costs,Gas,GB101,12/18/2012,165649,904.21,Revenue,NPOWER LIMITED,101414
North East Lincolnshire Council,http://statistics.data.gov.uk/id/local-authority/00FC,People And Communities,Childrens Hlth & Family Supp,Childrens Centre Development,Water Services,Water,GE101,12/5/2012,162134,-4.74,Revenue,ANGEL SPRINGS LTD,103845
North East Lincolnshire Council,http://statistics.data.gov.uk/id/local-authority/00FC,People And Communities,Childrens Hlth & Family Supp,Childrens Centre Development,Cleaning And Domestic Supplies,Cleaning - Services,GH102,12/5/2012,161993,860.00,Revenue,FUTURE CLEANING SERVICES LTD,102557
North East Lincolnshire Council,http://statistics.data.gov.uk/id/local-authority/00FC,People And Communities,Childrens Hlth & Family Supp,Childrens Centre Development,Private Contractors,Third Party Prov - Private,PH101,12/5/2012,161122,"3,591.24",Revenue,NORTH EAST LINCOLNSHIRE PRIMARY CARE TRUST,100337
North East Lincolnshire Council,http://statistics.data.gov.uk/id/local-authority/00FC,People And Communities,Childrens Hlth & Family Supp,Childrens Centre Development,Rep Alterations Maint Building,Internal Decoration,GA119,12/20/2012,162283,538.66,Revenue,ARK JOINERY AND BUILDING MAINTENANCE LTD,101126
North East Lincolnshire Council,http://statistics.data.gov.uk/id/local-authority/00FC,People And Communities,Childrens Hlth & Family Supp,Childrens Centre Development,Miscellaneous Expenses,Activities - Service Users,LL114,12/20/2012,165190,REDACTED COMMERCIALLY SENSITIVE,Revenue,SLM COMMUNITY LEISURE LTD,101244
North East Lincolnshire Council,http://statistics.data.gov.uk/id/local-authority/00FC,People And Communities,Childrens Hlth & Family Supp,Integ Local Service Delivery,Other Agencies,Nursery Educ Fund - Standard,PJ139,12/20/2012,166080,365.20,Revenue,REDACTED PERSONAL INFORMATION,REDACTED PERSONAL INFORMATION
North East Lincolnshire Council,http://statistics.data.gov.uk/id/local-authority/00FC,People And Communities,Childrens Hlth & Family Supp,Integ Local Service Delivery,Other Agencies,Nursery Educ Fund - Standard,PJ139,12/20/2012,166056,547.80,Revenue,REDACTED PERSONAL INFORMATION,REDACTED PERSONAL INFORMATION
North East Lincolnshire Council,http://statistics.data.gov.uk/id/local-authority/00FC,People And Communities,Childrens Hlth & Family Supp,Integ Local Service Delivery,Other Agencies,Nursery Educ Fund - Standard,PJ139,12/20/2012,166082,657.36,Revenue,REDACTED PERSONAL INFORMATION,REDACTED PERSONAL INFORMATION
North East Lincolnshire Council,http://statistics.data.gov.uk/id/local-authority/00FC,People And Communities,Childrens Hlth & Family Supp,Integ Local Service Delivery,Other Agencies,Nursery Educ Fund - Standard,PJ139,12/20/2012,166051,846.45,Revenue,FIRST STEPS GRIMSBY LIMITED,101411
North East Lincolnshire Council,http://statistics.data.gov.uk/id/local-authority/00FC,People And Communities,Childrens Hlth & Family Supp,Integ Local Service Delivery,Other Agencies,Nursery Educ Fund - Standard,PJ139,12/20/2012,166068,"1,314.72",Revenue,LITTLE BLOSSOMS DAY NURSERY,101816
North East Lincolnshire Council,http://statistics.data.gov.uk/id/local-authority/00FC,People And Communities,Childrens Hlth & Family Supp,Integ Local Service Delivery,Other Agencies,Nursery Educ Fund - Standard,PJ139,12/20/2012,166069,"1,602.32",Revenue,HUMBERSTON VILLAGE NURSERY,102006
North East Lincolnshire Council,http://statistics.data.gov.uk/id/local-authority/00FC,People And Communities,Childrens Hlth & Family Supp,Integ Local Service Delivery,Other Agencies,Nursery Educ Fund - Standard,PJ139,12/20/2012,166066,"2,224.20",Revenue,REDACTED PERSONAL INFORMATION,REDACTED PERSONAL INFORMATION
North East Lincolnshire Council,http://statistics.data.gov.uk/id/local-authority/00FC,People And Communities,Childrens Hlth & Family Supp,Integ Local Service Delivery,Other Agencies,Nursery Educ Fund - Standard,PJ139,12/20/2012,166070,"2,410.32",Revenue,REDACTED PERSONAL INFORMATION,REDACTED PERSONAL INFORMATION
North East Lincolnshire Council,http://statistics.data.gov.uk/id/local-authority/00FC,People And Communities,Childrens Hlth & Family Supp,Integ Local Service Delivery,Other Agencies,Nursery Educ Fund - Standard,PJ139,12/20/2012,166030,"2,793.29",Revenue,FOR UNDER FIVES LTD,100647
North East Lincolnshire Council,http://statistics.data.gov.uk/id/local-authority/00FC,People And Communities,Childrens Hlth & Family Supp,Integ Local Service Delivery,Other Agencies,Nursery Educ Fund - Standard,PJ139,12/20/2012,166049,"4,108.50",Revenue,WENDOVER PRE-SCHOOL,101350
North East Lincolnshire Council,http://statistics.data.gov.uk/id/local-authority/00FC,People And Communities,Childrens Hlth & Family Supp,Integ Local Service Delivery,Other Agencies,Nursery Educ Fund - Standard,PJ139,12/20/2012,166024,"4,930.20",Revenue,FOR UNDER FIVES LTD,100647
North East Lincolnshire Council,http://statistics.data.gov.uk/id/local-authority/00FC,People And Communities,Childrens Hlth & Family Supp,Integ Local Service Delivery,Other Agencies,Nursery Educ Fund - Standard,PJ139,12/20/2012,166025,"4,930.20",Revenue,FOR UNDER FIVES LTD,100647
North East Lincolnshire Council,http://statistics.data.gov.uk/id/local-authority/00FC,People And Communities,Childrens Hlth & Family Supp,Integ Local Service Delivery,Other Agencies,Nursery Educ Fund - Standard,PJ139,12/20/2012,166067,"5,751.90",Revenue,LITTLE LEGS DAYCARE,101753
North East Lincolnshire Council,http://statistics.data.gov.uk/id/local-authority/00FC,People And Communities,Childrens Hlth & Family Supp,Integ Local Service Delivery,Other Agencies,Nursery Educ Fund - Standard,PJ139,12/20/2012,166021,"6,149.06",Revenue,FOR UNDER FIVES LTD,100647
North East Lincolnshire Council,http://statistics.data.gov.uk/id/local-authority/00FC,People And Communities,Childrens Hlth & Family Supp,Integ Local Service Delivery,Other Agencies,Nursery Educ Fund - Standard,PJ139,12/20/2012,166079,"6,348.38",Revenue,THE AVENUE PLAYGROUP,103168
North East Lincolnshire Council,http://statistics.data.gov.uk/id/local-authority/00FC,People And Communities,Childrens Hlth & Family Supp,Integ Local Service Delivery,Other Agencies,Nursery Educ Fund - Standard,PJ139,12/20/2012,166073,"6,771.60",Revenue,ST CHRISTOPHERS PLAYGROUP,102148
North East Lincolnshire Council,http://statistics.data.gov.uk/id/local-authority/00FC,People And Communities,Childrens Hlth & Family Supp,Integ Local Service Delivery,Other Agencies,Nursery Educ Fund - Standard,PJ139,12/20/2012,166074,"6,771.60",Revenue,HAVEN METHODIST PRE-SCHOOL,102286
North East Lincolnshire Council,http://statistics.data.gov.uk/id/local-authority/00FC,People And Communities,Childrens Hlth & Family Supp,Integ Local Service Delivery,Other Agencies,Nursery Educ Fund - Standard,PJ139,12/20/2012,166061,"7,194.83",Revenue,BUTTERFLIES DAY NURSERY,101694
North East Lincolnshire Council,http://statistics.data.gov.uk/id/local-authority/00FC,People And Communities,Childrens Hlth & Family Supp,Integ Local Service Delivery,Other Agencies,Nursery Educ Fund - Standard,PJ139,12/20/2012,166028,"7,230.96",Revenue,FOR UNDER FIVES LTD,100647
North East Lincolnshire Council,http://statistics.data.gov.uk/id/local-authority/00FC,People And Communities,Childrens Hlth & Family Supp,Integ Local Service Delivery,Other Agencies,Nursery Educ Fund - Standard,PJ139,12/20/2012,166023,"8,464.50",Revenue,FOR UNDER FIVES LTD,100647
North East Lincolnshire Council,http://statistics.data.gov.uk/id/local-authority/00FC,People And Communities,Childrens Hlth & Family Supp,Integ Local Service Delivery,Other Agencies,Nursery Educ Fund - Standard,PJ139,12/3/2012,161608,"8,699.31",Revenue,WIZ KIDZ,102424
North East Lincolnshire Council,http://statistics.data.gov.uk/id/local-authority/00FC,People And Communities,Childrens Hlth & Family Supp,Integ Local Service Delivery,Other Agencies,Nursery Educ Fund - Standard,PJ139,12/20/2012,166054,"8,710.02",Revenue,PRECIOUS TIMES CHILDCARE SERVICES,101420
North East Lincolnshire Council,http://statistics.data.gov.uk/id/local-authority/00FC,People And Communities,Childrens Hlth & Family Supp,Integ Local Service Delivery,Other Agencies,Nursery Educ Fund - Standard,PJ139,12/20/2012,166053,"9,613.89",Revenue,PRECIOUS TIMES CHILDCARE SERVICES,101420
North East Lincolnshire Council,http://statistics.data.gov.uk/id/local-authority/00FC,People And Communities,Childrens Hlth & Family Supp,Integ Local Service Delivery,Other Agencies,Nursery Educ Fund - Standard,PJ139,12/20/2012,166041,"10,175.72",Revenue,CHAPPILLS DAY NURSERY,100998
North East Lincolnshire Council,http://statistics.data.gov.uk/id/local-authority/00FC,People And Communities,Childrens Hlth & Family Supp,Integ Local Service Delivery,Other Agencies,Nursery Educ Fund - Standard,PJ139,12/20/2012,166038,"10,189.08",Revenue,READY TEDDY GO,100973
North East Lincolnshire Council,http://statistics.data.gov.uk/id/local-authority/00FC,People And Communities,Childrens Hlth & Family Supp,Integ Local Service Delivery,Other Agencies,Nursery Educ Fund - Standard,PJ139,12/20/2012,166043,"10,791.66",Revenue,THE CHILDRENS HOUSE,101141
North East Lincolnshire Council,http://statistics.data.gov.uk/id/local-authority/00FC,People And Communities,Childrens Hlth & Family Supp,Integ Local Service Delivery,Other Agencies,Nursery Educ Fund - Standard,PJ139,12/20/2012,166058,"12,078.99",Revenue,CLEETHORPES CHILDCARE,101591
North East Lincolnshire Council,http://statistics.data.gov.uk/id/local-authority/00FC,People And Communities,Childrens Hlth & Family Supp,Integ Local Service Delivery,Other Agencies,Nursery Educ Fund - Standard,PJ139,12/20/2012,166060,"12,352.89",Revenue,GRIMSBY INSTITUTE FOR FHE,101649
North East Lincolnshire Council,http://statistics.data.gov.uk/id/local-authority/00FC,People And Communities,Childrens Hlth & Family Supp,Integ Local Service Delivery,Other Agencies,Nursery Educ Fund - Standard,PJ139,12/20/2012,166087,"12,696.75",Revenue,ORMISTON SOUTH PARADE ACADEMY,111750
North East Lincolnshire Council,http://statistics.data.gov.uk/id/local-authority/00FC,People And Communities,Childrens Hlth & Family Supp,Integ Local Service Delivery,Other Agencies,Nursery Educ Fund - Standard,PJ139,12/20/2012,166042,"12,982.86",Revenue,HEALING VILLAGE NURSERY,101096
North East Lincolnshire Council,http://statistics.data.gov.uk/id/local-authority/00FC,People And Communities,Childrens Hlth & Family Supp,Integ Local Service Delivery,Other Agencies,Nursery Educ Fund - Standard,PJ139,12/20/2012,166036,"13,558.05",Revenue,CLOVERFIELDS PRE SCHOOL,100971
North East Lincolnshire Council,http://statistics.data.gov.uk/id/local-authority/00FC,People And Communities,Childrens Hlth & Family Supp,Integ Local Service Delivery,Other Agencies,Nursery Educ Fund - Standard,PJ139,12/20/2012,166032,"13,966.43",Revenue,JUDY CLARK PLAYGROUP,100939
North East Lincolnshire Council,http://statistics.data.gov.uk/id/local-authority/00FC,People And Communities,Childrens Hlth & Family Supp,Integ Local Service Delivery,Other Agencies,Nursery Educ Fund - Standard,PJ139,12/20/2012,166037,"14,153.78",Revenue,NEW WALTHAM TRACKERS PLAYGROUP,100972
North East Lincolnshire Council,http://statistics.data.gov.uk/id/local-authority/00FC,People And Communities,Childrens Hlth & Family Supp,Integ Local Service Delivery,Other Agencies,Nursery Educ Fund - Standard,PJ139,12/20/2012,166035,"14,516.70",Revenue,ST JAMES SCHOOL,100940
North East Lincolnshire Council,http://statistics.data.gov.uk/id/local-authority/00FC,People And Communities,Childrens Hlth & Family Supp,Integ Local Service Delivery,Other Agencies,Nursery Educ Fund - Standard,PJ139,12/20/2012,166077,"14,812.88",Revenue,WIZ KIDZ,102424
North East Lincolnshire Council,http://statistics.data.gov.uk/id/local-authority/00FC,People And Communities,Childrens Hlth & Family Supp,Integ Local Service Delivery,Other Agencies,Nursery Educ Fund - Standard,PJ139,12/20/2012,166085,"14,812.88",Revenue,BURSAR PLAYGROUP,111550
North East Lincolnshire Council,http://statistics.data.gov.uk/id/local-authority/00FC,People And Communities,Childrens Hlth & Family Supp,Integ Local Service Delivery,Other Agencies,Nursery Educ Fund - Standard,PJ139,12/20/2012,166046,"15,009.72",Revenue,ST PETERS CHILDREN CENTRE,101322
North East Lincolnshire Council,http://statistics.data.gov.uk/id/local-authority/00FC,People And Communities,Childrens Hlth & Family Supp,Integ Local Service Delivery,Other Agencies,Nursery Educ Fund - Standard,PJ139,12/20/2012,166059,"15,940.98",Revenue,CLEETHORPES CHILDCARE,101591
North East Lincolnshire Council,http://statistics.data.gov.uk/id/local-authority/00FC,People And Communities,Childrens Hlth & Family Supp,Integ Local Service Delivery,Other Agencies,Nursery Educ Fund - Standard,PJ139,12/20/2012,166044,"16,242.27",Revenue,HUMBERSTON C E PRE SCHOOL,101153
North East Lincolnshire Council,http://statistics.data.gov.uk/id/local-authority/00FC,People And Communities,Childrens Hlth & Family Supp,Integ Local Service Delivery,Other Agencies,Nursery Educ Fund - Standard,PJ139,12/20/2012,166057,"16,516.17",Revenue,CLEETHORPES CHILDCARE,101591
North East Lincolnshire Council,http://statistics.data.gov.uk/id/local-authority/00FC,People And Communities,Childrens Hlth & Family Supp,Integ Local Service Delivery,Other Agencies,Nursery Educ Fund - Standard,PJ139,12/20/2012,166063,"16,516.17",Revenue,ST MARGARETS PRE-SCHOOL,101724
North East Lincolnshire Council,http://statistics.data.gov.uk/id/local-authority/00FC,People And Communities,Childrens Hlth & Family Supp,Integ Local Service Delivery,Other Agencies,Nursery Educ Fund - Standard,PJ139,12/20/2012,166084,"25,719.21",Revenue,LISLE MARSDEN CHILDCARE LIMITED,110493
North East Lincolnshire Council,http://statistics.data.gov.uk/id/local-authority/00FC,People And Communities,Childrens Hlth & Family Supp,Integ Local Service Delivery,Other Agencies,Nursery Educ Fund - Standard,PJ139,12/20/2012,166045,"26,239.95",Revenue,WELHOLME PRE SCHOOL,101258
North East Lincolnshire Council,http://statistics.data.gov.uk/id/local-authority/00FC,People And Communities,Childrens Hlth & Family Supp,Integ Local Service Delivery,Other Agencies,Nursery Educ Fund - Standard,PJ139,12/20/2012,166083,"38,373.39",Revenue,WALTHAM LEAS PRE-SCHOOL,108236
North East Lincolnshire Council,http://statistics.data.gov.uk/id/local-authority/00FC,People And Communities,Childrens Hlth & Family Supp,Integ Local Service Delivery,Private Contractors,Third Party Prov - Private,PH101,12/20/2012,166055,"6,000.00",Revenue,PRECIOUS TIMES CHILDCARE SERVICES,101420
North East Lincolnshire Council,http://statistics.data.gov.uk/id/local-authority/00FC,People And Communities,Childrens Hlth & Family Supp,Integ Local Service Delivery,Private Contractors,Third Party Prov - Private,PH101,12/10/2012,162245,"3,000.00",Revenue,VOLUNTARY ACTION NORTH EAST LINCOLNSHIRE,103631
North East Lincolnshire Council,http://statistics.data.gov.uk/id/local-authority/00FC,People And Communities,Childrens Hlth & Family Supp,Integ Local Service Delivery,Other Agencies,Nursery Educ Fund - Standard,PJ139,12/20/2012,166034,403.42,Revenue,ST JAMES SCHOOL,100940
North East Lincolnshire Council,http://statistics.data.gov.uk/id/local-authority/00FC,People And Communities,Childrens Hlth & Family Supp,Integ Local Service Delivery,Other Agencies,Nursery Educ Fund - Standard,PJ139,12/20/2012,166039,403.42,Revenue,READY TEDDY GO,100973
North East Lincolnshire Council,http://statistics.data.gov.uk/id/local-authority/00FC,People And Communities,Childrens Hlth & Family Supp,Integ Local Service Delivery,Other Agencies,Nursery Educ Fund - Standard,PJ139,12/20/2012,166050,403.42,Revenue,FIRST STEPS GRIMSBY LIMITED,101411
North East Lincolnshire Council,http://statistics.data.gov.uk/id/local-authority/00FC,People And Communities,Childrens Hlth & Family Supp,Integ Local Service Delivery,Other Agencies,Nursery Educ Fund - Standard,PJ139,12/20/2012,166064,403.42,Revenue,ST MARGARETS PRE-SCHOOL,101724
North East Lincolnshire Council,http://statistics.data.gov.uk/id/local-authority/00FC,People And Communities,Childrens Hlth & Family Supp,Integ Local Service Delivery,Other Agencies,Nursery Educ Fund - Standard,PJ139,12/20/2012,166065,537.90,Revenue,REDACTED PERSONAL INFORMATION,REDACTED PERSONAL INFORMATION
North East Lincolnshire Council,http://statistics.data.gov.uk/id/local-authority/00FC,People And Communities,Childrens Hlth & Family Supp,Integ Local Service Delivery,Other Agencies,Nursery Educ Fund - Standard,PJ139,12/20/2012,166071,537.90,Revenue,REDACTED PERSONAL INFORMATION,REDACTED PERSONAL INFORMATION
North East Lincolnshire Council,http://statistics.data.gov.uk/id/local-authority/00FC,People And Communities,Childrens Hlth & Family Supp,Integ Local Service Delivery,Other Agencies,Nursery Educ Fund - Standard,PJ139,12/20/2012,166081,537.90,Revenue,REDACTED PERSONAL INFORMATION,REDACTED PERSONAL INFORMATION
North East Lincolnshire Council,http://statistics.data.gov.uk/id/local-authority/00FC,People And Communities,Childrens Hlth & Family Supp,Integ Local Service Delivery,Other Agencies,Nursery Educ Fund - Standard,PJ139,12/20/2012,166078,726.17,Revenue,THE AVENUE PLAYGROUP,103168
North East Lincolnshire Council,http://statistics.data.gov.uk/id/local-authority/00FC,People And Communities,Childrens Hlth & Family Supp,Integ Local Service Delivery,Other Agencies,Nursery Educ Fund - Standard,PJ139,12/20/2012,166031,806.85,Revenue,FOR UNDER FIVES LTD,100647
North East Lincolnshire Council,http://statistics.data.gov.uk/id/local-authority/00FC,People And Communities,Childrens Hlth & Family Supp,Integ Local Service Delivery,Other Agencies,Nursery Educ Fund - Standard,PJ139,12/20/2012,166033,806.85,Revenue,JUDY CLARK PLAYGROUP,100939
North East Lincolnshire Council,http://statistics.data.gov.uk/id/local-authority/00FC,People And Communities,Childrens Hlth & Family Supp,Integ Local Service Delivery,Other Agencies,Nursery Educ Fund - Standard,PJ139,12/20/2012,166047,806.85,Revenue,ST PETERS CHILDREN CENTRE,101322
North East Lincolnshire Council,http://statistics.data.gov.uk/id/local-authority/00FC,People And Communities,Childrens Hlth & Family Supp,Integ Local Service Delivery,Other Agencies,Nursery Educ Fund - Standard,PJ139,12/20/2012,166048,"1,129.59",Revenue,WENDOVER PRE-SCHOOL,101350
North East Lincolnshire Council,http://statistics.data.gov.uk/id/local-authority/00FC,People And Communities,Childrens Hlth & Family Supp,Integ Local Service Delivery,Other Agencies,Nursery Educ Fund - Standard,PJ139,12/20/2012,166075,"1,815.41",Revenue,HAVEN METHODIST PRE-SCHOOL,102286
North East Lincolnshire Council,http://statistics.data.gov.uk/id/local-authority/00FC,People And Communities,Childrens Hlth & Family Supp,Integ Local Service Delivery,Other Agencies,Nursery Educ Fund - Standard,PJ139,12/20/2012,166026,"2,017.12",Revenue,FOR UNDER FIVES LTD,100647
North East Lincolnshire Council,http://statistics.data.gov.uk/id/local-authority/00FC,People And Communities,Childrens Hlth & Family Supp,Integ Local Service Delivery,Other Agencies,Nursery Educ Fund - Standard,PJ139,12/20/2012,166027,"2,017.12",Revenue,FOR UNDER FIVES LTD,100647
North East Lincolnshire Council,http://statistics.data.gov.uk/id/local-authority/00FC,People And Communities,Childrens Hlth & Family Supp,Integ Local Service Delivery,Other Agencies,Nursery Educ Fund - Standard,PJ139,12/20/2012,166040,"2,823.97",Revenue,CHAPPILLS DAY NURSERY,100998
North East Lincolnshire Council,http://statistics.data.gov.uk/id/local-authority/00FC,People And Communities,Childrens Hlth & Family Supp,Integ Local Service Delivery,Other Agencies,Nursery Educ Fund - Standard,PJ139,12/20/2012,166020,"3,227.40",Revenue,FOR UNDER FIVES LTD,100647
North East Lincolnshire Council,http://statistics.data.gov.uk/id/local-authority/00FC,People And Communities,Childrens Hlth & Family Supp,Integ Local Service Delivery,Other Agencies,Nursery Educ Fund - Standard,PJ139,12/20/2012,166052,"3,227.40",Revenue,PRECIOUS TIMES CHILDCARE SERVICES,101420
North East Lincolnshire Council,http://statistics.data.gov.uk/id/local-authority/00FC,People And Communities,Childrens Hlth & Family Supp,Integ Local Service Delivery,Other Agencies,Nursery Educ Fund - Standard,PJ139,12/20/2012,166076,"6,051.37",Revenue,WIZ KIDZ,102424
North East Lincolnshire Council,http://statistics.data.gov.uk/id/local-authority/00FC,People And Communities,Childrens Hlth & Family Supp,Integ Local Service Delivery,Other Agencies,Nursery Educ Fund - Standard,PJ139,12/20/2012,166086,"6,858.22",Revenue,ORMISTON SOUTH PARADE ACADEMY,111750
North East Lincolnshire Council,http://statistics.data.gov.uk/id/local-authority/00FC,People And Communities,Childrens Hlth & Family Supp,Integ Local Service Delivery,Other Agencies,Nursery Educ Fund - Standard,PJ139,12/20/2012,166029,"8,875.35",Revenue,FOR UNDER FIVES LTD,100647
North East Lincolnshire Council,http://statistics.data.gov.uk/id/local-authority/00FC,People And Communities,Childrens Hlth & Family Supp,Integ Local Service Delivery,Other Agencies,Nursery Educ Fund - Standard,PJ139,12/20/2012,166022,"11,295.90",Revenue,FOR UNDER FIVES LTD,100647
North East Lincolnshire Council,http://statistics.data.gov.uk/id/local-authority/00FC,People And Communities,Childrens Hlth & Family Supp,Integ Local Service Delivery,Other Agencies,Nursery Educ Fund - Standard,PJ139,12/20/2012,166062,"13,716.45",Revenue,BUTTERFLIES DAY NURSERY,101694
North East Lincolnshire Council,http://statistics.data.gov.uk/id/local-authority/00FC,People And Communities,Childrens Hlth & Family Supp,Head Of Child Hlth - Fam Supp,Indirect Employee Expenses,Staff Training,EB122,12/5/2012,161917,276.25,Revenue,GOVNET COMMUNICATIONS,101546
North East Lincolnshire Council,http://statistics.data.gov.uk/id/local-authority/00FC,People And Communities,Childrens Hlth & Family Supp,Palliative / Complex Care,Equip / Furniture / Materials,Equipment - Purchase,LA101,12/17/2012,164780,889.00,Revenue,THE ROYAL NATIONAL COLLEGE FOR THE BLIND,112474
North East Lincolnshire Council,http://statistics.data.gov.uk/id/local-authority/00FC,People And Communities,Childrens Hlth & Family Supp,Palliative / Complex Care,Private Contractors,Third Party Prov - Private,PH101,12/20/2012,164779,301.77,Revenue,ARCADIA RECRUITMENT LIMITED,100425
North East Lincolnshire Council,http://statistics.data.gov.uk/id/local-authority/00FC,People And Communities,Childrens Hlth & Family Supp,Palliative / Complex Care,Private Contractors,Third Party Prov - Private,PH101,12/17/2012,164777,301.77,Revenue,ARCADIA RECRUITMENT LIMITED,100425
North East Lincolnshire Council,http://statistics.data.gov.uk/id/local-authority/00FC,People And Communities,Childrens Hlth & Family Supp,Palliative / Complex Care,Private Contractors,Third Party Prov - Private,PH101,12/17/2012,164729,850.00,Revenue,QUALITY TIME CARE LTD,102519
North East Lincolnshire Council,http://statistics.data.gov.uk/id/local-authority/00FC,People And Communities,Childrens Hlth & Family Supp,Palliative / Complex Care,Private Contractors,Third Party Prov - Private,PH101,12/14/2012,164734,"6,206.52",Revenue,INDEPENDENT COMMUNITY CARE MANAGEMENT LTD,105477
North East Lincolnshire Council,http://statistics.data.gov.uk/id/local-authority/00FC,People And Communities,Improved Health,Env Commerce Food & Health,Direct Employee Expenses,Agency Staff,EA105,12/5/2012,162025,958.50,Revenue,OSBORNE RICHARDSON,101354
North East Lincolnshire Council,http://statistics.data.gov.uk/id/local-authority/00FC,People And Communities,Improved Health,Env Commerce Food & Health,Clothes Uniforms And Laundry,Protective Clothing,LC101,12/20/2012,165553,-37.50,Revenue,ARCO LTD,100509
North East Lincolnshire Council,http://statistics.data.gov.uk/id/local-authority/00FC,People And Communities,Improved Health,Env Commerce Food & Health,Miscellaneous Expenses,Environmental/Health Analysis,LL120,12/5/2012,158454,286.00,Revenue,EXOVA (UK) LTD,103156
North East Lincolnshire Council,http://statistics.data.gov.uk/id/local-authority/00FC,People And Communities,Improved Health,Trading Standards,Direct Employee Expenses,Agency Staff,EA105,12/5/2012,162012,960.00,Revenue,KENYON BLOCK CONSULTANTS,101878
North East Lincolnshire Council,http://statistics.data.gov.uk/id/local-authority/00FC,People And Communities,Improved Health,Trading Standards,Direct Employee Expenses,Agency Staff,EA105,12/20/2012,165951,"1,120.00",Revenue,KENYON BLOCK CONSULTANTS,101878
North East Lincolnshire Council,http://statistics.data.gov.uk/id/local-authority/00FC,People And Communities,Improved Health,Trading Standards,Direct Employee Expenses,Agency Staff,EA105,12/20/2012,165954,"1,120.00",Revenue,KENYON BLOCK CONSULTANTS,101878
North East Lincolnshire Council,http://statistics.data.gov.uk/id/local-authority/00FC,People And Communities,Improved Health,Supporting People,Other Agencies,Third Pp - Block Subsidy,PJ102,12/20/2012,166183,REDACTED COMMERCIALLY SENSITIVE,Revenue,HANOVER HOUSING ASSOCIATION,100307
North East Lincolnshire Council,http://statistics.data.gov.uk/id/local-authority/00FC,People And Communities,Improved Health,Supporting People,Other Agencies,Third Pp - Block Subsidy,PJ102,12/20/2012,166189,REDACTED COMMERCIALLY SENSITIVE,Revenue,ABBEYFIELD,100331
North East Lincolnshire Council,http://statistics.data.gov.uk/id/local-authority/00FC,People And Communities,Improved Health,Supporting People,Other Agencies,Third Pp - Block Subsidy,PJ102,12/20/2012,166188,REDACTED COMMERCIALLY SENSITIVE,Revenue,ANCHOR TRUST,100327
North East Lincolnshire Council,http://statistics.data.gov.uk/id/local-authority/00FC,People And Communities,Improved Health,Supporting People,Other Agencies,Third Pp - Block Subsidy,PJ102,12/20/2012,166186,REDACTED COMMERCIALLY SENSITIVE,Revenue,HOUSING 21,100320
North East Lincolnshire Council,http://statistics.data.gov.uk/id/local-authority/00FC,People And Communities,Improved Health,Supporting People,Other Agencies,Third Pp - Block Subsidy,PJ102,12/20/2012,166184,REDACTED COMMERCIALLY SENSITIVE,Revenue,HUMBERCARE LTD,100311
North East Lincolnshire Council,http://statistics.data.gov.uk/id/local-authority/00FC,People And Communities,Improved Health,Supporting People,Other Agencies,Third Pp - Block Gross,PJ103,12/20/2012,166201,REDACTED COMMERCIALLY SENSITIVE,Revenue,YORK HOUSING ASSOCIATION LTD,100341
North East Lincolnshire Council,http://statistics.data.gov.uk/id/local-authority/00FC,People And Communities,Improved Health,Supporting People,Other Agencies,Third Pp - Block Subsidy,PJ102,12/20/2012,166194,REDACTED COMMERCIALLY SENSITIVE,Revenue,CREATIVE SUPPORT LTD,107198
North East Lincolnshire Council,http://statistics.data.gov.uk/id/local-authority/00FC,People And Communities,Improved Health,Supporting People,Other Agencies,Third Pp - Block Subsidy,PJ102,12/20/2012,166192,REDACTED COMMERCIALLY SENSITIVE,Revenue,OPEN DOOR (HEALTH) LTD,103147
North East Lincolnshire Council,http://statistics.data.gov.uk/id/local-authority/00FC,People And Communities,Improved Health,Supporting People,Other Agencies,Third Pp - Block Gross,PJ103,12/20/2012,166203,REDACTED COMMERCIALLY SENSITIVE,Revenue,SANCTUARY HOUSING ASSOCIATION,103289
North East Lincolnshire Council,http://statistics.data.gov.uk/id/local-authority/00FC,People And Communities,Improved Health,Supporting People,Other Agencies,Third Pp - Block Gross,PJ103,12/20/2012,166199,REDACTED COMMERCIALLY SENSITIVE,Revenue,CARE,100314
North East Lincolnshire Council,http://statistics.data.gov.uk/id/local-authority/00FC,People And Communities,Improved Health,Supporting People,Other Agencies,Third Pp - Block Subsidy,PJ102,12/20/2012,166185,REDACTED COMMERCIALLY SENSITIVE,Revenue,HICA,100319
North East Lincolnshire Council,http://statistics.data.gov.uk/id/local-authority/00FC,People And Communities,Improved Health,Supporting People,Other Agencies,Third Pp - Block Subsidy,PJ102,12/20/2012,166193,REDACTED COMMERCIALLY SENSITIVE,Revenue,NAVIGO HEALTH AND SOCIAL CARE CIC,104262
North East Lincolnshire Council,http://statistics.data.gov.uk/id/local-authority/00FC,People And Communities,Improved Health,Supporting People,Other Agencies,Third Pp - Block Gross,PJ103,12/20/2012,166198,REDACTED COMMERCIALLY SENSITIVE,Revenue,HUMBERCARE LTD,100311
North East Lincolnshire Council,http://statistics.data.gov.uk/id/local-authority/00FC,People And Communities,Improved Health,Supporting People,Other Agencies,Third Pp - Block Gross,PJ103,12/20/2012,166200,REDACTED COMMERCIALLY SENSITIVE,Revenue,WOMENS AID,100326
North East Lincolnshire Council,http://statistics.data.gov.uk/id/local-authority/00FC,People And Communities,Improved Health,Supporting People,Other Agencies,Third Pp - Block Gross,PJ103,12/20/2012,166196,REDACTED COMMERCIALLY SENSITIVE,Revenue,THE SALVATION ARMY,100309
North East Lincolnshire Council,http://statistics.data.gov.uk/id/local-authority/00FC,People And Communities,Improved Health,Supporting People,Other Agencies,Third Pp - Block Gross,PJ103,12/20/2012,166197,REDACTED COMMERCIALLY SENSITIVE,Revenue,DOORSTEP,100310
North East Lincolnshire Council,http://statistics.data.gov.uk/id/local-authority/00FC,People And Communities,Improved Health,Supporting People,Other Agencies,Third Pp - Block Subsidy,PJ102,12/20/2012,166187,REDACTED COMMERCIALLY SENSITIVE,Revenue,HOUSING & SUPPORT SOLUTIONS,100321
North East Lincolnshire Council,http://statistics.data.gov.uk/id/local-authority/00FC,People And Communities,Improved Health,Supporting People,Other Agencies,Third Pp - Block Gross,PJ103,12/20/2012,166202,REDACTED COMMERCIALLY SENSITIVE,Revenue,LONGHURST AND HAVELOK HOMES LTD,100342
North East Lincolnshire Council,http://statistics.data.gov.uk/id/local-authority/00FC,People And Communities,Improved Health,Supporting People,Other Agencies,Third Pp - Block Gross,PJ103,12/20/2012,166195,REDACTED COMMERCIALLY SENSITIVE,Revenue,GRIMSBY AND CLEETHORPES YMCA,100305
North East Lincolnshire Council,http://statistics.data.gov.uk/id/local-authority/00FC,People And Communities,Improved Health,Supporting People,Other Agencies,Third Pp - Block Subsidy,PJ102,12/20/2012,166191,REDACTED COMMERCIALLY SENSITIVE,Revenue,LONGHURST AND HAVELOK HOMES LTD,100342
North East Lincolnshire Council,http://statistics.data.gov.uk/id/local-authority/00FC,People And Communities,Improved Health,Directors Public Health,Direct Employee Expenses,Pay,EA101,12/10/2012,162979,"4,713.00",Revenue,NORTH EAST LINCOLNSHIRE PRIMARY CARE TRUST,100337
North East Lincolnshire Council,http://statistics.data.gov.uk/id/local-authority/00FC,People And Communities,Improved Health,Directors Public Health,Direct Employee Expenses,Pay,EA101,12/10/2012,162980,"4,813.00",Revenue,NORTH EAST LINCOLNSHIRE PRIMARY CARE TRUST,100337
North East Lincolnshire Council,http://statistics.data.gov.uk/id/local-authority/00FC,People And Communities,Improved Health,Directors Public Health,Direct Employee Expenses,Pay,EA101,12/10/2012,162981,"5,147.00",Revenue,NORTH EAST LINCOLNSHIRE PRIMARY CARE TRUST,100337
North East Lincolnshire Council,http://statistics.data.gov.uk/id/local-authority/00FC,People And Communities,Improved Health,Directors Public Health,Direct Employee Expenses,Pay,EA101,12/3/2012,161147,"9,226.00",Revenue,NORTH EAST LINCOLNSHIRE PRIMARY CARE TRUST,100337
North East Lincolnshire Council,http://statistics.data.gov.uk/id/local-authority/00FC,People And Communities,Improved Health,Health Promotion,Rents,Rent,GC101,12/7/2012,162295,780.00,Revenue,ST HUGHS COMMUNITY CENTRE,103637
North East Lincolnshire Council,http://statistics.data.gov.uk/id/local-authority/00FC,People And Communities,Improved Health,Health Promotion,Communications And Computing,Telephones,LF112,12/3/2012,160969,-53.19,Revenue,COMPUTACENTER UK LTD,101303
North East Lincolnshire Council,http://statistics.data.gov.uk/id/local-authority/00FC,People And Communities,Improved Health,Health Promotion,Communications And Computing,Telephones,LF112,12/18/2012,165582,-9.07,Revenue,COMPUTACENTER UK LTD,101303
North East Lincolnshire Council,http://statistics.data.gov.uk/id/local-authority/00FC,People And Communities,Improved Health,Health Promotion,Private Contractors,Third Party Prov - Private,PH101,12/5/2012,162051,"3,000.00",Revenue,DAVID MATTHEWS,108115
North East Lincolnshire Council,http://statistics.data.gov.uk/id/local-authority/00FC,People And Communities,Improved Health,Health Promotion,Private Contractors,Third Party Prov - Private,PH101,12/4/2012,162050,"3,000.00",Revenue,DAVID MATTHEWS,108115
North East Lincolnshire Council,http://statistics.data.gov.uk/id/local-authority/00FC,People And Communities,Improved Health,Health Promotion,Private Contractors,Third Party Prov - Private,PH101,12/12/2012,163420,500.00,Revenue,WEIGHT WATCHERS UK LTD,101509
North East Lincolnshire Council,http://statistics.data.gov.uk/id/local-authority/00FC,People And Communities,Improved Health,Health Promotion,Private Contractors,Third Party Prov - Private,PH101,12/12/2012,163420,"5,500.00",Revenue,WEIGHT WATCHERS UK LTD,101509
North East Lincolnshire Council,http://statistics.data.gov.uk/id/local-authority/00FC,People And Communities,Improved Health,Health Promotion,Other Agencies,Fees And Commission All Pay,PJ144,12/10/2012,163450,300.00,Revenue,DANCE WITH SEZ,110048
North East Lincolnshire Council,http://statistics.data.gov.uk/id/local-authority/00FC,People And Communities,Improved Health,Health Promotion,Catering,Catering Costs,LB102,12/18/2012,165546,300.00,Revenue,EARTH BOUND MISFITS LTD,100864
North East Lincolnshire Council,http://statistics.data.gov.uk/id/local-authority/00FC,People And Communities,Improved Health,Health Promotion,Contributions To Provisions,Contributions - Other,LK103,12/12/2012,164337,280.00,Revenue,MATT HORNER,107028
North East Lincolnshire Council,http://statistics.data.gov.uk/id/local-authority/00FC,People And Communities,Improved Health,Health Promotion,Contributions To Provisions,Contributions - Other,LK103,12/10/2012,162941,500.00,Revenue,COOMB BRIGGS PRIMARY SCHOOL,112672
North East Lincolnshire Council,http://statistics.data.gov.uk/id/local-authority/00FC,People And Communities,Improved Health,Health Promotion,Contributions To Provisions,Contributions - Other,LK103,12/3/2012,161371,706.00,Revenue,JOHN WHITGIFT ACADEMY,106898
North East Lincolnshire Council,http://statistics.data.gov.uk/id/local-authority/00FC,People And Communities,Improved Health,Health Promotion,Contributions To Provisions,Contributions - Other,LK103,12/18/2012,165547,850.00,Revenue,COMPASS FM,104416
North East Lincolnshire Council,http://statistics.data.gov.uk/id/local-authority/00FC,People And Communities,Improved Health,Health Promotion,Contributions To Provisions,Contributions - Other,LK103,12/4/2012,161372,997.00,Revenue,STANFORD SCHOOL LACEBY,112515
North East Lincolnshire Council,http://statistics.data.gov.uk/id/local-authority/00FC,People And Communities,Improved Health,Health Promotion,Miscellaneous Expenses,Other Supplies & Services,LL110,12/20/2012,165465,"1,500.00",Revenue,YOUNGS SEAFOOD,112762
North East Lincolnshire Council,http://statistics.data.gov.uk/id/local-authority/00FC,People And Communities,Improved Health,Health Promotion,Private Contractors,Third Party Prov - Private,PH101,12/11/2012,124660,287.00,Revenue,REDACTED PERSONAL INFORMATION,REDACTED PERSONAL INFORMATION
North East Lincolnshire Council,http://statistics.data.gov.uk/id/local-authority/00FC,People And Communities,Improved Health,Health Promotion,Private Contractors,Third Party Prov - Private,PH101,12/11/2012,124659,300.00,Revenue,REDACTED PERSONAL INFORMATION,REDACTED PERSONAL INFORMATION
North East Lincolnshire Council,http://statistics.data.gov.uk/id/local-authority/00FC,People And Communities,Improved Health,Health Promotion,Private Contractors,Third Party Prov - Private,PH101,12/3/2012,161373,550.00,Revenue,GRIMSBY TOWN CC COMMUNITY COACHING,112516
North East Lincolnshire Council,http://statistics.data.gov.uk/id/local-authority/00FC,People And Communities,Improved Health,Smoking Cessation,Print Stationery / Gen Off Exp,Advertising,LD104,12/5/2012,152982,335.00,Revenue,LEE CREATIVE MARKETING LTD,104460
North East Lincolnshire Council,http://statistics.data.gov.uk/id/local-authority/00FC,People And Communities,Improved Health,Smoking Cessation,Print Stationery / Gen Off Exp,Printing And Stationery,LD103,12/10/2012,163405,414.98,Revenue,TSW PRINTERS,104853
North East Lincolnshire Council,http://statistics.data.gov.uk/id/local-authority/00FC,People And Communities,Improved Health,Smoking Cessation,Miscellaneous Expenses,Medical Supplies And Services,LL109,12/5/2012,161489,250.00,Revenue,INTERMEDICAL,108219
North East Lincolnshire Council,http://statistics.data.gov.uk/id/local-authority/00FC,People And Communities,Improved Health,Smoking Cessation,Miscellaneous Expenses,Medical Supplies And Services,LL109,12/20/2012,165808,323.62,Revenue,BOOTS THE CHEMIST,103919
North East Lincolnshire Council,http://statistics.data.gov.uk/id/local-authority/00FC,People And Communities,Improved Health,Smoking Cessation,Miscellaneous Expenses,Medical Supplies And Services,LL109,12/11/2012,163761,368.59,Revenue,LLOYDS PHARMACY,103916
North East Lincolnshire Council,http://statistics.data.gov.uk/id/local-authority/00FC,People And Communities,Improved Health,Smoking Cessation,Miscellaneous Expenses,Medical Supplies And Services,LL109,12/5/2012,161489,370.00,Revenue,INTERMEDICAL,108219
North East Lincolnshire Council,http://statistics.data.gov.uk/id/local-authority/00FC,People And Communities,Improved Health,Smoking Cessation,Miscellaneous Expenses,Medical Supplies And Services,LL109,12/20/2012,165810,405.19,Revenue,COTTINGHAM PHARMACY,104020
North East Lincolnshire Council,http://statistics.data.gov.uk/id/local-authority/00FC,People And Communities,Improved Health,Smoking Cessation,Miscellaneous Expenses,Medical Supplies And Services,LL109,12/11/2012,163762,504.51,Revenue,BOOTS THE CHEMIST,103922
North East Lincolnshire Council,http://statistics.data.gov.uk/id/local-authority/00FC,People And Communities,Improved Health,Smoking Cessation,Miscellaneous Expenses,Medical Supplies And Services,LL109,12/11/2012,163780,862.67,Revenue,COHENS CHEMIST,108177
North East Lincolnshire Council,http://statistics.data.gov.uk/id/local-authority/00FC,People And Communities,Improved Health,Smoking Cessation,Miscellaneous Expenses,Medical Supplies And Services,LL109,12/5/2012,161489,"1,960.00",Revenue,INTERMEDICAL,108219
North East Lincolnshire Council,http://statistics.data.gov.uk/id/local-authority/00FC,People And Communities,Improved Health,Smoking Cessation,Rents,Room Hire,GC103,12/7/2012,162269,272.00,Revenue,ASHBY COMMUNITY ASSOCIATION,103002
North East Lincolnshire Council,http://statistics.data.gov.uk/id/local-authority/00FC,People And Communities,Improved Health,Smoking Cessation,Miscellaneous Expenses,Medical Supplies And Services,LL109,12/20/2012,165809,448.56,Revenue,LLOYDS PHARMACY,104014
North East Lincolnshire Council,http://statistics.data.gov.uk/id/local-authority/00FC,People And Communities,Improved Health,Improved Health Operational,Consultancy,Consultancy,PL101,12/20/2012,163620,"7,500.00",Revenue,VOLUNTARY ACTION NORTH EAST LINCOLNSHIRE,103631
North East Lincolnshire Council,http://statistics.data.gov.uk/id/local-authority/00FC,People And Communities,Improved Health,Improved Health Operational,Equip / Furniture / Materials,Health & Safety Supplies,LA116,12/14/2012,164699,260.00,Revenue,TOTAL HYGIENE LTD,100849
North East Lincolnshire Council,http://statistics.data.gov.uk/id/local-authority/00FC,People And Communities,Improved Health,Improved Health Operational,Equip / Furniture / Materials,Health & Safety Supplies,LA116,12/5/2012,162090,267.25,Revenue,INDEPENDENCE MOBILITY LTD,111841
North East Lincolnshire Council,http://statistics.data.gov.uk/id/local-authority/00FC,People And Communities,Improved Health,Improved Health Operational,Equip / Furniture / Materials,Health & Safety Supplies,LA116,12/3/2012,161356,277.50,Revenue,WESTHOLME,100608
North East Lincolnshire Council,http://statistics.data.gov.uk/id/local-authority/00FC,People And Communities,Improved Health,Improved Health Operational,Equip / Furniture / Materials,Health & Safety Supplies,LA116,12/3/2012,161362,282.00,Revenue,SIDHIL LTD,101166
North East Lincolnshire Council,http://statistics.data.gov.uk/id/local-authority/00FC,People And Communities,Improved Health,Improved Health Operational,Equip / Furniture / Materials,Health & Safety Supplies,LA116,12/20/2012,165982,289.44,Revenue,DRIVE MEDICAL,101627
North East Lincolnshire Council,http://statistics.data.gov.uk/id/local-authority/00FC,People And Communities,Improved Health,Improved Health Operational,Equip / Furniture / Materials,Health & Safety Supplies,LA116,12/7/2012,162709,291.00,Revenue,PICKERINGS EUROPE LIMITED,100897
North East Lincolnshire Council,http://statistics.data.gov.uk/id/local-authority/00FC,People And Communities,Improved Health,Improved Health Operational,Equip / Furniture / Materials,Health & Safety Supplies,LA116,12/3/2012,161356,295.00,Revenue,WESTHOLME,100608
North East Lincolnshire Council,http://statistics.data.gov.uk/id/local-authority/00FC,People And Communities,Improved Health,Improved Health Operational,Equip / Furniture / Materials,Health & Safety Supplies,LA116,12/18/2012,164335,298.80,Revenue,KEY MOBILITY,101985
North East Lincolnshire Council,http://statistics.data.gov.uk/id/local-authority/00FC,People And Communities,Improved Health,Improved Health Operational,Equip / Furniture / Materials,Health & Safety Supplies,LA116,12/14/2012,164691,304.20,Revenue,SUNRISE MEDICAL LTD,100990
North East Lincolnshire Council,http://statistics.data.gov.uk/id/local-authority/00FC,People And Communities,Improved Health,Improved Health Operational,Equip / Furniture / Materials,Health & Safety Supplies,LA116,12/20/2012,160974,325.00,Revenue,DRIVE MEDICAL,101627
North East Lincolnshire Council,http://statistics.data.gov.uk/id/local-authority/00FC,People And Communities,Improved Health,Improved Health Operational,Equip / Furniture / Materials,Health & Safety Supplies,LA116,12/7/2012,162710,351.50,Revenue,PICKERINGS EUROPE LIMITED,100897
North East Lincolnshire Council,http://statistics.data.gov.uk/id/local-authority/00FC,People And Communities,Improved Health,Improved Health Operational,Equip / Furniture / Materials,Health & Safety Supplies,LA116,12/17/2012,164773,355.31,Revenue,PICKERINGS EUROPE LIMITED,100897
North East Lincolnshire Council,http://statistics.data.gov.uk/id/local-authority/00FC,People And Communities,Improved Health,Improved Health Operational,Equip / Furniture / Materials,Health & Safety Supplies,LA116,12/20/2012,160973,358.50,Revenue,DRIVE MEDICAL,101627
North East Lincolnshire Council,http://statistics.data.gov.uk/id/local-authority/00FC,People And Communities,Improved Health,Improved Health Operational,Equip / Furniture / Materials,Health & Safety Supplies,LA116,12/10/2012,163321,365.50,Revenue,PICKERINGS EUROPE LIMITED,100897
North East Lincolnshire Council,http://statistics.data.gov.uk/id/local-authority/00FC,People And Communities,Improved Health,Improved Health Operational,Equip / Furniture / Materials,Health & Safety Supplies,LA116,12/20/2012,166006,372.48,Revenue,SUNRISE MEDICAL LTD,100990
North East Lincolnshire Council,http://statistics.data.gov.uk/id/local-authority/00FC,People And Communities,Improved Health,Improved Health Operational,Equip / Furniture / Materials,Health & Safety Supplies,LA116,12/20/2012,160974,390.00,Revenue,DRIVE MEDICAL,101627
North East Lincolnshire Council,http://statistics.data.gov.uk/id/local-authority/00FC,People And Communities,Improved Health,Improved Health Operational,Equip / Furniture / Materials,Health & Safety Supplies,LA116,12/10/2012,163322,409.00,Revenue,NORTHGATE VEHICLE HIRE LTD,109432
North East Lincolnshire Council,http://statistics.data.gov.uk/id/local-authority/00FC,People And Communities,Improved Health,Improved Health Operational,Equip / Furniture / Materials,Health & Safety Supplies,LA116,12/7/2012,162856,452.71,Revenue,F R TOWNSEND & CO LTD,104217
North East Lincolnshire Council,http://statistics.data.gov.uk/id/local-authority/00FC,People And Communities,Improved Health,Improved Health Operational,Equip / Furniture / Materials,Health & Safety Supplies,LA116,12/12/2012,164373,495.00,Revenue,TOTAL HYGIENE LTD,100849
North East Lincolnshire Council,http://statistics.data.gov.uk/id/local-authority/00FC,People And Communities,Improved Health,Improved Health Operational,Equip / Furniture / Materials,Health & Safety Supplies,LA116,12/7/2012,162858,496.00,Revenue,F R TOWNSEND & CO LTD,104217
North East Lincolnshire Council,http://statistics.data.gov.uk/id/local-authority/00FC,People And Communities,Improved Health,Improved Health Operational,Equip / Furniture / Materials,Health & Safety Supplies,LA116,12/18/2012,165550,505.00,Revenue,WESTHOLME,100608
North East Lincolnshire Council,http://statistics.data.gov.uk/id/local-authority/00FC,People And Communities,Improved Health,Improved Health Operational,Equip / Furniture / Materials,Health & Safety Supplies,LA116,12/10/2012,163407,506.82,Revenue,PATTERSON MEDICAL LTD,104008
North East Lincolnshire Council,http://statistics.data.gov.uk/id/local-authority/00FC,People And Communities,Improved Health,Improved Health Operational,Equip / Furniture / Materials,Health & Safety Supplies,LA116,12/18/2012,165551,652.50,Revenue,WESTHOLME,100608
North East Lincolnshire Council,http://statistics.data.gov.uk/id/local-authority/00FC,People And Communities,Improved Health,Improved Health Operational,Equip / Furniture / Materials,Health & Safety Supplies,LA116,12/20/2012,161010,936.00,Revenue,CLARK & PARTNERS LTD,101269
North East Lincolnshire Council,http://statistics.data.gov.uk/id/local-authority/00FC,People And Communities,Improved Health,Improved Health Operational,Equip / Furniture / Materials,Health & Safety Supplies,LA116,12/20/2012,161012,936.00,Revenue,CLARK & PARTNERS LTD,101269
North East Lincolnshire Council,http://statistics.data.gov.uk/id/local-authority/00FC,People And Communities,Improved Health,Improved Health Operational,Equip / Furniture / Materials,Health & Safety Supplies,LA116,12/20/2012,161009,936.00,Revenue,CLARK & PARTNERS LTD,101269
North East Lincolnshire Council,http://statistics.data.gov.uk/id/local-authority/00FC,People And Communities,Improved Health,Improved Health Operational,Equip / Furniture / Materials,Health & Safety Supplies,LA116,12/20/2012,161011,936.00,Revenue,CLARK & PARTNERS LTD,101269
North East Lincolnshire Council,http://statistics.data.gov.uk/id/local-authority/00FC,People And Communities,Improved Health,Improved Health Operational,Equip / Furniture / Materials,Health & Safety Supplies,LA116,12/20/2012,161064,936.00,Revenue,CLARK & PARTNERS LTD,101269
North East Lincolnshire Council,http://statistics.data.gov.uk/id/local-authority/00FC,People And Communities,Improved Health,Improved Health Operational,Equip / Furniture / Materials,Health & Safety Supplies,LA116,12/7/2012,162636,"1,010.14",Revenue,F R TOWNSEND & CO LTD,104217
North East Lincolnshire Council,http://statistics.data.gov.uk/id/local-authority/00FC,People And Communities,Improved Health,Improved Health Operational,Equip / Furniture / Materials,Health & Safety Supplies,LA116,12/20/2012,165671,"1,197.00",Revenue,THE HELPING HAND COMPANY (LEDBURY) LTD,101134
North East Lincolnshire Council,http://statistics.data.gov.uk/id/local-authority/00FC,People And Communities,Improved Health,Improved Health Operational,Equip / Furniture / Materials,Health & Safety Supplies,LA116,12/12/2012,160516,"1,337.50",Revenue,WESTHOLME,100608
North East Lincolnshire Council,http://statistics.data.gov.uk/id/local-authority/00FC,People And Communities,Improved Health,Improved Health Operational,Equip / Furniture / Materials,Health & Safety Supplies,LA116,12/7/2012,162635,"1,650.70",Revenue,F R TOWNSEND & CO LTD,104217
North East Lincolnshire Council,http://statistics.data.gov.uk/id/local-authority/00FC,People And Communities,Improved Health,Improved Health Operational,Equip / Furniture / Materials,Health & Safety Supplies,LA116,12/10/2012,163300,"1,707.00",Revenue,JENX LTD,100833
North East Lincolnshire Council,http://statistics.data.gov.uk/id/local-authority/00FC,People And Communities,Improved Health,Improved Health Operational,Equip / Furniture / Materials,Health & Safety Supplies,LA116,12/10/2012,163365,"2,353.00",Revenue,JENX LTD,100833
North East Lincolnshire Council,http://statistics.data.gov.uk/id/local-authority/00FC,People And Communities,Improved Health,Improved Health Operational,Equip / Furniture / Materials,Health & Safety Supplies,LA116,12/31/2012,166964,"4,687.80",Revenue,LINCOLNSHIRE COUNTY COUNCIL,100389
North East Lincolnshire Council,http://statistics.data.gov.uk/id/local-authority/00FC,People And Communities,Vulnerable Young People,School Access Governor Student,Contract Hire-Operating Leases,Vehicles - Contract Hire,JC101,12/18/2012,165481,REDACTED COMMERCIALLY SENSITIVE,Revenue,MINICABS CLEETHORPES (LINCS) LTD,102124
North East Lincolnshire Council,http://statistics.data.gov.uk/id/local-authority/00FC,People And Communities,Vulnerable Young People,School Access Governor Student,Contract Hire-Operating Leases,Vehicles - Contract Hire,JC101,12/20/2012,166169,REDACTED COMMERCIALLY SENSITIVE,Revenue,LINKS TAXIS,100546
North East Lincolnshire Council,http://statistics.data.gov.uk/id/local-authority/00FC,People And Communities,Vulnerable Young People,School Access Governor Student,Contract Hire-Operating Leases,Vehicles - Contract Hire,JC101,12/5/2012,161930,REDACTED COMMERCIALLY SENSITIVE,Revenue,REVELLS TAXIS (ED/SOC SERV),100559
North East Lincolnshire Council,http://statistics.data.gov.uk/id/local-authority/00FC,People And Communities,Vulnerable Young People,School Access Governor Student,Contract Hire-Operating Leases,Vehicles - Contract Hire,JC101,12/31/2012,166917,REDACTED COMMERCIALLY SENSITIVE,Revenue,REVELLS TAXIS (ED/SOC SERV),100559
North East Lincolnshire Council,http://statistics.data.gov.uk/id/local-authority/00FC,People And Communities,Vulnerable Young People,School Access Governor Student,Contract Hire-Operating Leases,Vehicles - Contract Hire,JC101,12/20/2012,166138,REDACTED COMMERCIALLY SENSITIVE,Revenue,LINKS TAXIS,100546
North East Lincolnshire Council,http://statistics.data.gov.uk/id/local-authority/00FC,People And Communities,Vulnerable Young People,School Access Governor Student,Contract Hire-Operating Leases,Vehicles - Contract Hire,JC101,12/20/2012,166165,REDACTED COMMERCIALLY SENSITIVE,Revenue,LINKS TAXIS,100546
North East Lincolnshire Council,http://statistics.data.gov.uk/id/local-authority/00FC,People And Communities,Vulnerable Young People,School Access Governor Student,Contract Hire-Operating Leases,Vehicles - Contract Hire,JC101,12/5/2012,162151,REDACTED COMMERCIALLY SENSITIVE,Revenue,LINKS TAXIS,100546
North East Lincolnshire Council,http://statistics.data.gov.uk/id/local-authority/00FC,People And Communities,Vulnerable Young People,School Access Governor Student,Contract Hire-Operating Leases,Vehicles - Contract Hire,JC101,12/31/2012,166697,REDACTED COMMERCIALLY SENSITIVE,Revenue,LINKS TAXIS,100546
North East Lincolnshire Council,http://statistics.data.gov.uk/id/local-authority/00FC,People And Communities,Vulnerable Young People,School Access Governor Student,Contract Hire-Operating Leases,Vehicles - Contract Hire,JC101,12/20/2012,165677,REDACTED COMMERCIALLY SENSITIVE,Revenue,COXONS CARS LIMITED,100578
North East Lincolnshire Council,http://statistics.data.gov.uk/id/local-authority/00FC,People And Communities,Vulnerable Young People,School Access Governor Student,Contract Hire-Operating Leases,Vehicles - Contract Hire,JC101,12/20/2012,166171,REDACTED COMMERCIALLY SENSITIVE,Revenue,LINKS TAXIS,100546
North East Lincolnshire Council,http://statistics.data.gov.uk/id/local-authority/00FC,People And Communities,Vulnerable Young People,School Access Governor Student,Contract Hire-Operating Leases,Vehicles - Contract Hire,JC101,12/31/2012,166919,REDACTED COMMERCIALLY SENSITIVE,Revenue,REVELLS TAXIS (ED/SOC SERV),100559
North East Lincolnshire Council,http://statistics.data.gov.uk/id/local-authority/00FC,People And Communities,Vulnerable Young People,School Access Governor Student,Contract Hire-Operating Leases,Vehicles - Contract Hire,JC101,12/12/2012,164401,REDACTED COMMERCIALLY SENSITIVE,Revenue,REVELLS TAXIS (ED/SOC SERV),100559
North East Lincolnshire Council,http://statistics.data.gov.uk/id/local-authority/00FC,People And Communities,Vulnerable Young People,School Access Governor Student,Contract Hire-Operating Leases,Vehicles - Contract Hire,JC101,12/5/2012,161512,REDACTED COMMERCIALLY SENSITIVE,Revenue,LINKS TAXIS,100546
North East Lincolnshire Council,http://statistics.data.gov.uk/id/local-authority/00FC,People And Communities,Vulnerable Young People,School Access Governor Student,Contract Hire-Operating Leases,Vehicles - Contract Hire,JC101,12/5/2012,161514,REDACTED COMMERCIALLY SENSITIVE,Revenue,LINKS TAXIS,100546
North East Lincolnshire Council,http://statistics.data.gov.uk/id/local-authority/00FC,People And Communities,Vulnerable Young People,School Access Governor Student,Contract Hire-Operating Leases,Vehicles - Contract Hire,JC101,12/5/2012,161511,REDACTED COMMERCIALLY SENSITIVE,Revenue,LINKS TAXIS,100546
North East Lincolnshire Council,http://statistics.data.gov.uk/id/local-authority/00FC,People And Communities,Vulnerable Young People,School Access Governor Student,Contract Hire-Operating Leases,Vehicles - Contract Hire,JC101,12/20/2012,166149,REDACTED COMMERCIALLY SENSITIVE,Revenue,LINKS TAXIS,100546
North East Lincolnshire Council,http://statistics.data.gov.uk/id/local-authority/00FC,People And Communities,Vulnerable Young People,School Access Governor Student,Contract Hire-Operating Leases,Vehicles - Contract Hire,JC101,12/20/2012,166136,REDACTED COMMERCIALLY SENSITIVE,Revenue,LINKS TAXIS,100546
North East Lincolnshire Council,http://statistics.data.gov.uk/id/local-authority/00FC,People And Communities,Vulnerable Young People,School Access Governor Student,Contract Hire-Operating Leases,Vehicles - Contract Hire,JC101,12/20/2012,165938,REDACTED COMMERCIALLY SENSITIVE,Revenue,COUNTRY CABS,101999
North East Lincolnshire Council,http://statistics.data.gov.uk/id/local-authority/00FC,People And Communities,Vulnerable Young People,School Access Governor Student,Contract Hire-Operating Leases,Vehicles - Contract Hire,JC101,12/5/2012,161513,REDACTED COMMERCIALLY SENSITIVE,Revenue,LINKS TAXIS,100546
North East Lincolnshire Council,http://statistics.data.gov.uk/id/local-authority/00FC,People And Communities,Vulnerable Young People,School Access Governor Student,Contract Hire-Operating Leases,Vehicles - Contract Hire,JC101,12/31/2012,166181,REDACTED COMMERCIALLY SENSITIVE,Revenue,LINKS TAXIS,100546
North East Lincolnshire Council,http://statistics.data.gov.uk/id/local-authority/00FC,People And Communities,Vulnerable Young People,School Access Governor Student,Contract Hire-Operating Leases,Vehicles - Contract Hire,JC101,12/20/2012,165939,REDACTED COMMERCIALLY SENSITIVE,Revenue,MINICABS CLEETHORPES (LINCS) LTD,102124
North East Lincolnshire Council,http://statistics.data.gov.uk/id/local-authority/00FC,People And Communities,Vulnerable Young People,School Access Governor Student,Contract Hire-Operating Leases,Vehicles - Contract Hire,JC101,12/20/2012,166173,REDACTED COMMERCIALLY SENSITIVE,Revenue,LINKS TAXIS,100546
North East Lincolnshire Council,http://statistics.data.gov.uk/id/local-authority/00FC,People And Communities,Vulnerable Young People,School Access Governor Student,Contract Hire-Operating Leases,Vehicles - Contract Hire,JC101,12/31/2012,166858,REDACTED COMMERCIALLY SENSITIVE,Revenue,AA RADIO CARS LTD,101222
North East Lincolnshire Council,http://statistics.data.gov.uk/id/local-authority/00FC,People And Communities,Vulnerable Young People,School Access Governor Student,Contract Hire-Operating Leases,Vehicles - Contract Hire,JC101,12/18/2012,165491,REDACTED COMMERCIALLY SENSITIVE,Revenue,WHEELCHAIR FRIENDLY TAXI SERVICE,101915
North East Lincolnshire Council,http://statistics.data.gov.uk/id/local-authority/00FC,People And Communities,Vulnerable Young People,School Access Governor Student,Contract Hire-Operating Leases,Vehicles - Contract Hire,JC101,12/31/2012,166926,REDACTED COMMERCIALLY SENSITIVE,Revenue,AA RADIO CARS LTD,101222
North East Lincolnshire Council,http://statistics.data.gov.uk/id/local-authority/00FC,People And Communities,Vulnerable Young People,School Access Governor Student,Contract Hire-Operating Leases,Vehicles - Contract Hire,JC101,12/20/2012,166146,REDACTED COMMERCIALLY SENSITIVE,Revenue,LINKS TAXIS,100546
North East Lincolnshire Council,http://statistics.data.gov.uk/id/local-authority/00FC,People And Communities,Vulnerable Young People,School Access Governor Student,Contract Hire-Operating Leases,Vehicles - Contract Hire,JC101,12/31/2012,166927,REDACTED COMMERCIALLY SENSITIVE,Revenue,AA RADIO CARS LTD,101222
North East Lincolnshire Council,http://statistics.data.gov.uk/id/local-authority/00FC,People And Communities,Vulnerable Young People,School Access Governor Student,Contract Hire-Operating Leases,Vehicles - Contract Hire,JC101,12/20/2012,166156,REDACTED COMMERCIALLY SENSITIVE,Revenue,LINKS TAXIS,100546
North East Lincolnshire Council,http://statistics.data.gov.uk/id/local-authority/00FC,People And Communities,Vulnerable Young People,School Access Governor Student,Contract Hire-Operating Leases,Vehicles - Contract Hire,JC101,12/20/2012,166131,REDACTED COMMERCIALLY SENSITIVE,Revenue,LINKS TAXIS,100546
North East Lincolnshire Council,http://statistics.data.gov.uk/id/local-authority/00FC,People And Communities,Vulnerable Young People,School Access Governor Student,Contract Hire-Operating Leases,Vehicles - Contract Hire,JC101,12/5/2012,161516,REDACTED COMMERCIALLY SENSITIVE,Revenue,LINKS TAXIS,100546
North East Lincolnshire Council,http://statistics.data.gov.uk/id/local-authority/00FC,People And Communities,Vulnerable Young People,School Access Governor Student,Contract Hire-Operating Leases,Vehicles - Contract Hire,JC101,12/18/2012,165545,REDACTED COMMERCIALLY SENSITIVE,Revenue,MINICABS CLEETHORPES (LINCS) LTD,102124
North East Lincolnshire Council,http://statistics.data.gov.uk/id/local-authority/00FC,People And Communities,Vulnerable Young People,School Access Governor Student,Contract Hire-Operating Leases,Vehicles - Contract Hire,JC101,12/20/2012,166161,REDACTED COMMERCIALLY SENSITIVE,Revenue,LINKS TAXIS,100546
North East Lincolnshire Council,http://statistics.data.gov.uk/id/local-authority/00FC,People And Communities,Vulnerable Young People,School Access Governor Student,Contract Hire-Operating Leases,Vehicles - Contract Hire,JC101,12/18/2012,165269,REDACTED COMMERCIALLY SENSITIVE,Revenue,REDACTED PERSONAL INFORMATION,REDACTED PERSONAL INFORMATION
North East Lincolnshire Council,http://statistics.data.gov.uk/id/local-authority/00FC,People And Communities,Vulnerable Young People,School Access Governor Student,Contract Hire-Operating Leases,Vehicles - Contract Hire,JC101,12/20/2012,166165,REDACTED COMMERCIALLY SENSITIVE,Revenue,LINKS TAXIS,100546
North East Lincolnshire Council,http://statistics.data.gov.uk/id/local-authority/00FC,People And Communities,Vulnerable Young People,School Access Governor Student,Contract Hire-Operating Leases,Vehicles - Contract Hire,JC101,12/20/2012,165666,REDACTED COMMERCIALLY SENSITIVE,Revenue,COXONS CARS LIMITED,100578
North East Lincolnshire Council,http://statistics.data.gov.uk/id/local-authority/00FC,People And Communities,Vulnerable Young People,School Access Governor Student,Contract Hire-Operating Leases,Vehicles - Contract Hire,JC101,12/20/2012,166147,REDACTED COMMERCIALLY SENSITIVE,Revenue,LINKS TAXIS,100546
North East Lincolnshire Council,http://statistics.data.gov.uk/id/local-authority/00FC,People And Communities,Vulnerable Young People,School Access Governor Student,Contract Hire-Operating Leases,Vehicles - Contract Hire,JC101,12/20/2012,166130,REDACTED COMMERCIALLY SENSITIVE,Revenue,LINKS TAXIS,100546
North East Lincolnshire Council,http://statistics.data.gov.uk/id/local-authority/00FC,People And Communities,Vulnerable Young People,School Access Governor Student,Contract Hire-Operating Leases,Vehicles - Contract Hire,JC101,12/18/2012,165268,REDACTED COMMERCIALLY SENSITIVE,Revenue,REDACTED PERSONAL INFORMATION,REDACTED PERSONAL INFORMATION
North East Lincolnshire Council,http://statistics.data.gov.uk/id/local-authority/00FC,People And Communities,Vulnerable Young People,School Access Governor Student,Contract Hire-Operating Leases,Vehicles - Contract Hire,JC101,12/3/2012,160627,REDACTED COMMERCIALLY SENSITIVE,Revenue,AMVALE LIMITED,101030
North East Lincolnshire Council,http://statistics.data.gov.uk/id/local-authority/00FC,People And Communities,Vulnerable Young People,School Access Governor Student,Contract Hire-Operating Leases,Vehicles - Contract Hire,JC101,12/31/2012,166925,REDACTED COMMERCIALLY SENSITIVE,Revenue,AMVALE LIMITED,101030
North East Lincolnshire Council,http://statistics.data.gov.uk/id/local-authority/00FC,People And Communities,Vulnerable Young People,School Access Governor Student,Contract Hire-Operating Leases,Vehicles - Contract Hire,JC101,12/31/2012,166915,REDACTED COMMERCIALLY SENSITIVE,Revenue,AMVALE LIMITED,101030
North East Lincolnshire Council,http://statistics.data.gov.uk/id/local-authority/00FC,People And Communities,Vulnerable Young People,School Access Governor Student,Contract Hire-Operating Leases,Vehicles - Contract Hire,JC101,12/31/2012,166857,REDACTED COMMERCIALLY SENSITIVE,Revenue,SHERWOOD TRAVEL,100868
North East Lincolnshire Council,http://statistics.data.gov.uk/id/local-authority/00FC,People And Communities,Vulnerable Young People,School Access Governor Student,Contract Hire-Operating Leases,Vehicles - Contract Hire,JC101,12/31/2012,166931,REDACTED COMMERCIALLY SENSITIVE,Revenue,COOPERS TOURS (LINCS) LTD,111878
North East Lincolnshire Council,http://statistics.data.gov.uk/id/local-authority/00FC,People And Communities,Vulnerable Young People,School Access Governor Student,Contract Hire-Operating Leases,Vehicles - Contract Hire,JC101,12/18/2012,165477,REDACTED COMMERCIALLY SENSITIVE,Revenue,FISHERS OF GRIMSBY,111965
North East Lincolnshire Council,http://statistics.data.gov.uk/id/local-authority/00FC,People And Communities,Vulnerable Young People,School Access Governor Student,Contract Hire-Operating Leases,Vehicles - Contract Hire,JC101,12/18/2012,165260,REDACTED COMMERCIALLY SENSITIVE,Revenue,MILLMAN COACHES,100700
North East Lincolnshire Council,http://statistics.data.gov.uk/id/local-authority/00FC,People And Communities,Vulnerable Young People,School Access Governor Student,Indirect Employee Expenses,Staff Training,EB122,12/17/2012,163377,"1,990.00",Revenue,PHOENIX TRAINING,108095
North East Lincolnshire Council,http://statistics.data.gov.uk/id/local-authority/00FC,People And Communities,Vulnerable Young People,School Access Governor Student,Contract Hire-Operating Leases,Vehicles - Contract Hire,JC101,12/20/2012,166165,REDACTED COMMERCIALLY SENSITIVE,Revenue,LINKS TAXIS,100546
North East Lincolnshire Council,http://statistics.data.gov.uk/id/local-authority/00FC,People And Communities,Vulnerable Young People,School Access Governor Student,Contract Hire-Operating Leases,Vehicles - Contract Hire,JC101,12/5/2012,162149,REDACTED COMMERCIALLY SENSITIVE,Revenue,LINKS TAXIS,100546
North East Lincolnshire Council,http://statistics.data.gov.uk/id/local-authority/00FC,People And Communities,Vulnerable Young People,School Access Governor Student,Contract Hire-Operating Leases,Vehicles - Contract Hire,JC101,12/31/2012,166921,REDACTED COMMERCIALLY SENSITIVE,Revenue,REVELLS TAXIS (ED/SOC SERV),100559
North East Lincolnshire Council,http://statistics.data.gov.uk/id/local-authority/00FC,People And Communities,Vulnerable Young People,School Access Governor Student,Contract Hire-Operating Leases,Vehicles - Contract Hire,JC101,12/20/2012,166167,REDACTED COMMERCIALLY SENSITIVE,Revenue,LINKS TAXIS,100546
North East Lincolnshire Council,http://statistics.data.gov.uk/id/local-authority/00FC,People And Communities,Vulnerable Young People,School Access Governor Student,Contract Hire-Operating Leases,Vehicles - Contract Hire,JC101,12/5/2012,162083,REDACTED COMMERCIALLY SENSITIVE,Revenue,REVELLS TAXIS (ED/SOC SERV),100559
North East Lincolnshire Council,http://statistics.data.gov.uk/id/local-authority/00FC,People And Communities,Vulnerable Young People,School Access Governor Student,Contract Hire-Operating Leases,Vehicles - Contract Hire,JC101,12/20/2012,166160,REDACTED COMMERCIALLY SENSITIVE,Revenue,LINKS TAXIS,100546
North East Lincolnshire Council,http://statistics.data.gov.uk/id/local-authority/00FC,People And Communities,Vulnerable Young People,School Access Governor Student,Contract Hire-Operating Leases,Vehicles - Contract Hire,JC101,12/20/2012,165673,REDACTED COMMERCIALLY SENSITIVE,Revenue,COXONS CARS LIMITED,100578
North East Lincolnshire Council,http://statistics.data.gov.uk/id/local-authority/00FC,People And Communities,Vulnerable Young People,School Access Governor Student,Contract Hire-Operating Leases,Vehicles - Contract Hire,JC101,12/5/2012,161510,REDACTED COMMERCIALLY SENSITIVE,Revenue,LINKS TAXIS,100546
North East Lincolnshire Council,http://statistics.data.gov.uk/id/local-authority/00FC,People And Communities,Vulnerable Young People,School Access Governor Student,Contract Hire-Operating Leases,Vehicles - Contract Hire,JC101,12/5/2012,161509,REDACTED COMMERCIALLY SENSITIVE,Revenue,LINKS TAXIS,100546
North East Lincolnshire Council,http://statistics.data.gov.uk/id/local-authority/00FC,People And Communities,Vulnerable Young People,School Access Governor Student,Contract Hire-Operating Leases,Vehicles - Contract Hire,JC101,12/20/2012,166148,REDACTED COMMERCIALLY SENSITIVE,Revenue,LINKS TAXIS,100546
North East Lincolnshire Council,http://statistics.data.gov.uk/id/local-authority/00FC,People And Communities,Vulnerable Young People,School Access Governor Student,Contract Hire-Operating Leases,Vehicles - Contract Hire,JC101,12/20/2012,166163,REDACTED COMMERCIALLY SENSITIVE,Revenue,LINKS TAXIS,100546
North East Lincolnshire Council,http://statistics.data.gov.uk/id/local-authority/00FC,People And Communities,Vulnerable Young People,School Access Governor Student,Contract Hire-Operating Leases,Vehicles - Contract Hire,JC101,12/20/2012,166157,REDACTED COMMERCIALLY SENSITIVE,Revenue,LINKS TAXIS,100546
North East Lincolnshire Council,http://statistics.data.gov.uk/id/local-authority/00FC,People And Communities,Vulnerable Young People,School Access Governor Student,Contract Hire-Operating Leases,Vehicles - Contract Hire,JC101,12/20/2012,166174,REDACTED COMMERCIALLY SENSITIVE,Revenue,LINKS TAXIS,100546
North East Lincolnshire Council,http://statistics.data.gov.uk/id/local-authority/00FC,People And Communities,Vulnerable Young People,School Access Governor Student,Contract Hire-Operating Leases,Vehicles - Contract Hire,JC101,12/20/2012,166162,REDACTED COMMERCIALLY SENSITIVE,Revenue,LINKS TAXIS,100546
North East Lincolnshire Council,http://statistics.data.gov.uk/id/local-authority/00FC,People And Communities,Vulnerable Young People,School Access Governor Student,Contract Hire-Operating Leases,Vehicles - Contract Hire,JC101,12/31/2012,166932,REDACTED COMMERCIALLY SENSITIVE,Revenue,LINKS TAXIS,100546
North East Lincolnshire Council,http://statistics.data.gov.uk/id/local-authority/00FC,People And Communities,Vulnerable Young People,School Access Governor Student,Contract Hire-Operating Leases,Vehicles - Contract Hire,JC101,12/31/2012,166930,REDACTED COMMERCIALLY SENSITIVE,Revenue,CABLE RADIO CARS,100933
North East Lincolnshire Council,http://statistics.data.gov.uk/id/local-authority/00FC,People And Communities,Vulnerable Young People,School Access Governor Student,Contract Hire-Operating Leases,Vehicles - Contract Hire,JC101,12/5/2012,161507,REDACTED COMMERCIALLY SENSITIVE,Revenue,LINKS TAXIS,100546
North East Lincolnshire Council,http://statistics.data.gov.uk/id/local-authority/00FC,People And Communities,Vulnerable Young People,School Access Governor Student,Contract Hire-Operating Leases,Vehicles - Contract Hire,JC101,12/31/2012,166924,REDACTED COMMERCIALLY SENSITIVE,Revenue,REVELLS TAXIS (ED/SOC SERV),100559
North East Lincolnshire Council,http://statistics.data.gov.uk/id/local-authority/00FC,People And Communities,Vulnerable Young People,School Access Governor Student,Contract Hire-Operating Leases,Vehicles - Contract Hire,JC101,12/5/2012,162232,REDACTED COMMERCIALLY SENSITIVE,Revenue,REVELLS TAXIS (ED/SOC SERV),100559
North East Lincolnshire Council,http://statistics.data.gov.uk/id/local-authority/00FC,People And Communities,Vulnerable Young People,School Access Governor Student,Contract Hire-Operating Leases,Vehicles - Contract Hire,JC101,12/5/2012,161991,REDACTED COMMERCIALLY SENSITIVE,Revenue,REVELLS TAXIS (ED/SOC SERV),100559
North East Lincolnshire Council,http://statistics.data.gov.uk/id/local-authority/00FC,People And Communities,Vulnerable Young People,School Access Governor Student,Contract Hire-Operating Leases,Vehicles - Contract Hire,JC101,12/31/2012,166928,REDACTED COMMERCIALLY SENSITIVE,Revenue,AA RADIO CARS LTD,101222
North East Lincolnshire Council,http://statistics.data.gov.uk/id/local-authority/00FC,People And Communities,Vulnerable Young People,School Access Governor Student,Contract Hire-Operating Leases,Vehicles - Contract Hire,JC101,12/31/2012,166929,REDACTED COMMERCIALLY SENSITIVE,Revenue,AA RADIO CARS LTD,101222
North East Lincolnshire Council,http://statistics.data.gov.uk/id/local-authority/00FC,People And Communities,Vulnerable Young People,School Access Governor Student,Contract Hire-Operating Leases,Vehicles - Contract Hire,JC101,12/10/2012,163373,REDACTED COMMERCIALLY SENSITIVE,Revenue,REVELLS TAXIS (ED/SOC SERV),100559
North East Lincolnshire Council,http://statistics.data.gov.uk/id/local-authority/00FC,People And Communities,Vulnerable Young People,School Access Governor Student,Contract Hire-Operating Leases,Vehicles - Contract Hire,JC101,12/20/2012,166139,REDACTED COMMERCIALLY SENSITIVE,Revenue,LINKS TAXIS,100546
North East Lincolnshire Council,http://statistics.data.gov.uk/id/local-authority/00FC,People And Communities,Vulnerable Young People,School Access Governor Student,Contract Hire-Operating Leases,Vehicles - Contract Hire,JC101,12/31/2012,166922,REDACTED COMMERCIALLY SENSITIVE,Revenue,REVELLS TAXIS (ED/SOC SERV),100559
North East Lincolnshire Council,http://statistics.data.gov.uk/id/local-authority/00FC,People And Communities,Vulnerable Young People,School Access Governor Student,Contract Hire-Operating Leases,Vehicles - Contract Hire,JC101,12/20/2012,166140,REDACTED COMMERCIALLY SENSITIVE,Revenue,LINKS TAXIS,100546
North East Lincolnshire Council,http://statistics.data.gov.uk/id/local-authority/00FC,People And Communities,Vulnerable Young People,School Access Governor Student,Contract Hire-Operating Leases,Vehicles - Contract Hire,JC101,12/20/2012,166175,REDACTED COMMERCIALLY SENSITIVE,Revenue,LINKS TAXIS,100546
North East Lincolnshire Council,http://statistics.data.gov.uk/id/local-authority/00FC,People And Communities,Vulnerable Young People,School Access Governor Student,Contract Hire-Operating Leases,Vehicles - Contract Hire,JC101,12/20/2012,166172,REDACTED COMMERCIALLY SENSITIVE,Revenue,LINKS TAXIS,100546
North East Lincolnshire Council,http://statistics.data.gov.uk/id/local-authority/00FC,People And Communities,Vulnerable Young People,School Access Governor Student,Contract Hire-Operating Leases,Vehicles - Contract Hire,JC101,12/31/2012,166698,REDACTED COMMERCIALLY SENSITIVE,Revenue,LINKS TAXIS,100546
North East Lincolnshire Council,http://statistics.data.gov.uk/id/local-authority/00FC,People And Communities,Vulnerable Young People,School Access Governor Student,Contract Hire-Operating Leases,Vehicles - Contract Hire,JC101,12/31/2012,166182,REDACTED COMMERCIALLY SENSITIVE,Revenue,LINKS TAXIS,100546
North East Lincolnshire Council,http://statistics.data.gov.uk/id/local-authority/00FC,People And Communities,Vulnerable Young People,School Access Governor Student,Contract Hire-Operating Leases,Vehicles - Contract Hire,JC101,12/20/2012,166166,REDACTED COMMERCIALLY SENSITIVE,Revenue,LINKS TAXIS,100546
North East Lincolnshire Council,http://statistics.data.gov.uk/id/local-authority/00FC,People And Communities,Vulnerable Young People,School Access Governor Student,Contract Hire-Operating Leases,Vehicles - Contract Hire,JC101,12/20/2012,166164,REDACTED COMMERCIALLY SENSITIVE,Revenue,LINKS TAXIS,100546
North East Lincolnshire Council,http://statistics.data.gov.uk/id/local-authority/00FC,People And Communities,Vulnerable Young People,School Access Governor Student,Contract Hire-Operating Leases,Vehicles - Contract Hire,JC101,12/5/2012,161508,REDACTED COMMERCIALLY SENSITIVE,Revenue,LINKS TAXIS,100546
North East Lincolnshire Council,http://statistics.data.gov.uk/id/local-authority/00FC,People And Communities,Vulnerable Young People,School Access Governor Student,Contract Hire-Operating Leases,Vehicles - Contract Hire,JC101,12/20/2012,165937,REDACTED COMMERCIALLY SENSITIVE,Revenue,COUNTRY CABS,101999
North East Lincolnshire Council,http://statistics.data.gov.uk/id/local-authority/00FC,People And Communities,Vulnerable Young People,School Access Governor Student,Contract Hire-Operating Leases,Vehicles - Contract Hire,JC101,12/5/2012,161506,REDACTED COMMERCIALLY SENSITIVE,Revenue,LINKS TAXIS,100546
North East Lincolnshire Council,http://statistics.data.gov.uk/id/local-authority/00FC,People And Communities,Vulnerable Young People,School Access Governor Student,Contract Hire-Operating Leases,Vehicles - Contract Hire,JC101,12/20/2012,165940,REDACTED COMMERCIALLY SENSITIVE,Revenue,MINICABS CLEETHORPES (LINCS) LTD,102124
North East Lincolnshire Council,http://statistics.data.gov.uk/id/local-authority/00FC,People And Communities,Vulnerable Young People,School Access Governor Student,Contract Hire-Operating Leases,Vehicles - Contract Hire,JC101,12/20/2012,166137,REDACTED COMMERCIALLY SENSITIVE,Revenue,LINKS TAXIS,100546
North East Lincolnshire Council,http://statistics.data.gov.uk/id/local-authority/00FC,People And Communities,Vulnerable Young People,School Access Governor Student,Contract Hire-Operating Leases,Vehicles - Contract Hire,JC101,12/18/2012,165264,REDACTED COMMERCIALLY SENSITIVE,Revenue,AMVALE LIMITED,101030
North East Lincolnshire Council,http://statistics.data.gov.uk/id/local-authority/00FC,People And Communities,Vulnerable Young People,School Access Governor Student,Contract Hire-Operating Leases,Vehicles - Contract Hire,JC101,12/18/2012,165265,REDACTED COMMERCIALLY SENSITIVE,Revenue,AMVALE LIMITED,101030
North East Lincolnshire Council,http://statistics.data.gov.uk/id/local-authority/00FC,People And Communities,Vulnerable Young People,School Access Governor Student,Contract Hire-Operating Leases,Vehicles - Contract Hire,JC101,12/18/2012,165267,REDACTED COMMERCIALLY SENSITIVE,Revenue,AMVALE LIMITED,101030
North East Lincolnshire Council,http://statistics.data.gov.uk/id/local-authority/00FC,People And Communities,Vulnerable Young People,School Access Governor Student,Contract Hire-Operating Leases,Vehicles - Contract Hire,JC101,12/18/2012,165490,REDACTED COMMERCIALLY SENSITIVE,Revenue,WHEELCHAIR FRIENDLY TAXI SERVICE,101915
North East Lincolnshire Council,http://statistics.data.gov.uk/id/local-authority/00FC,People And Communities,Vulnerable Young People,School Access Governor Student,Contract Hire-Operating Leases,Vehicles - Contract Hire,JC101,12/20/2012,166155,REDACTED COMMERCIALLY SENSITIVE,Revenue,LINKS TAXIS,100546
North East Lincolnshire Council,http://statistics.data.gov.uk/id/local-authority/00FC,People And Communities,Vulnerable Young People,School Access Governor Student,Contract Hire-Operating Leases,Vehicles - Contract Hire,JC101,12/18/2012,165484,REDACTED COMMERCIALLY SENSITIVE,Revenue,MINICABS CLEETHORPES (LINCS) LTD,102124
North East Lincolnshire Council,http://statistics.data.gov.uk/id/local-authority/00FC,People And Communities,Vulnerable Young People,School Access Governor Student,Contract Hire-Operating Leases,Vehicles - Contract Hire,JC101,12/20/2012,166153,REDACTED COMMERCIALLY SENSITIVE,Revenue,LINKS TAXIS,100546
North East Lincolnshire Council,http://statistics.data.gov.uk/id/local-authority/00FC,People And Communities,Vulnerable Young People,School Access Governor Student,Contract Hire-Operating Leases,Vehicles - Contract Hire,JC101,12/20/2012,166135,REDACTED COMMERCIALLY SENSITIVE,Revenue,LINKS TAXIS,100546
North East Lincolnshire Council,http://statistics.data.gov.uk/id/local-authority/00FC,People And Communities,Vulnerable Young People,School Access Governor Student,Contract Hire-Operating Leases,Vehicles - Contract Hire,JC101,12/20/2012,166152,REDACTED COMMERCIALLY SENSITIVE,Revenue,LINKS TAXIS,100546
North East Lincolnshire Council,http://statistics.data.gov.uk/id/local-authority/00FC,People And Communities,Vulnerable Young People,School Access Governor Student,Contract Hire-Operating Leases,Vehicles - Contract Hire,JC101,12/31/2012,166699,REDACTED COMMERCIALLY SENSITIVE,Revenue,LINKS TAXIS,100546
North East Lincolnshire Council,http://statistics.data.gov.uk/id/local-authority/00FC,People And Communities,Vulnerable Young People,School Access Governor Student,Contract Hire-Operating Leases,Vehicles - Contract Hire,JC101,12/18/2012,165270,REDACTED COMMERCIALLY SENSITIVE,Revenue,WHEELCHAIR FRIENDLY TAXI SERVICE,101915
North East Lincolnshire Council,http://statistics.data.gov.uk/id/local-authority/00FC,People And Communities,Vulnerable Young People,School Access Governor Student,Contract Hire-Operating Leases,Vehicles - Contract Hire,JC101,12/20/2012,166129,REDACTED COMMERCIALLY SENSITIVE,Revenue,LINKS TAXIS,100546
North East Lincolnshire Council,http://statistics.data.gov.uk/id/local-authority/00FC,People And Communities,Vulnerable Young People,School Access Governor Student,Contract Hire-Operating Leases,Vehicles - Contract Hire,JC101,12/31/2012,166933,REDACTED COMMERCIALLY SENSITIVE,Revenue,M & J CARS,112068
North East Lincolnshire Council,http://statistics.data.gov.uk/id/local-authority/00FC,People And Communities,Vulnerable Young People,School Access Governor Student,Contract Hire-Operating Leases,Vehicles - Contract Hire,JC101,12/18/2012,165476,REDACTED COMMERCIALLY SENSITIVE,Revenue,MINICABS CLEETHORPES (LINCS) LTD,102124
North East Lincolnshire Council,http://statistics.data.gov.uk/id/local-authority/00FC,People And Communities,Vulnerable Young People,School Access Governor Student,Contract Hire-Operating Leases,Vehicles - Contract Hire,JC101,12/31/2012,166723,REDACTED COMMERCIALLY SENSITIVE,Revenue,LINKS TAXIS,100546
North East Lincolnshire Council,http://statistics.data.gov.uk/id/local-authority/00FC,People And Communities,Vulnerable Young People,School Access Governor Student,Contract Hire-Operating Leases,Vehicles - Contract Hire,JC101,12/20/2012,166150,REDACTED COMMERCIALLY SENSITIVE,Revenue,LINKS TAXIS,100546
North East Lincolnshire Council,http://statistics.data.gov.uk/id/local-authority/00FC,People And Communities,Vulnerable Young People,School Access Governor Student,Contract Hire-Operating Leases,Vehicles - Contract Hire,JC101,12/20/2012,166170,REDACTED COMMERCIALLY SENSITIVE,Revenue,LINKS TAXIS,100546
North East Lincolnshire Council,http://statistics.data.gov.uk/id/local-authority/00FC,People And Communities,Vulnerable Young People,School Access Governor Student,Contract Hire-Operating Leases,Vehicles - Contract Hire,JC101,12/20/2012,166151,REDACTED COMMERCIALLY SENSITIVE,Revenue,LINKS TAXIS,100546
North East Lincolnshire Council,http://statistics.data.gov.uk/id/local-authority/00FC,People And Communities,Vulnerable Young People,School Access Governor Student,Contract Hire-Operating Leases,Vehicles - Contract Hire,JC101,12/20/2012,166132,REDACTED COMMERCIALLY SENSITIVE,Revenue,LINKS TAXIS,100546
North East Lincolnshire Council,http://statistics.data.gov.uk/id/local-authority/00FC,People And Communities,Vulnerable Young People,School Access Governor Student,Contract Hire-Operating Leases,Vehicles - Contract Hire,JC101,12/18/2012,165480,REDACTED COMMERCIALLY SENSITIVE,Revenue,MINICABS CLEETHORPES (LINCS) LTD,102124
North East Lincolnshire Council,http://statistics.data.gov.uk/id/local-authority/00FC,People And Communities,Vulnerable Young People,School Access Governor Student,Contract Hire-Operating Leases,Vehicles - Contract Hire,JC101,12/20/2012,166158,REDACTED COMMERCIALLY SENSITIVE,Revenue,LINKS TAXIS,100546
North East Lincolnshire Council,http://statistics.data.gov.uk/id/local-authority/00FC,People And Communities,Vulnerable Young People,School Access Governor Student,Contract Hire-Operating Leases,Vehicles - Contract Hire,JC101,12/20/2012,166154,REDACTED COMMERCIALLY SENSITIVE,Revenue,LINKS TAXIS,100546
North East Lincolnshire Council,http://statistics.data.gov.uk/id/local-authority/00FC,People And Communities,Vulnerable Young People,School Access Governor Student,Contract Hire-Operating Leases,Vehicles - Contract Hire,JC101,12/18/2012,165475,REDACTED COMMERCIALLY SENSITIVE,Revenue,MINICABS CLEETHORPES (LINCS) LTD,102124
North East Lincolnshire Council,http://statistics.data.gov.uk/id/local-authority/00FC,People And Communities,Vulnerable Young People,School Access Governor Student,Contract Hire-Operating Leases,Vehicles - Contract Hire,JC101,12/20/2012,166177,REDACTED COMMERCIALLY SENSITIVE,Revenue,LINKS TAXIS,100546
North East Lincolnshire Council,http://statistics.data.gov.uk/id/local-authority/00FC,People And Communities,Vulnerable Young People,School Access Governor Student,Contract Hire-Operating Leases,Vehicles - Contract Hire,JC101,12/10/2012,163340,REDACTED COMMERCIALLY SENSITIVE,Revenue,REDACTED PERSONAL INFORMATION,REDACTED PERSONAL INFORMATION
North East Lincolnshire Council,http://statistics.data.gov.uk/id/local-authority/00FC,People And Communities,Vulnerable Young People,School Access Governor Student,Contract Hire-Operating Leases,Vehicles - Contract Hire,JC101,12/20/2012,166168,REDACTED COMMERCIALLY SENSITIVE,Revenue,LINKS TAXIS,100546
North East Lincolnshire Council,http://statistics.data.gov.uk/id/local-authority/00FC,People And Communities,Vulnerable Young People,School Access Governor Student,Contract Hire-Operating Leases,Vehicles - Contract Hire,JC101,12/18/2012,165489,REDACTED COMMERCIALLY SENSITIVE,Revenue,HANSONS AIRPORT EXPRESS,111879
North East Lincolnshire Council,http://statistics.data.gov.uk/id/local-authority/00FC,People And Communities,Vulnerable Young People,School Access Governor Student,Contract Hire-Operating Leases,Vehicles - Contract Hire,JC101,12/18/2012,165479,REDACTED COMMERCIALLY SENSITIVE,Revenue,MINICABS CLEETHORPES (LINCS) LTD,102124
North East Lincolnshire Council,http://statistics.data.gov.uk/id/local-authority/00FC,People And Communities,Vulnerable Young People,School Access Governor Student,Contract Hire-Operating Leases,Vehicles - Contract Hire,JC101,12/20/2012,166159,REDACTED COMMERCIALLY SENSITIVE,Revenue,LINKS TAXIS,100546
North East Lincolnshire Council,http://statistics.data.gov.uk/id/local-authority/00FC,People And Communities,Vulnerable Young People,School Access Governor Student,Contract Hire-Operating Leases,Vehicles - Contract Hire,JC101,12/18/2012,165262,REDACTED COMMERCIALLY SENSITIVE,Revenue,HUXMANOR LTD,101444
North East Lincolnshire Council,http://statistics.data.gov.uk/id/local-authority/00FC,People And Communities,Vulnerable Young People,School Access Governor Student,Contract Hire-Operating Leases,Vehicles - Contract Hire,JC101,12/18/2012,165488,REDACTED COMMERCIALLY SENSITIVE,Revenue,CABBYCARS,100847
North East Lincolnshire Council,http://statistics.data.gov.uk/id/local-authority/00FC,People And Communities,Vulnerable Young People,School Access Governor Student,Contract Hire-Operating Leases,Vehicles - Contract Hire,JC101,12/18/2012,165263,REDACTED COMMERCIALLY SENSITIVE,Revenue,HUXMANOR LTD,101444
North East Lincolnshire Council,http://statistics.data.gov.uk/id/local-authority/00FC,People And Communities,Vulnerable Young People,School Access Governor Student,Contract Hire-Operating Leases,Vehicles - Contract Hire,JC101,12/18/2012,165523,REDACTED COMMERCIALLY SENSITIVE,Revenue,MINICABS CLEETHORPES (LINCS) LTD,102124
North East Lincolnshire Council,http://statistics.data.gov.uk/id/local-authority/00FC,People And Communities,Vulnerable Young People,School Access Governor Student,Contract Hire-Operating Leases,Vehicles - Contract Hire,JC101,12/18/2012,165478,REDACTED COMMERCIALLY SENSITIVE,Revenue,MINICABS CLEETHORPES (LINCS) LTD,102124
North East Lincolnshire Council,http://statistics.data.gov.uk/id/local-authority/00FC,People And Communities,Vulnerable Young People,School Access Governor Student,Contract Hire-Operating Leases,Vehicles - Contract Hire,JC101,12/10/2012,163375,REDACTED COMMERCIALLY SENSITIVE,Revenue,REVELLS TAXIS (ED/SOC SERV),100559
North East Lincolnshire Council,http://statistics.data.gov.uk/id/local-authority/00FC,People And Communities,Vulnerable Young People,School Access Governor Student,Contract Hire-Operating Leases,Vehicles - Contract Hire,JC101,12/18/2012,165261,REDACTED COMMERCIALLY SENSITIVE,Revenue,HUXMANOR LTD,101444
North East Lincolnshire Council,http://statistics.data.gov.uk/id/local-authority/00FC,People And Communities,Vulnerable Young People,School Access Governor Student,Contract Hire-Operating Leases,Vehicles - Contract Hire,JC101,12/31/2012,166847,REDACTED COMMERCIALLY SENSITIVE,Revenue,AMVALE LIMITED,101030
North East Lincolnshire Council,http://statistics.data.gov.uk/id/local-authority/00FC,People And Communities,Vulnerable Young People,School Access Governor Student,Contract Hire-Operating Leases,Vehicles - Contract Hire,JC101,12/31/2012,166844,REDACTED COMMERCIALLY SENSITIVE,Revenue,AMVALE LIMITED,101030
North East Lincolnshire Council,http://statistics.data.gov.uk/id/local-authority/00FC,People And Communities,Vulnerable Young People,School Access Governor Student,Contract Hire-Operating Leases,Vehicles - Contract Hire,JC101,12/18/2012,165486,REDACTED COMMERCIALLY SENSITIVE,Revenue,THE BUS RUN,101522
North East Lincolnshire Council,http://statistics.data.gov.uk/id/local-authority/00FC,People And Communities,Vulnerable Young People,School Access Governor Student,Contract Hire-Operating Leases,Vehicles - Contract Hire,JC101,12/31/2012,166846,REDACTED COMMERCIALLY SENSITIVE,Revenue,AMVALE LIMITED,101030
North East Lincolnshire Council,http://statistics.data.gov.uk/id/local-authority/00FC,People And Communities,Vulnerable Young People,School Access Governor Student,Contract Hire-Operating Leases,Vehicles - Contract Hire,JC101,12/18/2012,165259,REDACTED COMMERCIALLY SENSITIVE,Revenue,MILLMAN COACHES,100700
North East Lincolnshire Council,http://statistics.data.gov.uk/id/local-authority/00FC,People And Communities,Vulnerable Young People,School Access Governor Student,Contract Hire-Operating Leases,Vehicles - Contract Hire,JC101,12/31/2012,166842,REDACTED COMMERCIALLY SENSITIVE,Revenue,AMVALE LIMITED,101030
North East Lincolnshire Council,http://statistics.data.gov.uk/id/local-authority/00FC,People And Communities,Vulnerable Young People,School Access Governor Student,Contract Hire-Operating Leases,Vehicles - Contract Hire,JC101,12/31/2012,166855,REDACTED COMMERCIALLY SENSITIVE,Revenue,AMVALE LIMITED,101030
North East Lincolnshire Council,http://statistics.data.gov.uk/id/local-authority/00FC,People And Communities,Vulnerable Young People,School Access Governor Student,Contract Hire-Operating Leases,Vehicles - Contract Hire,JC101,12/31/2012,166843,REDACTED COMMERCIALLY SENSITIVE,Revenue,AMVALE LIMITED,101030
North East Lincolnshire Council,http://statistics.data.gov.uk/id/local-authority/00FC,People And Communities,Vulnerable Young People,School Access Governor Student,Contract Hire-Operating Leases,Vehicles - Contract Hire,JC101,12/31/2012,166848,REDACTED COMMERCIALLY SENSITIVE,Revenue,AMVALE LIMITED,101030
North East Lincolnshire Council,http://statistics.data.gov.uk/id/local-authority/00FC,People And Communities,Vulnerable Young People,School Access Governor Student,Contributions To Provisions,Contributions - Other,LK103,12/5/2012,122698,697.13,Revenue,REDACTED PERSONAL INFORMATION,REDACTED PERSONAL INFORMATION
North East Lincolnshire Council,http://statistics.data.gov.uk/id/local-authority/00FC,People And Communities,Vulnerable Young People,School Access Governor Student,Contributions To Provisions,Contributions - Other,LK103,12/20/2012,126808,741.97,Revenue,REDACTED PERSONAL INFORMATION,REDACTED PERSONAL INFORMATION
North East Lincolnshire Council,http://statistics.data.gov.uk/id/local-authority/00FC,People And Communities,Vulnerable Young People,Strategic Management,Car Allowances,Travel - Employees,JF101,12/7/2012,162166,-20.07,Revenue,NYS CORPORATE,102444
North East Lincolnshire Council,http://statistics.data.gov.uk/id/local-authority/00FC,People And Communities,Vulnerable Young People,Strategic Management,Car Allowances,Travel - Employees,JF101,12/7/2012,162165,-18.52,Revenue,NYS CORPORATE,102444
North East Lincolnshire Council,http://statistics.data.gov.uk/id/local-authority/00FC,People And Communities,Vulnerable Young People,Strategic Management,Indirect Employee Expenses,Allowances - Employees,EB110,12/14/2012,164930,283.50,Revenue,GRIMSBY & DISTRICT TEACHERS ASSOCIATION,107358
North East Lincolnshire Council,http://statistics.data.gov.uk/id/local-authority/00FC,People And Communities,Vulnerable Young People,Sen/Inclusion,Other Local Authorities,Third Pp - Other Local Auth,PC101,12/10/2012,163311,"6,020.00",Revenue,DKM ASSESSMENT & VERIFICATION LTD,101643
North East Lincolnshire Council,http://statistics.data.gov.uk/id/local-authority/00FC,People And Communities,Vulnerable Young People,Sen/Inclusion,Other Local Authorities,Third Pp - Other Local Auth,PC101,12/7/2012,162376,"11,824.59",Revenue,NAS SERVICES LIMITED,100386
North East Lincolnshire Council,http://statistics.data.gov.uk/id/local-authority/00FC,People And Communities,Vulnerable Young People,Sen/Inclusion,Other Local Authorities,Third Pp - Other Local Auth,PC101,12/10/2012,163319,"13,812.67",Revenue,KISIMUL SCHOOL,100406
North East Lincolnshire Council,http://statistics.data.gov.uk/id/local-authority/00FC,People And Communities,Vulnerable Young People,Sen/Inclusion,Other Local Authorities,Third Pp - Other Local Auth,PC101,12/10/2012,163310,"22,551.74",Revenue,KISIMUL SCHOOL,100406
North East Lincolnshire Council,http://statistics.data.gov.uk/id/local-authority/00FC,People And Communities,Vulnerable Young People,Sen/Inclusion,Other Local Authorities,Third Pp - Other Local Auth,PC101,12/7/2012,162623,"34,667.49",Revenue,HUMBERSTON PARK SPECIAL SCHOOL,107911
North East Lincolnshire Council,http://statistics.data.gov.uk/id/local-authority/00FC,People And Communities,Vulnerable Young People,Sen/Inclusion,Other Local Authorities,Third Pp - Other Local Auth,PC101,12/10/2012,163318,"60,606.33",Revenue,KISIMUL SCHOOL,100406
North East Lincolnshire Council,http://statistics.data.gov.uk/id/local-authority/00FC,People And Communities,Vulnerable Young People,Sen/Inclusion,Other Local Authorities,Third Pp - Other Local Auth,PC101,12/5/2012,161457,"61,731.24",Revenue,NAS SERVICES LIMITED,100386
North East Lincolnshire Council,http://statistics.data.gov.uk/id/local-authority/00FC,People And Communities,Vulnerable Young People,Sen/Inclusion,Other Local Authorities,Third Pp - Other Local Auth,PC101,12/10/2012,163309,"84,787.24",Revenue,KISIMUL SCHOOL,100406
North East Lincolnshire Council,http://statistics.data.gov.uk/id/local-authority/00FC,People And Communities,Vulnerable Young People,Sen/Inclusion,Private Contractors,Third Party Prov - Private,PH101,12/5/2012,162238,"2,970.00",Revenue,REFLEXION CARE GROUP LIMITED,106975
North East Lincolnshire Council,http://statistics.data.gov.uk/id/local-authority/00FC,People And Communities,Vulnerable Young People,Sen/Inclusion,Private Contractors,Third Party Prov - Private,PH101,12/10/2012,163311,"6,300.00",Revenue,DKM ASSESSMENT & VERIFICATION LTD,101643
North East Lincolnshire Council,http://statistics.data.gov.uk/id/local-authority/00FC,People And Communities,Vulnerable Young People,Sen/Inclusion,Private Contractors,Third Party Prov - Private,PH101,12/10/2012,163309,"12,111.88",Revenue,KISIMUL SCHOOL,100406
North East Lincolnshire Council,http://statistics.data.gov.uk/id/local-authority/00FC,People And Communities,Vulnerable Young People,Sen/Inclusion,Private Contractors,Third Party Prov - Private,PH101,12/5/2012,162238,"13,980.20",Revenue,REFLEXION CARE GROUP LIMITED,106975
North East Lincolnshire Council,http://statistics.data.gov.uk/id/local-authority/00FC,People And Communities,Vulnerable Young People,Sen/Inclusion,Private Contractors,Third Party Prov - Private,PH101,12/10/2012,163310,"33,698.26",Revenue,KISIMUL SCHOOL,100406
North East Lincolnshire Council,http://statistics.data.gov.uk/id/local-authority/00FC,People And Communities,Vulnerable Young People,Sen/Inclusion,Private Contractors,Third Party Prov - Private,PH101,12/10/2012,163319,"37,488.00",Revenue,KISIMUL SCHOOL,100406
North East Lincolnshire Council,http://statistics.data.gov.uk/id/local-authority/00FC,People And Communities,Vulnerable Young People,Sen/Inclusion,Direct Employee Expenses,Pay Teachers Supply Cover,EA106,12/5/2012,161936,951.30,Revenue,TEACHING PERSONNEL LTD,101305
North East Lincolnshire Council,http://statistics.data.gov.uk/id/local-authority/00FC,People And Communities,Vulnerable Young People,Sen/Inclusion,Direct Employee Expenses,Agency Staff,EA105,12/17/2012,165014,"1,321.80",Revenue,IRWIN EDUCATION LTD,106910
North East Lincolnshire Council,http://statistics.data.gov.uk/id/local-authority/00FC,People And Communities,Vulnerable Young People,Sen/Inclusion,Direct Employee Expenses,Agency Staff,EA105,12/5/2012,162109,"1,546.80",Revenue,IRWIN EDUCATION LTD,106910
North East Lincolnshire Council,http://statistics.data.gov.uk/id/local-authority/00FC,People And Communities,Vulnerable Young People,Sen/Inclusion,Direct Employee Expenses,Agency Staff,EA105,12/10/2012,163341,"1,546.80",Revenue,IRWIN EDUCATION LTD,106910
North East Lincolnshire Council,http://statistics.data.gov.uk/id/local-authority/00FC,People And Communities,Vulnerable Young People,Sen/Inclusion,Direct Employee Expenses,Agency Staff,EA105,12/5/2012,162110,"2,062.40",Revenue,IRWIN EDUCATION LTD,106910
North East Lincolnshire Council,http://statistics.data.gov.uk/id/local-authority/00FC,People And Communities,Vulnerable Young People,Sen/Inclusion,Equip / Furniture / Materials,Teaching Materials,LA117,12/14/2012,162800,-61.50,Revenue,LYRECO UK LIMITED,101120
North East Lincolnshire Council,http://statistics.data.gov.uk/id/local-authority/00FC,People And Communities,Vulnerable Young People,Sen/Inclusion,Private Contractors,Concessionary Fares,PH104,12/5/2012,161941,REDACTED COMMERCIALLY SENSITIVE,Revenue,LINKS TAXIS,100546
North East Lincolnshire Council,http://statistics.data.gov.uk/id/local-authority/00FC,People And Communities,Vulnerable Young People,Sen/Inclusion,Private Contractors,Third Party Prov - Private,PH101,12/5/2012,161937,396.00,Revenue,NORTH EAST LINCS MOTOR PROJECT,101121
North East Lincolnshire Council,http://statistics.data.gov.uk/id/local-authority/00FC,People And Communities,Vulnerable Young People,Sen/Inclusion,Private Contractors,Third Party Prov - Private,PH101,12/7/2012,162686,440.04,Revenue,CPO MEDIA,102186
North East Lincolnshire Council,http://statistics.data.gov.uk/id/local-authority/00FC,People And Communities,Vulnerable Young People,Sen/Inclusion,Private Contractors,Third Party Prov - Private,PH101,12/5/2012,161938,"2,310.60",Revenue,CPO MEDIA,102186
North East Lincolnshire Council,http://statistics.data.gov.uk/id/local-authority/00FC,People And Communities,Vulnerable Young People,Sen/Inclusion,Private Contractors,Third Party Prov - Private,PH101,12/5/2012,161491,"7,714.00",Revenue,A4E CONSULT LTD,101656
North East Lincolnshire Council,http://statistics.data.gov.uk/id/local-authority/00FC,People And Communities,Vulnerable Young People,Sen/Inclusion,Consultancy,Consultancy,PL101,12/20/2012,160702,389.46,Revenue,GLENN ALLGOOD,109255
North East Lincolnshire Council,http://statistics.data.gov.uk/id/local-authority/00FC,People And Communities,Vulnerable Young People,Sen/Inclusion,Other Local Authorities,Third Pp - Other Local Auth,PC101,12/18/2012,165516,"3,683.00",Revenue,N LINCS & GOOLE HOSPITALS NHS,111074
North East Lincolnshire Council,http://statistics.data.gov.uk/id/local-authority/00FC,People And Communities,Vulnerable Young People,Sen/Inclusion,Other Local Authorities,Third Pp - Other Local Auth,PC101,12/18/2012,165683,"3,683.00",Revenue,N LINCS & GOOLE HOSPITALS NHS,111074
North East Lincolnshire Council,http://statistics.data.gov.uk/id/local-authority/00FC,People And Communities,Vulnerable Young People,Sen/Inclusion,Other Local Authorities,Third Pp - Other Local Auth,PC101,12/18/2012,165682,"3,683.00",Revenue,N LINCS & GOOLE HOSPITALS NHS,111074
North East Lincolnshire Council,http://statistics.data.gov.uk/id/local-authority/00FC,People And Communities,Vulnerable Young People,Sen/Inclusion,Other Local Authorities,Third Pp - Other Local Auth,PC101,12/5/2012,161996,"79,916.66",Revenue,HUMBERSTON PARK SPECIAL SCHOOL,107911
North East Lincolnshire Council,http://statistics.data.gov.uk/id/local-authority/00FC,People And Communities,Vulnerable Young People,Sen/Inclusion,Contributions To Provisions,Contributions - Other,LK103,12/11/2012,163615,400.00,Revenue,DKM ASSESSMENT & VERIFICATION LTD,101643
North East Lincolnshire Council,http://statistics.data.gov.uk/id/local-authority/00FC,People And Communities,Vulnerable Young People,Sen/Inclusion,Contributions To Provisions,Contributions - Other,LK103,12/10/2012,163312,"1,000.00",Revenue,DKM ASSESSMENT & VERIFICATION LTD,101643
North East Lincolnshire Council,http://statistics.data.gov.uk/id/local-authority/00FC,People And Communities,Vulnerable Young People,Sen/Inclusion,Direct Employee Expenses,Agency Staff,EA105,12/12/2012,159984,-950.00,Revenue,DKM ASSESSMENT & VERIFICATION LTD,101643
North East Lincolnshire Council,http://statistics.data.gov.uk/id/local-authority/00FC,People And Communities,Vulnerable Young People,Sen/Inclusion,Direct Employee Expenses,Agency Staff,EA105,12/5/2012,162239,555.50,Revenue,RANDSTAD EDUCATION LTD,102465
North East Lincolnshire Council,http://statistics.data.gov.uk/id/local-authority/00FC,People And Communities,Vulnerable Young People,Sen/Inclusion,Direct Employee Expenses,Agency Staff,EA105,12/31/2012,166590,555.50,Revenue,RANDSTAD EDUCATION LTD,102465
North East Lincolnshire Council,http://statistics.data.gov.uk/id/local-authority/00FC,People And Communities,Vulnerable Young People,Sen/Inclusion,Direct Employee Expenses,Agency Staff,EA105,12/20/2012,166009,555.50,Revenue,RANDSTAD EDUCATION LTD,102465
North East Lincolnshire Council,http://statistics.data.gov.uk/id/local-authority/00FC,People And Communities,Vulnerable Young People,Sen/Inclusion,Direct Employee Expenses,Agency Staff,EA105,12/5/2012,162240,555.50,Revenue,RANDSTAD EDUCATION LTD,102465
North East Lincolnshire Council,http://statistics.data.gov.uk/id/local-authority/00FC,People And Communities,Vulnerable Young People,Sen/Inclusion,Direct Employee Expenses,Agency Supply Teachers,EA104,12/20/2012,165852,480.00,Revenue,PROTOCOL EDUCATION LTD,102438
North East Lincolnshire Council,http://statistics.data.gov.uk/id/local-authority/00FC,People And Communities,Vulnerable Young People,Sen/Inclusion,Direct Employee Expenses,Agency Supply Teachers,EA104,12/20/2012,165853,560.00,Revenue,RANDSTAD EDUCATION LTD,102465
North East Lincolnshire Council,http://statistics.data.gov.uk/id/local-authority/00FC,People And Communities,Vulnerable Young People,Sen/Inclusion,Direct Employee Expenses,Agency Supply Teachers,EA104,12/20/2012,165847,560.00,Revenue,RANDSTAD EDUCATION LTD,102465
North East Lincolnshire Council,http://statistics.data.gov.uk/id/local-authority/00FC,People And Communities,Vulnerable Young People,Sen/Inclusion,Direct Employee Expenses,Agency Supply Teachers,EA104,12/20/2012,165850,560.00,Revenue,RANDSTAD EDUCATION LTD,102465
North East Lincolnshire Council,http://statistics.data.gov.uk/id/local-authority/00FC,People And Communities,Vulnerable Young People,Sen/Inclusion,Direct Employee Expenses,Agency Supply Teachers,EA104,12/20/2012,165855,895.00,Revenue,RANDSTAD EDUCATION LTD,102465
North East Lincolnshire Council,http://statistics.data.gov.uk/id/local-authority/00FC,People And Communities,Vulnerable Young People,Sen/Inclusion,Indirect Employee Expenses,Staff Training,EB122,12/31/2012,166962,250.00,Revenue,THE CAMBRIDGE PARK ACADEMY,112112
North East Lincolnshire Council,http://statistics.data.gov.uk/id/local-authority/00FC,People And Communities,Vulnerable Young People,Sen/Inclusion,Energy Costs,Gas,GB101,12/7/2012,162096,416.57,Revenue,BRITISH GAS TRADING LTD,101507
North East Lincolnshire Council,http://statistics.data.gov.uk/id/local-authority/00FC,People And Communities,Vulnerable Young People,Sen/Inclusion,Energy Costs,Electricity,GB102,12/31/2012,166961,929.59,Revenue,NPOWER LIMITED,101414
North East Lincolnshire Council,http://statistics.data.gov.uk/id/local-authority/00FC,People And Communities,Vulnerable Young People,Sen/Inclusion,Energy Costs,Electricity,GB102,12/7/2012,162624,"1,020.82",Revenue,NPOWER LIMITED,101414
North East Lincolnshire Council,http://statistics.data.gov.uk/id/local-authority/00FC,People And Communities,Vulnerable Young People,Sen/Inclusion,Communications And Computing,Postage,LF111,12/19/2012,165952,-400.00,Revenue,CLEE PARK POST OFFICE,103548
North East Lincolnshire Council,http://statistics.data.gov.uk/id/local-authority/00FC,People And Communities,Vulnerable Young People,Sen/Inclusion,Communications And Computing,Postage,LF111,12/14/2012,164929,400.00,Revenue,CLEE PARK POST OFFICE,103548
North East Lincolnshire Council,http://statistics.data.gov.uk/id/local-authority/00FC,People And Communities,Vulnerable Young People,Sen/Inclusion,Private Contractors,Third Party Prov - Private,PH101,12/20/2012,165848,456.00,Revenue,A4E CONSULT LTD,101656
North East Lincolnshire Council,http://statistics.data.gov.uk/id/local-authority/00FC,People And Communities,Vulnerable Young People,Sen/Inclusion,Contributions To Provisions,Contributions - Other,LK103,12/7/2012,162716,"1,283.36",Revenue,KEYS 7KS,109509
North East Lincolnshire Council,http://statistics.data.gov.uk/id/local-authority/00FC,People And Communities,Vulnerable Young People,Sen/Inclusion,Miscellaneous Expenses,Other Expenses General,LL119,12/5/2012,162005,269.45,Revenue,AQUAPOINT LTD,103326
North East Lincolnshire Council,http://statistics.data.gov.uk/id/local-authority/00FC,People And Communities,Vulnerable Young People,Sen/Inclusion,Miscellaneous Expenses,Exam Fees,LL115,12/5/2012,162120,516.60,Revenue,EDEXCEL LIMITED,101548
North East Lincolnshire Council,http://statistics.data.gov.uk/id/local-authority/00FC,People And Communities,Vulnerable Young People,Placement & Support,Rep Alterations Maint Building,Buildings - Regulations / Insp,GA103,12/14/2012,164735,"1,323.01",Revenue,OFSTED,101836
North East Lincolnshire Council,http://statistics.data.gov.uk/id/local-authority/00FC,People And Communities,Vulnerable Young People,Placement & Support,Print Stationery / Gen Off Exp,Advertising,LD104,12/17/2012,160464,538.88,Revenue,ADOPTION UK,101206
North East Lincolnshire Council,http://statistics.data.gov.uk/id/local-authority/00FC,People And Communities,Vulnerable Young People,Placement & Support,Print Stationery / Gen Off Exp,Advertising,LD104,12/17/2012,160465,538.88,Revenue,ADOPTION UK,101206
North East Lincolnshire Council,http://statistics.data.gov.uk/id/local-authority/00FC,People And Communities,Vulnerable Young People,Placement & Support,Miscellaneous Expenses,Other Expenses General,LL119,12/7/2012,137435,550.00,Revenue,ADOPTION UK,101206
North East Lincolnshire Council,http://statistics.data.gov.uk/id/local-authority/00FC,People And Communities,Vulnerable Young People,Placement & Support,Miscellaneous Expenses,Other Expenses General,LL119,12/10/2012,163455,550.00,Revenue,ADOPTION UK,101206
North East Lincolnshire Council,http://statistics.data.gov.uk/id/local-authority/00FC,People And Communities,Vulnerable Young People,Placement & Support,Miscellaneous Expenses,Other Expenses General,LL119,12/10/2012,163422,"3,845.00",Revenue,HOLLIDAY CREATIVE MARKETING,112397
North East Lincolnshire Council,http://statistics.data.gov.uk/id/local-authority/00FC,People And Communities,Vulnerable Young People,Placement & Support,Other Agencies,Adoption Grant,PJ119,12/18/2012,127073,324.00,Revenue,REDACTED PERSONAL INFORMATION,REDACTED PERSONAL INFORMATION
North East Lincolnshire Council,http://statistics.data.gov.uk/id/local-authority/00FC,People And Communities,Vulnerable Young People,Placement & Support,Other Agencies,Adoption Grant,PJ119,12/11/2012,125227,472.00,Revenue,REDACTED PERSONAL INFORMATION,REDACTED PERSONAL INFORMATION
North East Lincolnshire Council,http://statistics.data.gov.uk/id/local-authority/00FC,People And Communities,Vulnerable Young People,Placement & Support,Other Agencies,Setting Up,PJ111,12/11/2012,125291,495.13,Revenue,REDACTED PERSONAL INFORMATION,REDACTED PERSONAL INFORMATION
North East Lincolnshire Council,http://statistics.data.gov.uk/id/local-authority/00FC,People And Communities,Vulnerable Young People,Placement & Support,Other Agencies,Setting Up,PJ111,12/17/2012,160463,570.00,Revenue,REDACTED PERSONAL INFORMATION,REDACTED PERSONAL INFORMATION
North East Lincolnshire Council,http://statistics.data.gov.uk/id/local-authority/00FC,People And Communities,Vulnerable Young People,Placement & Support,Private Contractors,Third Party Prov - Private,PH101,12/4/2012,161901,515.50,Revenue,FOSTER CARE ASSOCIATES LIMITED,101455
North East Lincolnshire Council,http://statistics.data.gov.uk/id/local-authority/00FC,People And Communities,Vulnerable Young People,Placement & Support,Private Contractors,Third Party Prov - Private,PH101,12/7/2012,161899,515.50,Revenue,FOSTER CARE ASSOCIATES LIMITED,101455
North East Lincolnshire Council,http://statistics.data.gov.uk/id/local-authority/00FC,People And Communities,Vulnerable Young People,Placement & Support,Private Contractors,Third Party Prov - Private,PH101,12/7/2012,161900,515.50,Revenue,FOSTER CARE ASSOCIATES LIMITED,101455
North East Lincolnshire Council,http://statistics.data.gov.uk/id/local-authority/00FC,People And Communities,Vulnerable Young People,Placement & Support,Private Contractors,Third Party Prov - Private,PH101,12/18/2012,165425,685.14,Revenue,DOVE ADOLESCENT SERVICES,111068
North East Lincolnshire Council,http://statistics.data.gov.uk/id/local-authority/00FC,People And Communities,Vulnerable Young People,Placement & Support,Private Contractors,Third Party Prov - Private,PH101,12/5/2012,161914,"1,314.00",Revenue,THE NATIONAL FOSTERING AGENCY,112225
North East Lincolnshire Council,http://statistics.data.gov.uk/id/local-authority/00FC,People And Communities,Vulnerable Young People,Placement & Support,Private Contractors,Third Party Prov - Private,PH101,12/5/2012,161916,"1,445.72",Revenue,THE NATIONAL FOSTERING AGENCY,112225
North East Lincolnshire Council,http://statistics.data.gov.uk/id/local-authority/00FC,People And Communities,Vulnerable Young People,Placement & Support,Private Contractors,Third Party Prov - Private,PH101,12/20/2012,165417,"2,488.80",Revenue,FOSTERING OUTCOMES LIMITED,111721
North East Lincolnshire Council,http://statistics.data.gov.uk/id/local-authority/00FC,People And Communities,Vulnerable Young People,Placement & Support,Private Contractors,Third Party Prov - Private,PH101,12/5/2012,161915,"2,562.89",Revenue,THE NATIONAL FOSTERING AGENCY,112225
North East Lincolnshire Council,http://statistics.data.gov.uk/id/local-authority/00FC,People And Communities,Vulnerable Young People,Placement & Support,Private Contractors,Third Party Prov - Private,PH101,12/7/2012,161897,"3,093.00",Revenue,FOSTER CARE ASSOCIATES LIMITED,101455
North East Lincolnshire Council,http://statistics.data.gov.uk/id/local-authority/00FC,People And Communities,Vulnerable Young People,Placement & Support,Private Contractors,Third Party Prov - Private,PH101,12/7/2012,161898,"3,093.00",Revenue,FOSTER CARE ASSOCIATES LIMITED,101455
North East Lincolnshire Council,http://statistics.data.gov.uk/id/local-authority/00FC,People And Communities,Vulnerable Young People,Placement & Support,Private Contractors,Third Party Prov - Private,PH101,12/7/2012,161896,"3,093.00",Revenue,FOSTER CARE ASSOCIATES LIMITED,101455
North East Lincolnshire Council,http://statistics.data.gov.uk/id/local-authority/00FC,People And Communities,Vulnerable Young People,Placement & Support,Private Contractors,Third Party Prov - Private,PH101,12/7/2012,161692,"3,210.00",Revenue,THE NATIONAL FOSTERING AGENCY,112225
North East Lincolnshire Council,http://statistics.data.gov.uk/id/local-authority/00FC,People And Communities,Vulnerable Young People,Placement & Support,Direct Employee Expenses,Agency Staff,EA105,12/5/2012,162255,"2,333.59",Revenue,MATRIX SCM LTD,108117
North East Lincolnshire Council,http://statistics.data.gov.uk/id/local-authority/00FC,People And Communities,Vulnerable Young People,Placement & Support,Indirect Employee Expenses,Staff Training,EB122,12/20/2012,166008,552.50,Revenue,PARTRIDGE & PRINT LTD,108634
North East Lincolnshire Council,http://statistics.data.gov.uk/id/local-authority/00FC,People And Communities,Vulnerable Young People,Placement & Support,Indirect Employee Expenses,Staff Training,EB122,12/20/2012,166008,637.50,Revenue,PARTRIDGE & PRINT LTD,108634
North East Lincolnshire Council,http://statistics.data.gov.uk/id/local-authority/00FC,People And Communities,Vulnerable Young People,Placement & Support,Print Stationery / Gen Off Exp,Advertising,LD104,12/12/2012,163691,568.76,Revenue,JOHNSTON PUBLISHING LTD,112702
North East Lincolnshire Council,http://statistics.data.gov.uk/id/local-authority/00FC,People And Communities,Vulnerable Young People,Placement & Support,Other Agencies,Panel Expenses,PJ137,12/11/2012,163640,600.00,Revenue,TREE HOUSE CARE FOSTERING SOLUTIONS LTD,101150
North East Lincolnshire Council,http://statistics.data.gov.uk/id/local-authority/00FC,People And Communities,Vulnerable Young People,Placement & Support,Other Agencies,Christmas,PJ109,12/11/2012,125359,-172.00,Revenue,REDACTED PERSONAL INFORMATION,REDACTED PERSONAL INFORMATION
North East Lincolnshire Council,http://statistics.data.gov.uk/id/local-authority/00FC,People And Communities,Vulnerable Young People,Placement & Support,Other Agencies,Child Care Payments,PJ104,12/11/2012,125294,-151.71,Revenue,REDACTED PERSONAL INFORMATION,REDACTED PERSONAL INFORMATION
North East Lincolnshire Council,http://statistics.data.gov.uk/id/local-authority/00FC,People And Communities,Vulnerable Young People,Placement & Support,Other Agencies,Child Care Payments,PJ104,12/18/2012,127033,-128.14,Revenue,REDACTED PERSONAL INFORMATION,REDACTED PERSONAL INFORMATION
North East Lincolnshire Council,http://statistics.data.gov.uk/id/local-authority/00FC,People And Communities,Vulnerable Young People,Placement & Support,Other Agencies,Child Care Payments,PJ104,12/4/2012,122390,-58.50,Revenue,REDACTED PERSONAL INFORMATION,REDACTED PERSONAL INFORMATION
North East Lincolnshire Council,http://statistics.data.gov.uk/id/local-authority/00FC,People And Communities,Vulnerable Young People,Placement & Support,Other Agencies,Child Care Payments,PJ104,12/4/2012,122390,-58.50,Revenue,REDACTED PERSONAL INFORMATION,REDACTED PERSONAL INFORMATION
North East Lincolnshire Council,http://statistics.data.gov.uk/id/local-authority/00FC,People And Communities,Vulnerable Young People,Placement & Support,Other Agencies,Child Care Payments,PJ104,12/11/2012,125098,-50.57,Revenue,REDACTED PERSONAL INFORMATION,REDACTED PERSONAL INFORMATION
North East Lincolnshire Council,http://statistics.data.gov.uk/id/local-authority/00FC,People And Communities,Vulnerable Young People,Placement & Support,Other Agencies,Child Care Payments,PJ104,12/4/2012,122414,-42.29,Revenue,REDACTED PERSONAL INFORMATION,REDACTED PERSONAL INFORMATION
North East Lincolnshire Council,http://statistics.data.gov.uk/id/local-authority/00FC,People And Communities,Vulnerable Young People,Placement & Support,Other Agencies,Child Care Payments,PJ104,12/18/2012,127079,-41.42,Revenue,REDACTED PERSONAL INFORMATION,REDACTED PERSONAL INFORMATION
North East Lincolnshire Council,http://statistics.data.gov.uk/id/local-authority/00FC,People And Communities,Vulnerable Young People,Placement & Support,Other Agencies,Child Care Payments,PJ104,12/18/2012,127079,-41.42,Revenue,REDACTED PERSONAL INFORMATION,REDACTED PERSONAL INFORMATION
North East Lincolnshire Council,http://statistics.data.gov.uk/id/local-authority/00FC,People And Communities,Vulnerable Young People,Placement & Support,Other Agencies,Child Care Payments,PJ104,12/4/2012,122355,-40.00,Revenue,REDACTED PERSONAL INFORMATION,REDACTED PERSONAL INFORMATION
North East Lincolnshire Council,http://statistics.data.gov.uk/id/local-authority/00FC,People And Communities,Vulnerable Young People,Placement & Support,Other Agencies,Child Care Payments,PJ104,12/4/2012,122390,-36.85,Revenue,REDACTED PERSONAL INFORMATION,REDACTED PERSONAL INFORMATION
North East Lincolnshire Council,http://statistics.data.gov.uk/id/local-authority/00FC,People And Communities,Vulnerable Young People,Placement & Support,Other Agencies,Child Care Payments,PJ104,12/4/2012,122354,-21.14,Revenue,REDACTED PERSONAL INFORMATION,REDACTED PERSONAL INFORMATION
North East Lincolnshire Council,http://statistics.data.gov.uk/id/local-authority/00FC,People And Communities,Vulnerable Young People,Placement & Support,Other Agencies,Child Care Payments,PJ104,12/4/2012,122414,-21.14,Revenue,REDACTED PERSONAL INFORMATION,REDACTED PERSONAL INFORMATION
North East Lincolnshire Council,http://statistics.data.gov.uk/id/local-authority/00FC,People And Communities,Vulnerable Young People,Placement & Support,Other Agencies,Child Care Payments,PJ104,12/18/2012,127079,-20.71,Revenue,REDACTED PERSONAL INFORMATION,REDACTED PERSONAL INFORMATION
North East Lincolnshire Council,http://statistics.data.gov.uk/id/local-authority/00FC,People And Communities,Vulnerable Young People,Placement & Support,Other Agencies,Additional Cost,PJ114,12/4/2012,122388,-20.00,Revenue,REDACTED PERSONAL INFORMATION,REDACTED PERSONAL INFORMATION
North East Lincolnshire Council,http://statistics.data.gov.uk/id/local-authority/00FC,People And Communities,Vulnerable Young People,Placement & Support,Other Agencies,Additional Cost,PJ114,12/11/2012,125385,-20.00,Revenue,REDACTED PERSONAL INFORMATION,REDACTED PERSONAL INFORMATION
North East Lincolnshire Council,http://statistics.data.gov.uk/id/local-authority/00FC,People And Communities,Vulnerable Young People,Placement & Support,Other Agencies,Additional Cost,PJ114,12/11/2012,125581,-20.00,Revenue,REDACTED PERSONAL INFORMATION,REDACTED PERSONAL INFORMATION
North East Lincolnshire Council,http://statistics.data.gov.uk/id/local-authority/00FC,People And Communities,Vulnerable Young People,Placement & Support,Other Agencies,Additional Cost,PJ114,12/18/2012,127033,-20.00,Revenue,REDACTED PERSONAL INFORMATION,REDACTED PERSONAL INFORMATION
North East Lincolnshire Council,http://statistics.data.gov.uk/id/local-authority/00FC,People And Communities,Vulnerable Young People,Placement & Support,Other Agencies,Child Care Payments,PJ104,12/18/2012,126944,-16.71,Revenue,REDACTED PERSONAL INFORMATION,REDACTED PERSONAL INFORMATION
North East Lincolnshire Council,http://statistics.data.gov.uk/id/local-authority/00FC,People And Communities,Vulnerable Young People,Placement & Support,Other Agencies,Child Care Payments,PJ104,12/11/2012,125157,-10.86,Revenue,REDACTED PERSONAL INFORMATION,REDACTED PERSONAL INFORMATION
North East Lincolnshire Council,http://statistics.data.gov.uk/id/local-authority/00FC,People And Communities,Vulnerable Young People,Placement & Support,Other Agencies,Additional Cost,PJ114,12/11/2012,125120,250.00,Revenue,REDACTED PERSONAL INFORMATION,REDACTED PERSONAL INFORMATION
North East Lincolnshire Council,http://statistics.data.gov.uk/id/local-authority/00FC,People And Communities,Vulnerable Young People,Placement & Support,Other Agencies,Child Care Payments,PJ104,12/11/2012,125368,252.86,Revenue,REDACTED PERSONAL INFORMATION,REDACTED PERSONAL INFORMATION
North East Lincolnshire Council,http://statistics.data.gov.uk/id/local-authority/00FC,People And Communities,Vulnerable Young People,Placement & Support,Other Agencies,Child Care Payments,PJ104,12/11/2012,125315,256.29,Revenue,REDACTED PERSONAL INFORMATION,REDACTED PERSONAL INFORMATION
North East Lincolnshire Council,http://statistics.data.gov.uk/id/local-authority/00FC,People And Communities,Vulnerable Young People,Placement & Support,Other Agencies,Child Care Payments,PJ104,12/18/2012,127020,256.29,Revenue,REDACTED PERSONAL INFORMATION,REDACTED PERSONAL INFORMATION
North East Lincolnshire Council,http://statistics.data.gov.uk/id/local-authority/00FC,People And Communities,Vulnerable Young People,Placement & Support,Other Agencies,Child Care Payments,PJ104,12/11/2012,125164,282.84,Revenue,REDACTED PERSONAL INFORMATION,REDACTED PERSONAL INFORMATION
North East Lincolnshire Council,http://statistics.data.gov.uk/id/local-authority/00FC,People And Communities,Vulnerable Young People,Placement & Support,Other Agencies,Child Care Payments,PJ104,12/11/2012,125177,282.86,Revenue,REDACTED PERSONAL INFORMATION,REDACTED PERSONAL INFORMATION
North East Lincolnshire Council,http://statistics.data.gov.uk/id/local-authority/00FC,People And Communities,Vulnerable Young People,Placement & Support,Other Agencies,Child Care Payments,PJ104,12/4/2012,122296,299.00,Revenue,REDACTED PERSONAL INFORMATION,REDACTED PERSONAL INFORMATION
North East Lincolnshire Council,http://statistics.data.gov.uk/id/local-authority/00FC,People And Communities,Vulnerable Young People,Placement & Support,Other Agencies,Child Care Payments,PJ104,12/4/2012,122308,299.00,Revenue,REDACTED PERSONAL INFORMATION,REDACTED PERSONAL INFORMATION
North East Lincolnshire Council,http://statistics.data.gov.uk/id/local-authority/00FC,People And Communities,Vulnerable Young People,Placement & Support,Other Agencies,Child Care Payments,PJ104,12/4/2012,122316,299.00,Revenue,REDACTED PERSONAL INFORMATION,REDACTED PERSONAL INFORMATION
North East Lincolnshire Council,http://statistics.data.gov.uk/id/local-authority/00FC,People And Communities,Vulnerable Young People,Placement & Support,Other Agencies,Child Care Payments,PJ104,12/4/2012,122319,299.00,Revenue,REDACTED PERSONAL INFORMATION,REDACTED PERSONAL INFORMATION
North East Lincolnshire Council,http://statistics.data.gov.uk/id/local-authority/00FC,People And Communities,Vulnerable Young People,Placement & Support,Other Agencies,Child Care Payments,PJ104,12/4/2012,122347,299.00,Revenue,REDACTED PERSONAL INFORMATION,REDACTED PERSONAL INFORMATION
North East Lincolnshire Council,http://statistics.data.gov.uk/id/local-authority/00FC,People And Communities,Vulnerable Young People,Placement & Support,Other Agencies,Child Care Payments,PJ104,12/4/2012,122355,299.00,Revenue,REDACTED PERSONAL INFORMATION,REDACTED PERSONAL INFORMATION
North East Lincolnshire Council,http://statistics.data.gov.uk/id/local-authority/00FC,People And Communities,Vulnerable Young People,Placement & Support,Other Agencies,Child Care Payments,PJ104,12/4/2012,122358,299.00,Revenue,REDACTED PERSONAL INFORMATION,REDACTED PERSONAL INFORMATION
North East Lincolnshire Council,http://statistics.data.gov.uk/id/local-authority/00FC,People And Communities,Vulnerable Young People,Placement & Support,Other Agencies,Child Care Payments,PJ104,12/4/2012,122385,299.00,Revenue,REDACTED PERSONAL INFORMATION,REDACTED PERSONAL INFORMATION
North East Lincolnshire Council,http://statistics.data.gov.uk/id/local-authority/00FC,People And Communities,Vulnerable Young People,Placement & Support,Other Agencies,Child Care Payments,PJ104,12/4/2012,122407,299.00,Revenue,REDACTED PERSONAL INFORMATION,REDACTED PERSONAL INFORMATION
North East Lincolnshire Council,http://statistics.data.gov.uk/id/local-authority/00FC,People And Communities,Vulnerable Young People,Placement & Support,Other Agencies,Child Care Payments,PJ104,12/4/2012,122424,299.00,Revenue,REDACTED PERSONAL INFORMATION,REDACTED PERSONAL INFORMATION
North East Lincolnshire Council,http://statistics.data.gov.uk/id/local-authority/00FC,People And Communities,Vulnerable Young People,Placement & Support,Other Agencies,Child Care Payments,PJ104,12/4/2012,122442,299.00,Revenue,REDACTED PERSONAL INFORMATION,REDACTED PERSONAL INFORMATION
North East Lincolnshire Council,http://statistics.data.gov.uk/id/local-authority/00FC,People And Communities,Vulnerable Young People,Placement & Support,Other Agencies,Child Care Payments,PJ104,12/11/2012,125098,299.00,Revenue,REDACTED PERSONAL INFORMATION,REDACTED PERSONAL INFORMATION
North East Lincolnshire Council,http://statistics.data.gov.uk/id/local-authority/00FC,People And Communities,Vulnerable Young People,Placement & Support,Other Agencies,Child Care Payments,PJ104,12/11/2012,125109,299.00,Revenue,REDACTED PERSONAL INFORMATION,REDACTED PERSONAL INFORMATION
North East Lincolnshire Council,http://statistics.data.gov.uk/id/local-authority/00FC,People And Communities,Vulnerable Young People,Placement & Support,Other Agencies,Child Care Payments,PJ104,12/11/2012,125120,299.00,Revenue,REDACTED PERSONAL INFORMATION,REDACTED PERSONAL INFORMATION
North East Lincolnshire Council,http://statistics.data.gov.uk/id/local-authority/00FC,People And Communities,Vulnerable Young People,Placement & Support,Other Agencies,Child Care Payments,PJ104,12/11/2012,125149,299.00,Revenue,REDACTED PERSONAL INFORMATION,REDACTED PERSONAL INFORMATION
North East Lincolnshire Council,http://statistics.data.gov.uk/id/local-authority/00FC,People And Communities,Vulnerable Young People,Placement & Support,Other Agencies,Child Care Payments,PJ104,12/11/2012,125157,299.00,Revenue,REDACTED PERSONAL INFORMATION,REDACTED PERSONAL INFORMATION
North East Lincolnshire Council,http://statistics.data.gov.uk/id/local-authority/00FC,People And Communities,Vulnerable Young People,Placement & Support,Other Agencies,Child Care Payments,PJ104,12/11/2012,125160,299.00,Revenue,REDACTED PERSONAL INFORMATION,REDACTED PERSONAL INFORMATION
North East Lincolnshire Council,http://statistics.data.gov.uk/id/local-authority/00FC,People And Communities,Vulnerable Young People,Placement & Support,Other Agencies,Child Care Payments,PJ104,12/11/2012,125188,299.00,Revenue,REDACTED PERSONAL INFORMATION,REDACTED PERSONAL INFORMATION
North East Lincolnshire Council,http://statistics.data.gov.uk/id/local-authority/00FC,People And Communities,Vulnerable Young People,Placement & Support,Other Agencies,Child Care Payments,PJ104,12/11/2012,125211,299.00,Revenue,REDACTED PERSONAL INFORMATION,REDACTED PERSONAL INFORMATION
North East Lincolnshire Council,http://statistics.data.gov.uk/id/local-authority/00FC,People And Communities,Vulnerable Young People,Placement & Support,Other Agencies,Child Care Payments,PJ104,12/11/2012,125228,299.00,Revenue,REDACTED PERSONAL INFORMATION,REDACTED PERSONAL INFORMATION
North East Lincolnshire Council,http://statistics.data.gov.uk/id/local-authority/00FC,People And Communities,Vulnerable Young People,Placement & Support,Other Agencies,Child Care Payments,PJ104,12/11/2012,125246,299.00,Revenue,REDACTED PERSONAL INFORMATION,REDACTED PERSONAL INFORMATION
North East Lincolnshire Council,http://statistics.data.gov.uk/id/local-authority/00FC,People And Communities,Vulnerable Young People,Placement & Support,Other Agencies,Child Care Payments,PJ104,12/11/2012,125405,299.00,Revenue,REDACTED PERSONAL INFORMATION,REDACTED PERSONAL INFORMATION
North East Lincolnshire Council,http://statistics.data.gov.uk/id/local-authority/00FC,People And Communities,Vulnerable Young People,Placement & Support,Other Agencies,Child Care Payments,PJ104,12/11/2012,125422,299.00,Revenue,REDACTED PERSONAL INFORMATION,REDACTED PERSONAL INFORMATION
North East Lincolnshire Council,http://statistics.data.gov.uk/id/local-authority/00FC,People And Communities,Vulnerable Young People,Placement & Support,Other Agencies,Child Care Payments,PJ104,12/11/2012,125440,299.00,Revenue,REDACTED PERSONAL INFORMATION,REDACTED PERSONAL INFORMATION
North East Lincolnshire Council,http://statistics.data.gov.uk/id/local-authority/00FC,People And Communities,Vulnerable Young People,Placement & Support,Other Agencies,Child Care Payments,PJ104,12/11/2012,125294,299.00,Revenue,REDACTED PERSONAL INFORMATION,REDACTED PERSONAL INFORMATION
North East Lincolnshire Council,http://statistics.data.gov.uk/id/local-authority/00FC,People And Communities,Vulnerable Young People,Placement & Support,Other Agencies,Child Care Payments,PJ104,12/11/2012,125305,299.00,Revenue,REDACTED PERSONAL INFORMATION,REDACTED PERSONAL INFORMATION
North East Lincolnshire Council,http://statistics.data.gov.uk/id/local-authority/00FC,People And Communities,Vulnerable Young People,Placement & Support,Other Agencies,Child Care Payments,PJ104,12/11/2012,125315,299.00,Revenue,REDACTED PERSONAL INFORMATION,REDACTED PERSONAL INFORMATION
North East Lincolnshire Council,http://statistics.data.gov.uk/id/local-authority/00FC,People And Communities,Vulnerable Young People,Placement & Support,Other Agencies,Child Care Payments,PJ104,12/11/2012,125351,299.00,Revenue,REDACTED PERSONAL INFORMATION,REDACTED PERSONAL INFORMATION
North East Lincolnshire Council,http://statistics.data.gov.uk/id/local-authority/00FC,People And Communities,Vulnerable Young People,Placement & Support,Other Agencies,Child Care Payments,PJ104,12/11/2012,125354,299.00,Revenue,REDACTED PERSONAL INFORMATION,REDACTED PERSONAL INFORMATION
North East Lincolnshire Council,http://statistics.data.gov.uk/id/local-authority/00FC,People And Communities,Vulnerable Young People,Placement & Support,Other Agencies,Child Care Payments,PJ104,12/11/2012,125382,299.00,Revenue,REDACTED PERSONAL INFORMATION,REDACTED PERSONAL INFORMATION
North East Lincolnshire Council,http://statistics.data.gov.uk/id/local-authority/00FC,People And Communities,Vulnerable Young People,Placement & Support,Other Agencies,Child Care Payments,PJ104,12/11/2012,125636,299.00,Revenue,REDACTED PERSONAL INFORMATION,REDACTED PERSONAL INFORMATION
North East Lincolnshire Council,http://statistics.data.gov.uk/id/local-authority/00FC,People And Communities,Vulnerable Young People,Placement & Support,Other Agencies,Child Care Payments,PJ104,12/11/2012,125490,299.00,Revenue,REDACTED PERSONAL INFORMATION,REDACTED PERSONAL INFORMATION
North East Lincolnshire Council,http://statistics.data.gov.uk/id/local-authority/00FC,People And Communities,Vulnerable Young People,Placement & Support,Other Agencies,Child Care Payments,PJ104,12/11/2012,125501,299.00,Revenue,REDACTED PERSONAL INFORMATION,REDACTED PERSONAL INFORMATION
North East Lincolnshire Council,http://statistics.data.gov.uk/id/local-authority/00FC,People And Communities,Vulnerable Young People,Placement & Support,Other Agencies,Child Care Payments,PJ104,12/11/2012,125511,299.00,Revenue,REDACTED PERSONAL INFORMATION,REDACTED PERSONAL INFORMATION
North East Lincolnshire Council,http://statistics.data.gov.uk/id/local-authority/00FC,People And Communities,Vulnerable Young People,Placement & Support,Other Agencies,Child Care Payments,PJ104,12/11/2012,125547,299.00,Revenue,REDACTED PERSONAL INFORMATION,REDACTED PERSONAL INFORMATION
North East Lincolnshire Council,http://statistics.data.gov.uk/id/local-authority/00FC,People And Communities,Vulnerable Young People,Placement & Support,Other Agencies,Child Care Payments,PJ104,12/11/2012,125550,299.00,Revenue,REDACTED PERSONAL INFORMATION,REDACTED PERSONAL INFORMATION
North East Lincolnshire Council,http://statistics.data.gov.uk/id/local-authority/00FC,People And Communities,Vulnerable Young People,Placement & Support,Other Agencies,Child Care Payments,PJ104,12/11/2012,125568,299.00,Revenue,REDACTED PERSONAL INFORMATION,REDACTED PERSONAL INFORMATION
North East Lincolnshire Council,http://statistics.data.gov.uk/id/local-authority/00FC,People And Communities,Vulnerable Young People,Placement & Support,Other Agencies,Child Care Payments,PJ104,12/11/2012,125578,299.00,Revenue,REDACTED PERSONAL INFORMATION,REDACTED PERSONAL INFORMATION
North East Lincolnshire Council,http://statistics.data.gov.uk/id/local-authority/00FC,People And Communities,Vulnerable Young People,Placement & Support,Other Agencies,Child Care Payments,PJ104,12/11/2012,125581,299.00,Revenue,REDACTED PERSONAL INFORMATION,REDACTED PERSONAL INFORMATION
North East Lincolnshire Council,http://statistics.data.gov.uk/id/local-authority/00FC,People And Communities,Vulnerable Young People,Placement & Support,Other Agencies,Child Care Payments,PJ104,12/11/2012,125601,299.00,Revenue,REDACTED PERSONAL INFORMATION,REDACTED PERSONAL INFORMATION
North East Lincolnshire Council,http://statistics.data.gov.uk/id/local-authority/00FC,People And Communities,Vulnerable Young People,Placement & Support,Other Agencies,Child Care Payments,PJ104,12/11/2012,125618,299.00,Revenue,REDACTED PERSONAL INFORMATION,REDACTED PERSONAL INFORMATION
North East Lincolnshire Council,http://statistics.data.gov.uk/id/local-authority/00FC,People And Communities,Vulnerable Young People,Placement & Support,Other Agencies,Child Care Payments,PJ104,12/18/2012,126937,299.00,Revenue,REDACTED PERSONAL INFORMATION,REDACTED PERSONAL INFORMATION
North East Lincolnshire Council,http://statistics.data.gov.uk/id/local-authority/00FC,People And Communities,Vulnerable Young People,Placement & Support,Other Agencies,Child Care Payments,PJ104,12/18/2012,126948,299.00,Revenue,REDACTED PERSONAL INFORMATION,REDACTED PERSONAL INFORMATION
North East Lincolnshire Council,http://statistics.data.gov.uk/id/local-authority/00FC,People And Communities,Vulnerable Young People,Placement & Support,Other Agencies,Child Care Payments,PJ104,12/18/2012,126959,299.00,Revenue,REDACTED PERSONAL INFORMATION,REDACTED PERSONAL INFORMATION
North East Lincolnshire Council,http://statistics.data.gov.uk/id/local-authority/00FC,People And Communities,Vulnerable Young People,Placement & Support,Other Agencies,Child Care Payments,PJ104,12/18/2012,126998,299.00,Revenue,REDACTED PERSONAL INFORMATION,REDACTED PERSONAL INFORMATION
North East Lincolnshire Council,http://statistics.data.gov.uk/id/local-authority/00FC,People And Communities,Vulnerable Young People,Placement & Support,Other Agencies,Child Care Payments,PJ104,12/18/2012,127002,299.00,Revenue,REDACTED PERSONAL INFORMATION,REDACTED PERSONAL INFORMATION
North East Lincolnshire Council,http://statistics.data.gov.uk/id/local-authority/00FC,People And Communities,Vulnerable Young People,Placement & Support,Other Agencies,Child Care Payments,PJ104,12/18/2012,127030,299.00,Revenue,REDACTED PERSONAL INFORMATION,REDACTED PERSONAL INFORMATION
North East Lincolnshire Council,http://statistics.data.gov.uk/id/local-authority/00FC,People And Communities,Vulnerable Young People,Placement & Support,Other Agencies,Child Care Payments,PJ104,12/18/2012,127033,299.00,Revenue,REDACTED PERSONAL INFORMATION,REDACTED PERSONAL INFORMATION
North East Lincolnshire Council,http://statistics.data.gov.uk/id/local-authority/00FC,People And Communities,Vulnerable Young People,Placement & Support,Other Agencies,Child Care Payments,PJ104,12/18/2012,127053,299.00,Revenue,REDACTED PERSONAL INFORMATION,REDACTED PERSONAL INFORMATION
North East Lincolnshire Council,http://statistics.data.gov.uk/id/local-authority/00FC,People And Communities,Vulnerable Young People,Placement & Support,Other Agencies,Child Care Payments,PJ104,12/18/2012,127072,299.00,Revenue,REDACTED PERSONAL INFORMATION,REDACTED PERSONAL INFORMATION
North East Lincolnshire Council,http://statistics.data.gov.uk/id/local-authority/00FC,People And Communities,Vulnerable Young People,Placement & Support,Other Agencies,Child Care Payments,PJ104,12/18/2012,127094,299.00,Revenue,REDACTED PERSONAL INFORMATION,REDACTED PERSONAL INFORMATION
North East Lincolnshire Council,http://statistics.data.gov.uk/id/local-authority/00FC,People And Communities,Vulnerable Young People,Placement & Support,Other Agencies,Child Care Payments,PJ104,12/11/2012,125157,302.43,Revenue,REDACTED PERSONAL INFORMATION,REDACTED PERSONAL INFORMATION
North East Lincolnshire Council,http://statistics.data.gov.uk/id/local-authority/00FC,People And Communities,Vulnerable Young People,Placement & Support,Other Agencies,Additional Cost,PJ114,12/5/2012,161475,REDACTED COMMERCIALLY SENSITIVE,Revenue,REVELLS TAXIS (ED/SOC SERV),100559
North East Lincolnshire Council,http://statistics.data.gov.uk/id/local-authority/00FC,People And Communities,Vulnerable Young People,Placement & Support,Other Agencies,Child Care Payments,PJ104,12/11/2012,125343,307.57,Revenue,REDACTED PERSONAL INFORMATION,REDACTED PERSONAL INFORMATION
North East Lincolnshire Council,http://statistics.data.gov.uk/id/local-authority/00FC,People And Communities,Vulnerable Young People,Placement & Support,Other Agencies,Child Care Payments,PJ104,12/4/2012,122305,311.00,Revenue,REDACTED PERSONAL INFORMATION,REDACTED PERSONAL INFORMATION
North East Lincolnshire Council,http://statistics.data.gov.uk/id/local-authority/00FC,People And Communities,Vulnerable Young People,Placement & Support,Other Agencies,Child Care Payments,PJ104,12/4/2012,122316,311.00,Revenue,REDACTED PERSONAL INFORMATION,REDACTED PERSONAL INFORMATION
North East Lincolnshire Council,http://statistics.data.gov.uk/id/local-authority/00FC,People And Communities,Vulnerable Young People,Placement & Support,Other Agencies,Child Care Payments,PJ104,12/4/2012,122319,311.00,Revenue,REDACTED PERSONAL INFORMATION,REDACTED PERSONAL INFORMATION
North East Lincolnshire Council,http://statistics.data.gov.uk/id/local-authority/00FC,People And Communities,Vulnerable Young People,Placement & Support,Other Agencies,Child Care Payments,PJ104,12/4/2012,122331,311.00,Revenue,REDACTED PERSONAL INFORMATION,REDACTED PERSONAL INFORMATION
North East Lincolnshire Council,http://statistics.data.gov.uk/id/local-authority/00FC,People And Communities,Vulnerable Young People,Placement & Support,Other Agencies,Child Care Payments,PJ104,12/4/2012,122335,311.00,Revenue,REDACTED PERSONAL INFORMATION,REDACTED PERSONAL INFORMATION
North East Lincolnshire Council,http://statistics.data.gov.uk/id/local-authority/00FC,People And Communities,Vulnerable Young People,Placement & Support,Other Agencies,Child Care Payments,PJ104,12/4/2012,122360,311.00,Revenue,REDACTED PERSONAL INFORMATION,REDACTED PERSONAL INFORMATION
North East Lincolnshire Council,http://statistics.data.gov.uk/id/local-authority/00FC,People And Communities,Vulnerable Young People,Placement & Support,Other Agencies,Child Care Payments,PJ104,12/4/2012,122368,311.00,Revenue,REDACTED PERSONAL INFORMATION,REDACTED PERSONAL INFORMATION
North East Lincolnshire Council,http://statistics.data.gov.uk/id/local-authority/00FC,People And Communities,Vulnerable Young People,Placement & Support,Other Agencies,Child Care Payments,PJ104,12/4/2012,122385,311.00,Revenue,REDACTED PERSONAL INFORMATION,REDACTED PERSONAL INFORMATION
North East Lincolnshire Council,http://statistics.data.gov.uk/id/local-authority/00FC,People And Communities,Vulnerable Young People,Placement & Support,Other Agencies,Child Care Payments,PJ104,12/4/2012,122402,311.00,Revenue,REDACTED PERSONAL INFORMATION,REDACTED PERSONAL INFORMATION
North East Lincolnshire Council,http://statistics.data.gov.uk/id/local-authority/00FC,People And Communities,Vulnerable Young People,Placement & Support,Other Agencies,Child Care Payments,PJ104,12/4/2012,122409,311.00,Revenue,REDACTED PERSONAL INFORMATION,REDACTED PERSONAL INFORMATION
North East Lincolnshire Council,http://statistics.data.gov.uk/id/local-authority/00FC,People And Communities,Vulnerable Young People,Placement & Support,Other Agencies,Child Care Payments,PJ104,12/4/2012,122413,311.00,Revenue,REDACTED PERSONAL INFORMATION,REDACTED PERSONAL INFORMATION
North East Lincolnshire Council,http://statistics.data.gov.uk/id/local-authority/00FC,People And Communities,Vulnerable Young People,Placement & Support,Other Agencies,Child Care Payments,PJ104,12/4/2012,122430,311.00,Revenue,REDACTED PERSONAL INFORMATION,REDACTED PERSONAL INFORMATION
North East Lincolnshire Council,http://statistics.data.gov.uk/id/local-authority/00FC,People And Communities,Vulnerable Young People,Placement & Support,Other Agencies,Child Care Payments,PJ104,12/4/2012,122435,311.00,Revenue,REDACTED PERSONAL INFORMATION,REDACTED PERSONAL INFORMATION
North East Lincolnshire Council,http://statistics.data.gov.uk/id/local-authority/00FC,People And Communities,Vulnerable Young People,Placement & Support,Other Agencies,Child Care Payments,PJ104,12/4/2012,122442,311.00,Revenue,REDACTED PERSONAL INFORMATION,REDACTED PERSONAL INFORMATION
North East Lincolnshire Council,http://statistics.data.gov.uk/id/local-authority/00FC,People And Communities,Vulnerable Young People,Placement & Support,Other Agencies,Child Care Payments,PJ104,12/4/2012,122465,311.00,Revenue,REDACTED PERSONAL INFORMATION,REDACTED PERSONAL INFORMATION
North East Lincolnshire Council,http://statistics.data.gov.uk/id/local-authority/00FC,People And Communities,Vulnerable Young People,Placement & Support,Other Agencies,Child Care Payments,PJ104,12/11/2012,125106,311.00,Revenue,REDACTED PERSONAL INFORMATION,REDACTED PERSONAL INFORMATION
North East Lincolnshire Council,http://statistics.data.gov.uk/id/local-authority/00FC,People And Communities,Vulnerable Young People,Placement & Support,Other Agencies,Child Care Payments,PJ104,12/11/2012,125120,311.00,Revenue,REDACTED PERSONAL INFORMATION,REDACTED PERSONAL INFORMATION
North East Lincolnshire Council,http://statistics.data.gov.uk/id/local-authority/00FC,People And Communities,Vulnerable Young People,Placement & Support,Other Agencies,Child Care Payments,PJ104,12/11/2012,125133,311.00,Revenue,REDACTED PERSONAL INFORMATION,REDACTED PERSONAL INFORMATION
North East Lincolnshire Council,http://statistics.data.gov.uk/id/local-authority/00FC,People And Communities,Vulnerable Young People,Placement & Support,Other Agencies,Child Care Payments,PJ104,12/11/2012,125137,311.00,Revenue,REDACTED PERSONAL INFORMATION,REDACTED PERSONAL INFORMATION
North East Lincolnshire Council,http://statistics.data.gov.uk/id/local-authority/00FC,People And Communities,Vulnerable Young People,Placement & Support,Other Agencies,Child Care Payments,PJ104,12/11/2012,125162,311.00,Revenue,REDACTED PERSONAL INFORMATION,REDACTED PERSONAL INFORMATION
North East Lincolnshire Council,http://statistics.data.gov.uk/id/local-authority/00FC,People And Communities,Vulnerable Young People,Placement & Support,Other Agencies,Child Care Payments,PJ104,12/11/2012,125170,311.00,Revenue,REDACTED PERSONAL INFORMATION,REDACTED PERSONAL INFORMATION
North East Lincolnshire Council,http://statistics.data.gov.uk/id/local-authority/00FC,People And Communities,Vulnerable Young People,Placement & Support,Other Agencies,Child Care Payments,PJ104,12/11/2012,125188,311.00,Revenue,REDACTED PERSONAL INFORMATION,REDACTED PERSONAL INFORMATION
North East Lincolnshire Council,http://statistics.data.gov.uk/id/local-authority/00FC,People And Communities,Vulnerable Young People,Placement & Support,Other Agencies,Child Care Payments,PJ104,12/11/2012,125206,311.00,Revenue,REDACTED PERSONAL INFORMATION,REDACTED PERSONAL INFORMATION
North East Lincolnshire Council,http://statistics.data.gov.uk/id/local-authority/00FC,People And Communities,Vulnerable Young People,Placement & Support,Other Agencies,Child Care Payments,PJ104,12/11/2012,125213,311.00,Revenue,REDACTED PERSONAL INFORMATION,REDACTED PERSONAL INFORMATION
North East Lincolnshire Council,http://statistics.data.gov.uk/id/local-authority/00FC,People And Communities,Vulnerable Young People,Placement & Support,Other Agencies,Child Care Payments,PJ104,12/11/2012,125217,311.00,Revenue,REDACTED PERSONAL INFORMATION,REDACTED PERSONAL INFORMATION
North East Lincolnshire Council,http://statistics.data.gov.uk/id/local-authority/00FC,People And Communities,Vulnerable Young People,Placement & Support,Other Agencies,Child Care Payments,PJ104,12/11/2012,125234,311.00,Revenue,REDACTED PERSONAL INFORMATION,REDACTED PERSONAL INFORMATION
North East Lincolnshire Council,http://statistics.data.gov.uk/id/local-authority/00FC,People And Communities,Vulnerable Young People,Placement & Support,Other Agencies,Child Care Payments,PJ104,12/11/2012,125239,311.00,Revenue,REDACTED PERSONAL INFORMATION,REDACTED PERSONAL INFORMATION
North East Lincolnshire Council,http://statistics.data.gov.uk/id/local-authority/00FC,People And Communities,Vulnerable Young People,Placement & Support,Other Agencies,Child Care Payments,PJ104,12/11/2012,125246,311.00,Revenue,REDACTED PERSONAL INFORMATION,REDACTED PERSONAL INFORMATION
North East Lincolnshire Council,http://statistics.data.gov.uk/id/local-authority/00FC,People And Communities,Vulnerable Young People,Placement & Support,Other Agencies,Child Care Payments,PJ104,12/11/2012,125268,311.00,Revenue,REDACTED PERSONAL INFORMATION,REDACTED PERSONAL INFORMATION
North East Lincolnshire Council,http://statistics.data.gov.uk/id/local-authority/00FC,People And Communities,Vulnerable Young People,Placement & Support,Other Agencies,Child Care Payments,PJ104,12/11/2012,125400,311.00,Revenue,REDACTED PERSONAL INFORMATION,REDACTED PERSONAL INFORMATION
North East Lincolnshire Council,http://statistics.data.gov.uk/id/local-authority/00FC,People And Communities,Vulnerable Young People,Placement & Support,Other Agencies,Child Care Payments,PJ104,12/11/2012,125407,311.00,Revenue,REDACTED PERSONAL INFORMATION,REDACTED PERSONAL INFORMATION
North East Lincolnshire Council,http://statistics.data.gov.uk/id/local-authority/00FC,People And Communities,Vulnerable Young People,Placement & Support,Other Agencies,Child Care Payments,PJ104,12/11/2012,125411,311.00,Revenue,REDACTED PERSONAL INFORMATION,REDACTED PERSONAL INFORMATION
North East Lincolnshire Council,http://statistics.data.gov.uk/id/local-authority/00FC,People And Communities,Vulnerable Young People,Placement & Support,Other Agencies,Child Care Payments,PJ104,12/11/2012,125428,311.00,Revenue,REDACTED PERSONAL INFORMATION,REDACTED PERSONAL INFORMATION
North East Lincolnshire Council,http://statistics.data.gov.uk/id/local-authority/00FC,People And Communities,Vulnerable Young People,Placement & Support,Other Agencies,Child Care Payments,PJ104,12/11/2012,125433,311.00,Revenue,REDACTED PERSONAL INFORMATION,REDACTED PERSONAL INFORMATION
North East Lincolnshire Council,http://statistics.data.gov.uk/id/local-authority/00FC,People And Communities,Vulnerable Young People,Placement & Support,Other Agencies,Child Care Payments,PJ104,12/11/2012,125440,311.00,Revenue,REDACTED PERSONAL INFORMATION,REDACTED PERSONAL INFORMATION
North East Lincolnshire Council,http://statistics.data.gov.uk/id/local-authority/00FC,People And Communities,Vulnerable Young People,Placement & Support,Other Agencies,Child Care Payments,PJ104,12/11/2012,125460,311.00,Revenue,REDACTED PERSONAL INFORMATION,REDACTED PERSONAL INFORMATION
North East Lincolnshire Council,http://statistics.data.gov.uk/id/local-authority/00FC,People And Communities,Vulnerable Young People,Placement & Support,Other Agencies,Child Care Payments,PJ104,12/11/2012,125302,311.00,Revenue,REDACTED PERSONAL INFORMATION,REDACTED PERSONAL INFORMATION
North East Lincolnshire Council,http://statistics.data.gov.uk/id/local-authority/00FC,People And Communities,Vulnerable Young People,Placement & Support,Other Agencies,Child Care Payments,PJ104,12/11/2012,125315,311.00,Revenue,REDACTED PERSONAL INFORMATION,REDACTED PERSONAL INFORMATION
North East Lincolnshire Council,http://statistics.data.gov.uk/id/local-authority/00FC,People And Communities,Vulnerable Young People,Placement & Support,Other Agencies,Child Care Payments,PJ104,12/11/2012,125327,311.00,Revenue,REDACTED PERSONAL INFORMATION,REDACTED PERSONAL INFORMATION
North East Lincolnshire Council,http://statistics.data.gov.uk/id/local-authority/00FC,People And Communities,Vulnerable Young People,Placement & Support,Other Agencies,Child Care Payments,PJ104,12/11/2012,125331,311.00,Revenue,REDACTED PERSONAL INFORMATION,REDACTED PERSONAL INFORMATION
North East Lincolnshire Council,http://statistics.data.gov.uk/id/local-authority/00FC,People And Communities,Vulnerable Young People,Placement & Support,Other Agencies,Child Care Payments,PJ104,12/11/2012,125351,311.00,Revenue,REDACTED PERSONAL INFORMATION,REDACTED PERSONAL INFORMATION
North East Lincolnshire Council,http://statistics.data.gov.uk/id/local-authority/00FC,People And Communities,Vulnerable Young People,Placement & Support,Other Agencies,Child Care Payments,PJ104,12/11/2012,125356,311.00,Revenue,REDACTED PERSONAL INFORMATION,REDACTED PERSONAL INFORMATION
North East Lincolnshire Council,http://statistics.data.gov.uk/id/local-authority/00FC,People And Communities,Vulnerable Young People,Placement & Support,Other Agencies,Child Care Payments,PJ104,12/11/2012,125364,311.00,Revenue,REDACTED PERSONAL INFORMATION,REDACTED PERSONAL INFORMATION
North East Lincolnshire Council,http://statistics.data.gov.uk/id/local-authority/00FC,People And Communities,Vulnerable Young People,Placement & Support,Other Agencies,Child Care Payments,PJ104,12/11/2012,125382,311.00,Revenue,REDACTED PERSONAL INFORMATION,REDACTED PERSONAL INFORMATION
North East Lincolnshire Council,http://statistics.data.gov.uk/id/local-authority/00FC,People And Communities,Vulnerable Young People,Placement & Support,Other Agencies,Child Care Payments,PJ104,12/11/2012,125629,311.00,Revenue,REDACTED PERSONAL INFORMATION,REDACTED PERSONAL INFORMATION
North East Lincolnshire Council,http://statistics.data.gov.uk/id/local-authority/00FC,People And Communities,Vulnerable Young People,Placement & Support,Other Agencies,Child Care Payments,PJ104,12/11/2012,125636,311.00,Revenue,REDACTED PERSONAL INFORMATION,REDACTED PERSONAL INFORMATION
North East Lincolnshire Council,http://statistics.data.gov.uk/id/local-authority/00FC,People And Communities,Vulnerable Young People,Placement & Support,Other Agencies,Child Care Payments,PJ104,12/11/2012,125656,311.00,Revenue,REDACTED PERSONAL INFORMATION,REDACTED PERSONAL INFORMATION
North East Lincolnshire Council,http://statistics.data.gov.uk/id/local-authority/00FC,People And Communities,Vulnerable Young People,Placement & Support,Other Agencies,Child Care Payments,PJ104,12/11/2012,125498,311.00,Revenue,REDACTED PERSONAL INFORMATION,REDACTED PERSONAL INFORMATION
North East Lincolnshire Council,http://statistics.data.gov.uk/id/local-authority/00FC,People And Communities,Vulnerable Young People,Placement & Support,Other Agencies,Child Care Payments,PJ104,12/11/2012,125511,311.00,Revenue,REDACTED PERSONAL INFORMATION,REDACTED PERSONAL INFORMATION
North East Lincolnshire Council,http://statistics.data.gov.uk/id/local-authority/00FC,People And Communities,Vulnerable Young People,Placement & Support,Other Agencies,Child Care Payments,PJ104,12/11/2012,125523,311.00,Revenue,REDACTED PERSONAL INFORMATION,REDACTED PERSONAL INFORMATION
North East Lincolnshire Council,http://statistics.data.gov.uk/id/local-authority/00FC,People And Communities,Vulnerable Young People,Placement & Support,Other Agencies,Child Care Payments,PJ104,12/11/2012,125527,311.00,Revenue,REDACTED PERSONAL INFORMATION,REDACTED PERSONAL INFORMATION
North East Lincolnshire Council,http://statistics.data.gov.uk/id/local-authority/00FC,People And Communities,Vulnerable Young People,Placement & Support,Other Agencies,Child Care Payments,PJ104,12/11/2012,125539,311.00,Revenue,REDACTED PERSONAL INFORMATION,REDACTED PERSONAL INFORMATION
North East Lincolnshire Council,http://statistics.data.gov.uk/id/local-authority/00FC,People And Communities,Vulnerable Young People,Placement & Support,Other Agencies,Child Care Payments,PJ104,12/11/2012,125547,311.00,Revenue,REDACTED PERSONAL INFORMATION,REDACTED PERSONAL INFORMATION
North East Lincolnshire Council,http://statistics.data.gov.uk/id/local-authority/00FC,People And Communities,Vulnerable Young People,Placement & Support,Other Agencies,Child Care Payments,PJ104,12/11/2012,125552,311.00,Revenue,REDACTED PERSONAL INFORMATION,REDACTED PERSONAL INFORMATION
North East Lincolnshire Council,http://statistics.data.gov.uk/id/local-authority/00FC,People And Communities,Vulnerable Young People,Placement & Support,Other Agencies,Child Care Payments,PJ104,12/11/2012,125560,311.00,Revenue,REDACTED PERSONAL INFORMATION,REDACTED PERSONAL INFORMATION
North East Lincolnshire Council,http://statistics.data.gov.uk/id/local-authority/00FC,People And Communities,Vulnerable Young People,Placement & Support,Other Agencies,Child Care Payments,PJ104,12/11/2012,125578,311.00,Revenue,REDACTED PERSONAL INFORMATION,REDACTED PERSONAL INFORMATION
North East Lincolnshire Council,http://statistics.data.gov.uk/id/local-authority/00FC,People And Communities,Vulnerable Young People,Placement & Support,Other Agencies,Child Care Payments,PJ104,12/11/2012,125596,311.00,Revenue,REDACTED PERSONAL INFORMATION,REDACTED PERSONAL INFORMATION
North East Lincolnshire Council,http://statistics.data.gov.uk/id/local-authority/00FC,People And Communities,Vulnerable Young People,Placement & Support,Other Agencies,Child Care Payments,PJ104,12/11/2012,125603,311.00,Revenue,REDACTED PERSONAL INFORMATION,REDACTED PERSONAL INFORMATION
North East Lincolnshire Council,http://statistics.data.gov.uk/id/local-authority/00FC,People And Communities,Vulnerable Young People,Placement & Support,Other Agencies,Child Care Payments,PJ104,12/11/2012,125607,311.00,Revenue,REDACTED PERSONAL INFORMATION,REDACTED PERSONAL INFORMATION
North East Lincolnshire Council,http://statistics.data.gov.uk/id/local-authority/00FC,People And Communities,Vulnerable Young People,Placement & Support,Other Agencies,Child Care Payments,PJ104,12/11/2012,125624,311.00,Revenue,REDACTED PERSONAL INFORMATION,REDACTED PERSONAL INFORMATION
North East Lincolnshire Council,http://statistics.data.gov.uk/id/local-authority/00FC,People And Communities,Vulnerable Young People,Placement & Support,Other Agencies,Child Care Payments,PJ104,12/18/2012,126945,311.00,Revenue,REDACTED PERSONAL INFORMATION,REDACTED PERSONAL INFORMATION
North East Lincolnshire Council,http://statistics.data.gov.uk/id/local-authority/00FC,People And Communities,Vulnerable Young People,Placement & Support,Other Agencies,Child Care Payments,PJ104,12/18/2012,126959,311.00,Revenue,REDACTED PERSONAL INFORMATION,REDACTED PERSONAL INFORMATION
North East Lincolnshire Council,http://statistics.data.gov.uk/id/local-authority/00FC,People And Communities,Vulnerable Young People,Placement & Support,Other Agencies,Child Care Payments,PJ104,12/18/2012,126972,311.00,Revenue,REDACTED PERSONAL INFORMATION,REDACTED PERSONAL INFORMATION
North East Lincolnshire Council,http://statistics.data.gov.uk/id/local-authority/00FC,People And Communities,Vulnerable Young People,Placement & Support,Other Agencies,Child Care Payments,PJ104,12/18/2012,126977,311.00,Revenue,REDACTED PERSONAL INFORMATION,REDACTED PERSONAL INFORMATION
North East Lincolnshire Council,http://statistics.data.gov.uk/id/local-authority/00FC,People And Communities,Vulnerable Young People,Placement & Support,Other Agencies,Child Care Payments,PJ104,12/18/2012,126989,311.00,Revenue,REDACTED PERSONAL INFORMATION,REDACTED PERSONAL INFORMATION
North East Lincolnshire Council,http://statistics.data.gov.uk/id/local-authority/00FC,People And Communities,Vulnerable Young People,Placement & Support,Other Agencies,Child Care Payments,PJ104,12/18/2012,126998,311.00,Revenue,REDACTED PERSONAL INFORMATION,REDACTED PERSONAL INFORMATION
North East Lincolnshire Council,http://statistics.data.gov.uk/id/local-authority/00FC,People And Communities,Vulnerable Young People,Placement & Support,Other Agencies,Child Care Payments,PJ104,12/18/2012,127004,311.00,Revenue,REDACTED PERSONAL INFORMATION,REDACTED PERSONAL INFORMATION
North East Lincolnshire Council,http://statistics.data.gov.uk/id/local-authority/00FC,People And Communities,Vulnerable Young People,Placement & Support,Other Agencies,Child Care Payments,PJ104,12/18/2012,127012,311.00,Revenue,REDACTED PERSONAL INFORMATION,REDACTED PERSONAL INFORMATION
North East Lincolnshire Council,http://statistics.data.gov.uk/id/local-authority/00FC,People And Communities,Vulnerable Young People,Placement & Support,Other Agencies,Child Care Payments,PJ104,12/18/2012,127030,311.00,Revenue,REDACTED PERSONAL INFORMATION,REDACTED PERSONAL INFORMATION
North East Lincolnshire Council,http://statistics.data.gov.uk/id/local-authority/00FC,People And Communities,Vulnerable Young People,Placement & Support,Other Agencies,Child Care Payments,PJ104,12/18/2012,127048,311.00,Revenue,REDACTED PERSONAL INFORMATION,REDACTED PERSONAL INFORMATION
North East Lincolnshire Council,http://statistics.data.gov.uk/id/local-authority/00FC,People And Communities,Vulnerable Young People,Placement & Support,Other Agencies,Child Care Payments,PJ104,12/18/2012,127056,311.00,Revenue,REDACTED PERSONAL INFORMATION,REDACTED PERSONAL INFORMATION
North East Lincolnshire Council,http://statistics.data.gov.uk/id/local-authority/00FC,People And Communities,Vulnerable Young People,Placement & Support,Other Agencies,Child Care Payments,PJ104,12/18/2012,127061,311.00,Revenue,REDACTED PERSONAL INFORMATION,REDACTED PERSONAL INFORMATION
North East Lincolnshire Council,http://statistics.data.gov.uk/id/local-authority/00FC,People And Communities,Vulnerable Young People,Placement & Support,Other Agencies,Child Care Payments,PJ104,12/18/2012,127079,311.00,Revenue,REDACTED PERSONAL INFORMATION,REDACTED PERSONAL INFORMATION
North East Lincolnshire Council,http://statistics.data.gov.uk/id/local-authority/00FC,People And Communities,Vulnerable Young People,Placement & Support,Other Agencies,Child Care Payments,PJ104,12/18/2012,127085,311.00,Revenue,REDACTED PERSONAL INFORMATION,REDACTED PERSONAL INFORMATION
North East Lincolnshire Council,http://statistics.data.gov.uk/id/local-authority/00FC,People And Communities,Vulnerable Young People,Placement & Support,Other Agencies,Child Care Payments,PJ104,12/18/2012,127094,311.00,Revenue,REDACTED PERSONAL INFORMATION,REDACTED PERSONAL INFORMATION
North East Lincolnshire Council,http://statistics.data.gov.uk/id/local-authority/00FC,People And Communities,Vulnerable Young People,Placement & Support,Other Agencies,Child Care Payments,PJ104,12/18/2012,127119,311.00,Revenue,REDACTED PERSONAL INFORMATION,REDACTED PERSONAL INFORMATION
North East Lincolnshire Council,http://statistics.data.gov.uk/id/local-authority/00FC,People And Communities,Vulnerable Young People,Placement & Support,Other Agencies,Child Care Payments,PJ104,12/4/2012,122362,315.00,Revenue,REDACTED PERSONAL INFORMATION,REDACTED PERSONAL INFORMATION
North East Lincolnshire Council,http://statistics.data.gov.uk/id/local-authority/00FC,People And Communities,Vulnerable Young People,Placement & Support,Other Agencies,Child Care Payments,PJ104,12/11/2012,125164,315.00,Revenue,REDACTED PERSONAL INFORMATION,REDACTED PERSONAL INFORMATION
North East Lincolnshire Council,http://statistics.data.gov.uk/id/local-authority/00FC,People And Communities,Vulnerable Young People,Placement & Support,Other Agencies,Child Care Payments,PJ104,12/11/2012,125358,315.00,Revenue,REDACTED PERSONAL INFORMATION,REDACTED PERSONAL INFORMATION
North East Lincolnshire Council,http://statistics.data.gov.uk/id/local-authority/00FC,People And Communities,Vulnerable Young People,Placement & Support,Other Agencies,Child Care Payments,PJ104,12/11/2012,125554,315.00,Revenue,REDACTED PERSONAL INFORMATION,REDACTED PERSONAL INFORMATION
North East Lincolnshire Council,http://statistics.data.gov.uk/id/local-authority/00FC,People And Communities,Vulnerable Young People,Placement & Support,Other Agencies,Child Care Payments,PJ104,12/18/2012,127006,315.00,Revenue,REDACTED PERSONAL INFORMATION,REDACTED PERSONAL INFORMATION
North East Lincolnshire Council,http://statistics.data.gov.uk/id/local-authority/00FC,People And Communities,Vulnerable Young People,Placement & Support,Other Agencies,Contract Plus,PJ135,12/4/2012,122298,315.00,Revenue,REDACTED PERSONAL INFORMATION,REDACTED PERSONAL INFORMATION
North East Lincolnshire Council,http://statistics.data.gov.uk/id/local-authority/00FC,People And Communities,Vulnerable Young People,Placement & Support,Other Agencies,Contract Plus,PJ135,12/4/2012,122302,315.00,Revenue,REDACTED PERSONAL INFORMATION,REDACTED PERSONAL INFORMATION
North East Lincolnshire Council,http://statistics.data.gov.uk/id/local-authority/00FC,People And Communities,Vulnerable Young People,Placement & Support,Other Agencies,Contract Plus,PJ135,12/4/2012,122307,315.00,Revenue,REDACTED PERSONAL INFORMATION,REDACTED PERSONAL INFORMATION
North East Lincolnshire Council,http://statistics.data.gov.uk/id/local-authority/00FC,People And Communities,Vulnerable Young People,Placement & Support,Other Agencies,Contract Plus,PJ135,12/4/2012,122324,315.00,Revenue,REDACTED PERSONAL INFORMATION,REDACTED PERSONAL INFORMATION
North East Lincolnshire Council,http://statistics.data.gov.uk/id/local-authority/00FC,People And Communities,Vulnerable Young People,Placement & Support,Other Agencies,Contract Plus,PJ135,12/4/2012,122351,315.00,Revenue,REDACTED PERSONAL INFORMATION,REDACTED PERSONAL INFORMATION
North East Lincolnshire Council,http://statistics.data.gov.uk/id/local-authority/00FC,People And Communities,Vulnerable Young People,Placement & Support,Other Agencies,Contract Plus,PJ135,12/4/2012,122352,315.00,Revenue,REDACTED PERSONAL INFORMATION,REDACTED PERSONAL INFORMATION
